{"text_format":"3","workbook":"xlsx","n_sheets":7,"sheets":["Deckblatt","Einleitung","Eingabe Untersuchungsrahmen","Eingabe spezifische Daten","Ergebnisse","Emissionsfaktoren","Quellen"],"not_rendered":{"charts":2,"images":5,"macros":1,"defined_names":149},"read":"whole","date_system":"1900"}

{"sheet":"Deckblatt","index":0,"n_rows":27,"n_cols":3,"rows_kept":27,"merged":[[25,1,25,15],[27,1,27,15]]}
{"$rows_empty":13}
[null,"Voraussetzung für die Nutzung des Tools ist Microsoft® Excel® unter Microsoft 365."]
[null,"Das Tool enthält VBA-Makros. Bitte speichern Sie als erstes das Tool auf ihrem Computer ab. "]
[null,"Die Makros müssen aktiviert sein, damit das Tool funktioniert. Wenden Sie sich bitte an Ihren Systemadministrator, wenn die Makro-Ausführung bei Ihnen gesperrt ist."]
[null,"Das ÖkoWin-Tool verfügt über einen Schreibschutz, um versehentliche Änderungen zu vermeiden."]
[null,"Der Schreibschutz kann von der Anwenderin / vom Anwender aufgehoben werden. Das Passwort lautet „schnee“. "]
[]
[null,"Entwickelt von: "]
[null,null,"Ran Liu, Dr. Dietlinde Quack, Öko-Institut, Berlin/Freiburg"]
[null,null,"Dr. Franz Götzfried, Salt Research + Consulting, Bad Wimpfen"]
[]
[]
[null,"Impressum"]
[null,"Das Berechnungswerkzeug \"ÖkoWin-Tool\" wurde im Rahmen des Forschungsprojektes \"ÖkoWin: Ermittlung von Grundlagen und Bewertungsmethoden einer Ökobilanz des Straßenwinterdienstes\" entwickelt. Das Projekt wurde im Auftrag der Bundesanstalt für Straßenwesen (bast) von Öko-Institut (Projektleitung) in Kooperation mit Salt Research + Consulting und Hydrotox durchgeführt (ÖkoWin - FE 03.0617/2021/MGB).  Die konzeptionelle und technische Realisierung des Tools erfolgte durch Öko-Institut und Salt Research + Consulting. \n"]
[null,"Dieses Tool ist im elektronischen BASt-Archiv ELBA unter https://bast.opus.hbz-nrw.de beim Bericht V 403 abrufbar"]

{"sheet":"Einleitung","index":1,"n_rows":90,"n_cols":8,"rows_kept":90,"merged":[[7,2,7,9],[11,2,11,9],[36,2,36,8],[42,4,42,7],[43,4,43,7],[44,4,44,7],[45,4,45,7],[57,2,57,9]]}
[]
[]
[]
[]
[]
[]
[null,null,"Ziel des Tools:"]
[null,null,"Das Tool ermöglicht die Erstellung einer orientierenden Ökobilanz des Straßenwinterdienstes. Dabei können einzelne Einsätze und Zeiträume sowie Gebiete, in denen der Winterdienst erfolgt ist, abgebildet werden. Das Tool kann darüber hinaus auch für die Planung und für Investitionsentscheidungen im Rahmen des Winterdienstes genutzt werden. \nMit dem Tool können die potenziellen Umweltauswirkungen des Winterdienstes entlang des Lebensweges abgebildet und darüber hinaus die besonders umweltrelevanten Prozesse innerhalb der Systemgrenzen identifiziert werden. Es soll außerdem die Ermittlung der Beiträge der unterschiedlichen Prozesse zu den  potenziellen Umweltauswirkungen des Winterdienstes ermöglichen. "]
[null,null,"Ziel des Tools ist es nicht, die Umweltauswrkungen des Winterdienstes unterschiedlicher Systeme miteinander zu vergleichen, beispielsweise unterschiedlicher Straßenmeisterreien. "]
[]
[null,null,"Zielgruppen des Tools"]
[null,null,"Das Tool adressiert vor allem zwei Zielgruppen:\nZum einen ist das Tool für Straßen- und Autobahnmeistereien sowie andere Winterdienstverantwortliche gedacht, d.h. Organisationen oder Organisationseinheiten, die den Winterdienst durchführen. \nZum anderen kann das Tool auch im Rahmen von Beschaffungsprozessen genutzt werden.  Verantwortliche im Rahmen der öffentlichen Beschaffung können mit dem Tool bei Entscheidungen zu Streumitteln oder der Streutechnik unterstützt werden. "]
[]
[null,null,"Struktur des Tools:"]
[null,null,"Das Tool besteht aus 6 Arbeitsblättern:"]
[null,null,"• Blatt \"Einleitung\": Beschreibung der allgemeinen Eckpunkte und Rahmenbedingungen der Ökobilanzierung mit dem ÖkoWin-Tool"]
[null,null,"• Blatt \"Eingabe Untersuchungsrahmen\": Eingabe von allgemeinen Informationen, zur funktionellen Einheit und zur Beschreibung des Winterdienstes.  "]
[null,null,"• Blatt \"Eingabe spezifische Daten\": Eingabe von spezifischen Inventardaten zum Winterdienst, jeweils mit Bezug zur funktionellen Einheit. Die eingegebenen Daten werden automatisch mit den hintergelegten Emissionsfaktoren verknüpft"]
[null,null,"• Blatt \"Ergebnisse\": Überblick über die Gesamtergebnisse sowie die Beiträge der unterschiedlichen Prozesse  zu den Umweltauswirkungen (tabellarisch, Grafik). Es besteht die Möglichkeit, die Ergebnisse als pdf-Datei ausgeben zu lassen. "]
[null,null,"• Blatt \"Emissionsfaktoren\": Dokumentation der hinterlegten Emissionsfaktoren und der voreingestellten Standardwerte"]
[null,null,"• Blatt \"Quellen\": Dokumentation der verwendeten Literaturquellen"]
[]
[null,null,"Systemgrenzen der Bilanz"]
[null,null,"Mit der Festlegung der Systemgrenzen wird bestimmt, welche Prozesse in der Berechnung der Ökobilanz berücksichtigt werden und welche nicht"]
[null,null,"Grundsätzlich wird in einer Ökobilanz angestrebt, den gesamten Lebensweg – von der Rohstoffgewinnung bis zur Entsorgung – einzubeziehen und mit entsprechenden Prozessmodulen abzubilden. "]
[null,null,"Das ÖkoWin-Tool berücksichtigt die nachfolgend aufgeführten Prozesse:"]
[null,null,"• Herstellung der Streumittel einschließlich Rohstoffabbau"]
[null,null,"• Transport der Streumittel vom Hersteller/Lieferanten zum Zentrallager oder direkt zur Meisterei/zum Bauhof und Transport der Streumittel vom Zentrallager zur Meisterei/zum Bauhof"]
[null,null,"• Soleherstellung (Verdünnung angelieferter konzentrierter Sole auf Anwendungskonzentration oder Herstellung von Sole aus Trockensalz)"]
[null,null,"• Beladung der Streufahrzeuge"]
[null,null,"• Bereitstellung von Strom, Wärme und Kraftstoffen inkl. der jeweiligen Vorketten"]
[null,null,"• Ausbringung der Streumittel (inkl. etwaiger Leerfahrten)"]
[null,null,"• Kontrollfahrten"]
[null,null,"• Fahrzeug- und Gerätereinigung (inkl. Vorkette Wasser)"]
[null,null,"Hinweis: nicht alle Prozesse sind in allen Fällen relevant (beispielsweise stellen nicht alle Meistereien/Bauhöfe Sole her)"]
[null,null,"Nicht berücksichtigt sind:"]
[null,null,"• Die Herstellung und die Entsorgung von Kapitalgütern in der Meisterei / im Bauhof (z.B. Gebäude und Anlagen) werden in dieser Ökobilanz nicht berücksichtigt, sie liegen außerhalb der Systemgrenzen.   Die verwendeten Hintergrunddatenbanken sind ÖkobauDat, ELCD, und GEMIS5.1. "]
[null,null,"• Eine etwaige Verpackung von trockenen Streumitteln"]
[null,null,"• Der manuelle Winterdienst. Es wird angenommen, dass dieser für den Anwendungsbereich des ÖkoWin-Tools (Straßenwinterdienst) keine Rolle spielt"]
[null,null,"• Der Verbleib der Streumittel in der Umwelt nach der Ausbringung und deren Umweltauswirkungen"]
[null,null,"Datenqualität"]
[{"$nulls":3},"Bei der Datenqualität der spezifischen Daten werden drei Kategorien unterschieden: "]
[{"$nulls":3},"Datenqualität","Beispiele"]
[{"$nulls":3},"gemessen","Als Messwerte gelten z.B. Stromrechnungen, Lieferscheine, abgelesene Werte an Tanksäulen"]
[{"$nulls":3},"berechnet","Der Wasserverbrauch für die Herstellung der Anwendungskonzentration von Sole kann aus der Ausgangskonzentration der konzentrierten Sole berechnet werden."]
[{"$nulls":3},"abgeschätzt","Auf Basis von Literaturquellen, Informationen aus dem Internet (z.B. Herstellerangaben) oder Aussagen von Expert*innen, z.B. zum Wasserverbrauch für die Fahrzeug- und Streumaschinenreinigung"]
[]
[null,null,"Berücksichtigte Umweltauswirkungen"]
[]
[{"$nulls":3},"Wirkungskategorie (Deutsch)","Wirkungskategorie (Englisch)","Abkürzung","Wirkungsindikator","Erläuterung"]
[{"$nulls":3},"Kumulierter Energie Aufwand ","Cumulative Energy Demand","KEA","MJ","Energie wird vor allem für Bereitstellungsprozesse (Vorketten) aufgewendet. Im Fall des Straßenwinterdienstes  z.B. für die Bereitstellung von Strom, Kraftstoffen und Streumitteln. "]
[{"$nulls":3},"Treibhauspotenzial","Global Warming Potential","GWP ","kg CO2-Äquivalent","Klimarelevante Emissionen resultieren vor allem aus Bereitstellungsprozessen (Vorketten). Im Fall des Straßenwinterdienstes  z.B. für die Bereitstellung von Strom, Kraftstoffen und Streumitteln. "]
[{"$nulls":3},"Versauerungspotenzial","Acidification Potential","AP ","Mol H+- Äquivalent","Verkehr ist ein relevanter Verursacher von versauerenden Emissionen."]
[{"$nulls":3},"Ozonabbaupotenzial","Ozone Depletion Potential","ODP","kg FCKW-11-Äquivalent","Die Produktion von Kraftstoffen trägt potenziell zur Emission ozonabbauender Substanzen bei. "]
[{"$nulls":3},"Photooxidantienpotenzial ","Photochemical Ozone Potential","POCP","kg NMVOC-Äquivalent"," Verkehr ist ein relevanter Verursacher der bodennahen, photochemischen Ozonbildung. "]
[]
[null,null,"Erläuterungen zur Berechnung der Umweltauswirkungen"]
[null,null,"Die Berechnung der Umweltwirkungspotenziale im ÖkoWin-Tool basiert auf der Verknüpfung der von Ihnen eingegebenen spezifischen Daten mit den im ÖkoWin-Tool hinterlegten Emissionsfaktoren und vordefinierten Systemgrenzen.  So wird beispielsweise der von Ihnen angegebene spezifische Verbrauch an Streumitteln verknüpft mit den Emissionsfaktoren zur Herstellung von Streumitteln.  \nLiegt der spezifische Verbrauch von Streumitteln für die angegebene funktionelle Einheit bei 1 Tonne, dann wird  das Treibhauspotenzials wie folgt berechnet:"]
[{"$nulls":4}," GHG-EmissionenHerstellung (kg CO2Äq./funktionelle Einheit)=1000 kg Streumittel/funtionelle Einheit x Emissionsfaktor für die Herstellung(kg CO2Äq./kg Streumittel)"]
[]
[null,null,"Bedeutung der farblichen Markierungen der Zellen"]
[]
[{"$nulls":3},"Eingabe erforderlich "]
[]
[{"$nulls":3},"Voreingestellte Standardwerte, die Nutzer*innen ändern können"]
[]
[{"$nulls":3},"Voreingestellte Standardwerte, die Nutzer*innen NICHT ändern können "]
[]
[{"$nulls":3},"Keine Eingabe möglich oder automatische Ausgabe. Die Zelle enthält Formeln, die von Anwender*innen nicht geändert werden können."]
[]
[null,null,"Abkürzungen"]
[null,null,"AP ","Versauerungspotenzial"]
[null,null,"bSF","Bewertete Streufläche "]
[null,null,"CO2Äq.","CO₂-Äquivalente"]
[null,null,"EF","Emissionsfaktor"]
[null,null,"FU","Funktionelle Einheit"]
[null,null,"GHG","Greenhouse Gas"]
[null,null,"GWP","Global Warming Potential (Treibhauspotenzial)"]
[null,null,"k.A.","Keine Angabe"]
[null,null,"KEA","Kumulierter Energie Aufwand "]
[null,null,"kg","Kilogramm"]
[null,null,"kWh","Kilowattstunde"]
[null,null,"ODP","Ozonabbaupotenzial"]
[null,null,"Pkm","Personenkilometer"]
[null,null,"PM","Feinstaub-Potenzial "]
[null,null,"POCP","Photooxidantienpotenzial "]
[null,null,"SF","Streufläche "]
[null,null,"t","Tonne"]
[null,null,"THG ","Treibhausgasemissionen"]
[null,null,"Tkm","Tonnenkilometer"]

{"sheet":"Eingabe Untersuchungsrahmen","index":2,"n_rows":63,"n_cols":7,"rows_kept":63,"merged":[[10,3,10,5],[11,3,11,5],[12,3,12,5],[13,3,13,5],[14,3,14,5],[15,3,15,5],[19,2,19,6],[20,2,20,6],[24,2,24,6],[25,2,25,6],[34,2,34,5],[46,2,46,6],[48,2,48,6],[49,2,49,6],[51,2,51,3],[51,4,51,6],[52,2,52,3],[52,4,52,6],[53,2,53,3],[53,4,53,6],[54,2,54,3],[54,4,54,6],[55,2,55,3],[55,4,55,6],[58,2,58,3],[58,4,58,6],[59,2,59,3],[59,4,59,6],[60,2,60,3],[60,4,60,6],[61,2,61,3],[61,4,61,6],[62,2,62,3],[62,4,62,6]]}
{"$rows_empty":8}
[null,null,"1. Allgemeine Angaben"]
[]
[null,null,"Bezeichnung Meisterei/Bauhof"]
[null,null,"Adresse Meisterei/Bauhof"]
[null,null,"Bundesland/Niederlassung"]
[null,null,"Standort"]
[null,null,"Bearbeiter*in(nen)"]
[null,null,"Datum","2023-12-01"]
[]
[]
[null,null,"2. Eingabe der Bezugsgröße: Festlegung der räumlichen Komponente der funktionellen Einheit der Ökobilanz "]
[null,null,"Das ÖkoWin-Tool berechnet die Umweltwirkungspotenziale für die von Ihnen eingegebene funktionelle Einheit. Die spezifischen Daten, die Sie im Blatt \"Eingabe spezifische Daten\" eingeben, müssen sich auf diese funktionelle Einheit beziehen. "]
[null,null,"Die funktionelle Einheit hat eine räumliche Komponente - die bewertete Streufläche - und eine zeitliche Komponente - den Zeitraum des Winterdienstes (z.B. eine Winterperiode oder der Winterdiensteinsatz an eiem bestimmten Tag). Bitte geben Sie beide Komponenten in die nachfolgenden beiden Tabellen ein. "]
[]
[null,null,"Erläuterungen zur Eingabe der funktionellen Einheit:"]
[null,null,"• Bewertete Streufläche: Die bewertete Streufläche (bSF) wird durch die Multiplikation der Streufläche mit einem Betreuungsfaktor ermittelt. "]
[null,null,"• Betreuungsfaktoren: Die Betreuungsfaktoren beschreiben die unterschiedlichen Winterdienstintensitäten nach Straßenklassen. Im ÖkoWin-Tool sind Betreuungsfaktoren für die verschiedenen Straßenklassen voreingestellt, die auf TAUSALA (Quelle: [4]) basieren. Sie können durch eine spezifische Eingabe ersetzt werden. "]
[null,null,"• Ändern der voreingestellten Betreuungsfaktoren: Sie können die voreingestellten Betreuungsfaktoren ändern, in dem Sie in der Spalte \"Auswahl des Betreuungsfaktors\" in der Drop-Down-Liste \"Nutzereingabe\" auswählen, und dann in der Spalte \"Betreuungsfaktor\" einen Wert eingeben."]
[]
[null,null,"Straßenklasse ","Streufläche SF [m²] ","Auswahl des Betreuungsfaktors","Betreuungsfaktor ","Bewertete Streufläche bSF  [m²] "]
[null,null,"Bundesautobahnen",null,"voreingestellter Betreuungsfaktor",{"v":1,"d":"1.00"},{"$f":"D29*F29","v":0}]
[null,null,"Bundesstraßen",null,"voreingestellter Betreuungsfaktor",{"v":0.8,"d":"0.80"},{"$f":"D30*F30","v":0}]
[null,null,"Landes-, Staatsstraßen",null,"voreingestellter Betreuungsfaktor",0.67,{"$f":"D31*F31","v":0}]
[null,null,"Kreisstraßen",null,"voreingestellter Betreuungsfaktor",0.67,{"$f":"D32*F32","v":0}]
[null,null,"Summe",{"$nulls":3},{"$f":"SUBTOTAL(109,Streuflaeche[Bewertete Streufläche bSF  '[m²'] ])","v":0}]
[]
[null,null,{"$f":"\"Die räumliche Komponente der funktionellen Einheit dieser Ökobilanz ist  \"&Streuflaeche[[#Totals],[Bewertete Streufläche bSF  '[m²'] ]]&\" m² bewertete Streufläche.\"","v":"Die räumliche Komponente der funktionellen Einheit dieser Ökobilanz ist  0 m² bewertete Streufläche."}]
[]
[]
[null,null,"3. Eingabe der zeitlichen Komponente der funktionellen Einheit: Geben Sie hier den Zeitraum des Winterdienstes ein, den Sie bilanzieren möchten."]
[null,null,"Geben Sie dazu das Anfangs- und Enddatum der Winterdienstaktivitäten ein, die sie bilanzieren möchten. "]
[null,null,"Sie können eine ganze Winterperiode, Teile einer Winterperiode oder auch nur einzelne Tage bilanzieren - je nachdem, welches Ziel Sie mit der Ökobilanz verfolgen"]
[null,null,"Die spezifischen Daten, die Sie im Blatt \"Eingabe spezifische Daten\" eingeben, müssen sich auf diese funktionelle Einheit beziehen. "]
[null,null,"Startdatum: Beginn Bilanzzeitraum",null,"2023-11-01"]
[null,null,"Enddatum: Ende Bilanzzeitraum",null,"2023-11-30"]
[]
[]
[null,null,"4. Angaben zum Winterdienst"]
[null,null,"Geben Sie nachfolgend bitte Details zum Winterdienst und zu seinen spezifischen Bedingungen ein. Beziehen Sie sich dabei auf die oben von Ihnen angegebene funktionelle Einheit (d.h. Zeitraum und Streufläche). \n"]
[null,null,"Erläuterung:"]
[null,null,"Diese Angaben erleichtern Ihnen die Interpretation und Einordnung der Ergebnisse. Dies gilt im Besonderen, wenn Sie den Winterdienst von mehreren Winterperioden miteinander vergleichen wollen. "]
[null,null,"Die Eingabe ist auf 960 Zeichen je Eingabezelle begrenzt."]
[null,null,"Winterdienst:"]
[null,null,"Anteile Trockensalz, FS 30 und FS 100 der betrachteten Winterdienstaktivitäten (Einsätze in Prozent, geschätzt)"]
[null,null,"Anteile präventiver und kurativer Maßnahmen der betrachteten Winterdienstaktivitäten (Einsätze in Prozent, geschätzt)"]
[null,null,"Besonderheiten in Bezug auf die verwendeten Fahrzeuge und die eingesetzte Streutechnik "]
[null,null,"Sonstige Besonderheiten in Bezug auf den durchgeführten Winterdienst"]
[null,null,"Gibt es interne Salz- und Soletransporte sowie Umschlagsprozesse? Wenn ja, diese bitte kurz beschreiben."]
[]
[null,null,"Wetter- und Straßenbedingungen: "]
[null,null,"Schneefallereignisse (z.B. Häufigkeit, Dauer/Zeitpunkt und Schwere)"]
[null,null,"Reifglätte (z.B. Häufigkeit, Dauer/Zeitpunkt und Schwere) "]
[null,null,"Eisglätte (z.B. Häufigkeit, Dauer/Zeitpunkt und Schwere) "]
[null,null,"Sonstige Besonderheiten der Wetterbedingungen "]
[null,null,"Besonderheiten in Bezug auf den Verkehr / die Verkehrsbedingungen"]

{"sheet":"Eingabe spezifische Daten","index":3,"n_rows":128,"n_cols":13,"rows_kept":128,"merged":[[11,4,11,8],[12,4,12,8]]}
{"$rows_empty":7}
[null,"1. Bitte geben Sie Ihre spezifischen Daten in die gelben Felder ein"]
[{"$nulls":4},"Erläuterungen zur Dateneingabe:"]
[{"$nulls":4},"Auf diesem Tabellenblatt werden Ihre spezifischen Daten zum Winterdienst erfasst. "]
[{"$nulls":4},"Bitte machen Sie Ihre Angaben immer mit Bezug zur funktionellen Einheit, d.h. der Streufläche und dem Zeitraum des Winterdienstes, den Sie auf dem Blatt \"Eingabe Untersuchungsrahmen\" als funktionelle Einheit festgelegt haben.  "]
[{"$nulls":4},"Machen Sie zu den eingegebenen Daten bitte Angaben zur Datenqualität. Sie können dabei aus einem Dropdown-Menü auswählen: gemessen (z.B. Stromrechnung), berechnet (z.B. Wassermenge zur Herstellung von Sole) und abgeschätzt (z.B. Anteil Wasserverbrauch für den Winterdienst, wenn die Wasserrechnung nur jährlich ausgestellt wird)."]
[{"$nulls":4},"Sie haben die Möglichkeit in den Eingabetabellen in der letzten Spalte jeweils eine Anmerkung einzugeben. Darin können Sie beispielsweise dokumentieren, wie Sie eine Berechnung oder Abschätzung  vorgenommen haben, in welchen Dokumenten Sie die benötigten Informationen gefunden haben oder welche Vereinfachungen Sie durchgeführt haben. Ihr Vorteil: Die eingegebenen Daten sind für Sie selbst auch zu einem späteren Zeitpunkt nachvollziehbar und die Nutzung des ÖkoWin-Tools ist einfacher selbst bei einem Wechsel des Bearbeiters / der Bearbeiterin."]
[]
[null,"2. Prozesse in der Meisterei / im Bauhof"]
[{"$nulls":4},"Geben Sie bitte ein, welche Aufwendungen Sie in der Meisterei / im Bauhof für den Winterdienst haben. "]
[{"$nulls":4},"Beachten Sie dabei, dass sich Ihre Angaben immer auf die funktionelle Einheit beziehen müssen, die Sie auf dem Blatt \"Eingabe Untersuchungsrahmen\" festgelegt haben. "]
[{"$nulls":4},"Wenn eine Zeile für Ihren Fall nicht relevant ist, geben Sie bitte \"0\" ein. "]
[{"$nulls":4},"Frage 1: Verfügt die Meisterei / der Bauhof über eine eigene Stromerzeugung? Hinweis: Falls es einen Generator gibt, der nur im Falle eines Stromausfalls eingesetzt wird, geben Sie bitte \"nein\" ein."]
[{"$nulls":4},"Frage 2: Verfügt die Meisterei / der Bauhof über eine eigene Wärmebereitstellung?"]
[]
[{"$nulls":4},"Aufwand innerhalb der Meisterei/des Bauhofes","Verbrauch","Einheit ","Datenqualität","Anmerkung"]
[{"$nulls":4},"Stromverbrauch der Meisterei / des Bauhofs für den Winterdienst (Bezug aus dem Stromnetz)",null,{"$f":"\"kWh / \"&Streuflaeche[[#Totals],[Bewertete Streufläche bSF  '[m²'] ]]&\" m² bewertete Streufläche\"","v":"kWh / 0 m² bewertete Streufläche"}]
[{"$nulls":4},"Verbrauch von Nah- oder Fernwärme (Wärmebezug)",null,{"$f":"\"MJ / \"&Streuflaeche[[#Totals],[Bewertete Streufläche bSF  '[m²'] ]]&\" m² bewertete Streufläche\"","v":"MJ / 0 m² bewertete Streufläche"}]
[{"$nulls":4},"Verbrauch von Leitungswasser in der Meisterei / im Bauhof für den Winterdienst (z.B. für Soleherstellung, Fahrzeug- und Streumaschinenreinigung)",null,{"$f":"\"Liter / \"&Streuflaeche[[#Totals],[Bewertete Streufläche bSF  '[m²'] ]]&\" m² bewertete Streufläche\"","v":"Liter / 0 m² bewertete Streufläche"}]
[{"$nulls":4},"Verbrauch von Niederschlagswasser in der Meisterei / im Bauhof für den Winterdienst (z.B. für Soleherstellung, Fahrzeug- und Streumaschinenreinigung)",null,{"$f":"\"Liter / \"&Streuflaeche[[#Totals],[Bewertete Streufläche bSF  '[m²'] ]]&\" m² bewertete Streufläche\"","v":"Liter / 0 m² bewertete Streufläche"}]
[{"$nulls":4},"Verbrauch von Motoröl und Hydrauliköl, der dem Winterdeinst zugeordnet werden kann (z.B. für Streufahrzeuge)",null,{"$f":"\"Liter / \"&Streuflaeche[[#Totals],[Bewertete Streufläche bSF  '[m²'] ]]&\" m² bewertete Streufläche\"","v":"Liter / 0 m² bewertete Streufläche"}]
[{"$nulls":4},"Verbrauch von Diesel für Prozesse in der Meisterei / auf dem Bauhof, die dem Winterdienst zugeordnet werden können (z.B. Nutzung Radlader im Streumittellager oder für Beladung Streufahrzeuge)",null,{"$f":"\"Liter / \"&Streuflaeche[[#Totals],[Bewertete Streufläche bSF  '[m²'] ]]&\" m² bewertete Streufläche\"","v":"Liter / 0 m² bewertete Streufläche"}]
[]
[]
[{"$nulls":4},"Geben Se hier bitte an, wie in der Meiterei / im Bauhof die Stromerzeugung erfolgt."]
[{"$nulls":4},"Strom aus Eigenerzeugung","Verbrauch","Einheit ","Datenqualität","Anmerkung"]
[{"$nulls":4},"Eigenverbrauch Strom aus Photovoltaik",null,{"$f":"\"Eigenverbrauch Endenergie in kWh / \"&Streuflaeche[[#Totals],[Bewertete Streufläche bSF  '[m²'] ]]&\" m² bewertete Streufläche\"","v":"Eigenverbrauch Endenergie in kWh / 0 m² bewertete Streufläche"}]
[]
[]
[{"$nulls":4},"Geben Sie bitte ein, welche Energieträger in der Meisterei / im Bauhof für die eigene Wärmeerzeugung genutzt werden und wie hoch der jeweilige Wärmeverbrauch für den Winterdienst ist."]
[{"$nulls":4},"Energieträger ","Verbrauch","Einheit ","Datenqualität","Anmerkung"]
[{"$nulls":4},"Erdgas",null,{"$f":"\"m³ / \"&Streuflaeche[[#Totals],[Bewertete Streufläche bSF  '[m²'] ]]&\" m² bewertete Streufläche\"","v":"m³ / 0 m² bewertete Streufläche"}]
[{"$nulls":4},"Heizöl",null,{"$f":"\"Liter / \"&Streuflaeche[[#Totals],[Bewertete Streufläche bSF  '[m²'] ]]&\" m² bewertete Streufläche\"","v":"Liter / 0 m² bewertete Streufläche"}]
[{"$nulls":4},"Holzhackschnitzel, Verbrauch bitte als Trockenmasse angeben",null,{"$f":"\"Tonnen / \"&Streuflaeche[[#Totals],[Bewertete Streufläche bSF  '[m²'] ]]&\" m² bewertete Streufläche\"","v":"Tonnen / 0 m² bewertete Streufläche"}]
[{"$nulls":4},"Holzpellets, Verbrauch bitte als Trockenmasse angeben",null,{"$f":"\"Tonnen / \"&Streuflaeche[[#Totals],[Bewertete Streufläche bSF  '[m²'] ]]&\" m² bewertete Streufläche\"","v":"Tonnen / 0 m² bewertete Streufläche"}]
[{"$nulls":4},"Biogas ",null,{"$f":"\"m³ / \"&Streuflaeche[[#Totals],[Bewertete Streufläche bSF  '[m²'] ]]&\" m² bewertete Streufläche\"","v":"m³ / 0 m² bewertete Streufläche"}]
[{"$nulls":4},"Solarthermie (eigene Kollektoren)",null,{"$f":"\"Eigenverbrauch Endenergie in MJ / \"&Streuflaeche[[#Totals],[Bewertete Streufläche bSF  '[m²'] ]]&\" m² bewertete Streufläche\"","v":"Eigenverbrauch Endenergie in MJ / 0 m² bewertete Streufläche"}]
[]
[]
[]
[null,"3. Ausbringung"]
[{"$nulls":4},"3.1. Streumittel"]
[]
[{"$nulls":4},"3.1.1 Geben Sie bitte den Verbrauch an trockenen Streumitteln (Trockensalz) in Bezug auf die von Ihnen festgelegte funktionelle Einheit an. "]
[{"$nulls":4},"Sie können dabei in der ersten Spalte der nachfolgenden Tabelle aus einem Dropdown-Menü die entsprechenden Streumittel auswählen. Bei Natriumchlorid haben Sie die Auswahl zwischen drei verschiedenen Herstellungsverfahren: Steinsalz, Siedesalz und Meersalz "]
[{"$nulls":4},"Beachten Sie, dass sowohl Trockensalz direkt für die Ausbringung als auch Trockensalz für die eigene Soleherstellung anzugeben ist. "]
[]
[{"$nulls":4},"Bezeichnung Streumittel (Trockensalz)","Verbrauch [Tonnen/funktionelle Einheit]","Einheit ","Datenqualität","Anmerkung"]
[{"$nulls":4},"Natriumchlorid (aus Steinsalz)",null,{"$f":"\"Tonnen / \"&Streuflaeche[[#Totals],[Bewertete Streufläche bSF  '[m²'] ]]&\" m² bewertete Streufläche\"","v":"Tonnen / 0 m² bewertete Streufläche"},"berechnet"]
[{"$nulls":6},{"$f":"\"Tonnen / \"&Streuflaeche[[#Totals],[Bewertete Streufläche bSF  '[m²'] ]]&\" m² bewertete Streufläche\"","v":"Tonnen / 0 m² bewertete Streufläche"}]
[{"$nulls":6},{"$f":"\"Tonnen / \"&Streuflaeche[[#Totals],[Bewertete Streufläche bSF  '[m²'] ]]&\" m² bewertete Streufläche\"","v":"Tonnen / 0 m² bewertete Streufläche"}]
[{"$nulls":6},{"$f":"\"Tonnen / \"&Streuflaeche[[#Totals],[Bewertete Streufläche bSF  '[m²'] ]]&\" m² bewertete Streufläche\"","v":"Tonnen / 0 m² bewertete Streufläche"}]
[{"$nulls":6},{"$f":"\"Tonnen / \"&Streuflaeche[[#Totals],[Bewertete Streufläche bSF  '[m²'] ]]&\" m² bewertete Streufläche\"","v":"Tonnen / 0 m² bewertete Streufläche"}]
[{"$nulls":6},{"$f":"\"Tonnen / \"&Streuflaeche[[#Totals],[Bewertete Streufläche bSF  '[m²'] ]]&\" m² bewertete Streufläche\"","v":"Tonnen / 0 m² bewertete Streufläche"}]
[{"$nulls":6},{"$f":"\"Tonnen / \"&Streuflaeche[[#Totals],[Bewertete Streufläche bSF  '[m²'] ]]&\" m² bewertete Streufläche\"","v":"Tonnen / 0 m² bewertete Streufläche"}]
[{"$nulls":6},{"$f":"\"Tonnen / \"&Streuflaeche[[#Totals],[Bewertete Streufläche bSF  '[m²'] ]]&\" m² bewertete Streufläche\"","v":"Tonnen / 0 m² bewertete Streufläche"}]
[{"$nulls":4},"Summe",{"$f":"SUBTOTAL(109,Eingabe_Ausbringungen_Fremdsalz[Verbrauch '[Tonnen/funktionelle Einheit']])","v":{"v":0,"d":"0.00"}},{"$f":"\"Tonnen / \"&Streuflaeche[[#Totals],[Bewertete Streufläche bSF  '[m²'] ]]&\" m² bewertete Streufläche\"","v":"Tonnen / 0 m² bewertete Streufläche"}]
[]
[{"$nulls":4},"3.1.2 Verbrauchte Streumittel: konzentrierte Fremdsole und Fremdsole in Anwendungskonzentration "]
[{"$nulls":4},"Beachten Sie, dass sowohl anwendungsfertige Fremdsole als auch konzentrierte Fremdsole, die vor Ort verdünnt wird, anzugeben ist - in Abhängigkeit davon, was Sie einkaufen. Die angegebene Menge muss sich immer auf die funktionelle Einheit beziehen. "]
[]
[{"$nulls":4},"Bezeichnung Streumittel (Sole)","Bezug von konzentrierter oder anwendungsfertiger Fremdsole ","Menge an eingesetzter Fremdesole","Einheit ","Anwendungskonzentration der Sole [Prozent] \nFalls Sie nur eine Angabe zur Bandbreite der Anwendungskonzentrationen kennen, geben Sie bitte einen Mittelwert an.","Datenqualität","Anmerkung","Wasserverbrauch für die Verdünnung bei Herstellern (Tonne/FU), nur relevant für anwendigungsfertige Fremdsole"]
[{"$nulls":7},{"$f":"\"Tonnen / \"&Streuflaeche[[#Totals],[Bewertete Streufläche bSF  '[m²'] ]]&\" m² bewertete Streufläche\"","v":"Tonnen / 0 m² bewertete Streufläche"},{"$nulls":3},{"$f":"IFERROR(_xlfn.IFS(AND(Eingabe_Ausbringungen_FremdSole[[#This Row],[Bezug von konzentrierter oder anwendungsfertiger Fremdsole ]]=\"anwendungsfertige Fremdsole\",Eingabe_Ausbringungen_FremdSole[[#This Row],[Bezeichnung Streumittel (Sole)]]=\"Natriumchlorid-Sole\"),(Konzentration_NaCl_konz_Fremdsole-Eingabe_Ausbringungen_FremdSole[[#This Row],[Anwendungskonzentration der Sole '[Prozent'] \nFalls Sie nur eine Angabe zur Bandbreite der Anwendungskonzentrationen kennen, geben Sie bitte einen Mittelwert an.]]),(AND(Eingabe_Ausbringungen_FremdSole[[#This Row],[Bezug von konzentrierter oder anwendungsfertiger Fremdsole ]]=\"anwendungsfertige Fremdsole\",Eingabe_Ausbringungen_FremdSole[[#This Row],[Bezeichnung Streumittel (Sole)]]=\"Magnesiumchlorid-Sole\")),(Konzentration_MgCl2_konz_Fremdsole-Eingabe_Ausbringungen_FremdSole[[#This Row],[Anwendungskonzentration der Sole '[Prozent'] \nFalls Sie nur eine Angabe zur Bandbreite der Anwendungskonzentrationen kennen, geben Sie bitte einen Mittelwert an.]]),(AND(Eingabe_Ausbringungen_FremdSole[[#This Row],[Bezug von konzentrierter oder anwendungsfertiger Fremdsole ]]=\"anwendungsfertige Fremdsole\",Eingabe_Ausbringungen_FremdSole[[#This Row],[Bezeichnung Streumittel (Sole)]]=\"Calciumchlorid-Sole\")),(Konzentration_CaCl2_konz_Fremdsole-Eingabe_Ausbringungen_FremdSole[[#This Row],[Anwendungskonzentration der Sole '[Prozent'] \nFalls Sie nur eine Angabe zur Bandbreite der Anwendungskonzentrationen kennen, geben Sie bitte einen Mittelwert an.]]))*Eingabe_Ausbringungen_FremdSole[[#This Row],[Menge an eingesetzter Fremdesole]],\"k.A.\")","v":"k.A."}]
[{"$nulls":7},{"$f":"\"Tonnen / \"&Streuflaeche[[#Totals],[Bewertete Streufläche bSF  '[m²'] ]]&\" m² bewertete Streufläche\"","v":"Tonnen / 0 m² bewertete Streufläche"},{"$nulls":3},{"$f":"IFERROR(_xlfn.IFS(AND(Eingabe_Ausbringungen_FremdSole[[#This Row],[Bezug von konzentrierter oder anwendungsfertiger Fremdsole ]]=\"anwendungsfertige Fremdsole\",Eingabe_Ausbringungen_FremdSole[[#This Row],[Bezeichnung Streumittel (Sole)]]=\"Natriumchlorid-Sole\"),(Konzentration_NaCl_konz_Fremdsole-Eingabe_Ausbringungen_FremdSole[[#This Row],[Anwendungskonzentration der Sole '[Prozent'] \nFalls Sie nur eine Angabe zur Bandbreite der Anwendungskonzentrationen kennen, geben Sie bitte einen Mittelwert an.]]),(AND(Eingabe_Ausbringungen_FremdSole[[#This Row],[Bezug von konzentrierter oder anwendungsfertiger Fremdsole ]]=\"anwendungsfertige Fremdsole\",Eingabe_Ausbringungen_FremdSole[[#This Row],[Bezeichnung Streumittel (Sole)]]=\"Magnesiumchlorid-Sole\")),(Konzentration_MgCl2_konz_Fremdsole-Eingabe_Ausbringungen_FremdSole[[#This Row],[Anwendungskonzentration der Sole '[Prozent'] \nFalls Sie nur eine Angabe zur Bandbreite der Anwendungskonzentrationen kennen, geben Sie bitte einen Mittelwert an.]]),(AND(Eingabe_Ausbringungen_FremdSole[[#This Row],[Bezug von konzentrierter oder anwendungsfertiger Fremdsole ]]=\"anwendungsfertige Fremdsole\",Eingabe_Ausbringungen_FremdSole[[#This Row],[Bezeichnung Streumittel (Sole)]]=\"Calciumchlorid-Sole\")),(Konzentration_CaCl2_konz_Fremdsole-Eingabe_Ausbringungen_FremdSole[[#This Row],[Anwendungskonzentration der Sole '[Prozent'] \nFalls Sie nur eine Angabe zur Bandbreite der Anwendungskonzentrationen kennen, geben Sie bitte einen Mittelwert an.]]))*Eingabe_Ausbringungen_FremdSole[[#This Row],[Menge an eingesetzter Fremdesole]],\"k.A.\")","v":"k.A."}]
[{"$nulls":7},{"$f":"\"Tonnen / \"&Streuflaeche[[#Totals],[Bewertete Streufläche bSF  '[m²'] ]]&\" m² bewertete Streufläche\"","v":"Tonnen / 0 m² bewertete Streufläche"},{"$nulls":3},{"$f":"IFERROR(_xlfn.IFS(AND(Eingabe_Ausbringungen_FremdSole[[#This Row],[Bezug von konzentrierter oder anwendungsfertiger Fremdsole ]]=\"anwendungsfertige Fremdsole\",Eingabe_Ausbringungen_FremdSole[[#This Row],[Bezeichnung Streumittel (Sole)]]=\"Natriumchlorid-Sole\"),(Konzentration_NaCl_konz_Fremdsole-Eingabe_Ausbringungen_FremdSole[[#This Row],[Anwendungskonzentration der Sole '[Prozent'] \nFalls Sie nur eine Angabe zur Bandbreite der Anwendungskonzentrationen kennen, geben Sie bitte einen Mittelwert an.]]),(AND(Eingabe_Ausbringungen_FremdSole[[#This Row],[Bezug von konzentrierter oder anwendungsfertiger Fremdsole ]]=\"anwendungsfertige Fremdsole\",Eingabe_Ausbringungen_FremdSole[[#This Row],[Bezeichnung Streumittel (Sole)]]=\"Magnesiumchlorid-Sole\")),(Konzentration_MgCl2_konz_Fremdsole-Eingabe_Ausbringungen_FremdSole[[#This Row],[Anwendungskonzentration der Sole '[Prozent'] \nFalls Sie nur eine Angabe zur Bandbreite der Anwendungskonzentrationen kennen, geben Sie bitte einen Mittelwert an.]]),(AND(Eingabe_Ausbringungen_FremdSole[[#This Row],[Bezug von konzentrierter oder anwendungsfertiger Fremdsole ]]=\"anwendungsfertige Fremdsole\",Eingabe_Ausbringungen_FremdSole[[#This Row],[Bezeichnung Streumittel (Sole)]]=\"Calciumchlorid-Sole\")),(Konzentration_CaCl2_konz_Fremdsole-Eingabe_Ausbringungen_FremdSole[[#This Row],[Anwendungskonzentration der Sole '[Prozent'] \nFalls Sie nur eine Angabe zur Bandbreite der Anwendungskonzentrationen kennen, geben Sie bitte einen Mittelwert an.]]))*Eingabe_Ausbringungen_FremdSole[[#This Row],[Menge an eingesetzter Fremdesole]],\"k.A.\")","v":"k.A."}]
[{"$nulls":7},{"$f":"\"Tonnen / \"&Streuflaeche[[#Totals],[Bewertete Streufläche bSF  '[m²'] ]]&\" m² bewertete Streufläche\"","v":"Tonnen / 0 m² bewertete Streufläche"},{"$nulls":3},{"$f":"IFERROR(_xlfn.IFS(AND(Eingabe_Ausbringungen_FremdSole[[#This Row],[Bezug von konzentrierter oder anwendungsfertiger Fremdsole ]]=\"anwendungsfertige Fremdsole\",Eingabe_Ausbringungen_FremdSole[[#This Row],[Bezeichnung Streumittel (Sole)]]=\"Natriumchlorid-Sole\"),(Konzentration_NaCl_konz_Fremdsole-Eingabe_Ausbringungen_FremdSole[[#This Row],[Anwendungskonzentration der Sole '[Prozent'] \nFalls Sie nur eine Angabe zur Bandbreite der Anwendungskonzentrationen kennen, geben Sie bitte einen Mittelwert an.]]),(AND(Eingabe_Ausbringungen_FremdSole[[#This Row],[Bezug von konzentrierter oder anwendungsfertiger Fremdsole ]]=\"anwendungsfertige Fremdsole\",Eingabe_Ausbringungen_FremdSole[[#This Row],[Bezeichnung Streumittel (Sole)]]=\"Magnesiumchlorid-Sole\")),(Konzentration_MgCl2_konz_Fremdsole-Eingabe_Ausbringungen_FremdSole[[#This Row],[Anwendungskonzentration der Sole '[Prozent'] \nFalls Sie nur eine Angabe zur Bandbreite der Anwendungskonzentrationen kennen, geben Sie bitte einen Mittelwert an.]]),(AND(Eingabe_Ausbringungen_FremdSole[[#This Row],[Bezug von konzentrierter oder anwendungsfertiger Fremdsole ]]=\"anwendungsfertige Fremdsole\",Eingabe_Ausbringungen_FremdSole[[#This Row],[Bezeichnung Streumittel (Sole)]]=\"Calciumchlorid-Sole\")),(Konzentration_CaCl2_konz_Fremdsole-Eingabe_Ausbringungen_FremdSole[[#This Row],[Anwendungskonzentration der Sole '[Prozent'] \nFalls Sie nur eine Angabe zur Bandbreite der Anwendungskonzentrationen kennen, geben Sie bitte einen Mittelwert an.]]))*Eingabe_Ausbringungen_FremdSole[[#This Row],[Menge an eingesetzter Fremdesole]],\"k.A.\")","v":"k.A."}]
[{"$nulls":7},{"$f":"\"Tonnen / \"&Streuflaeche[[#Totals],[Bewertete Streufläche bSF  '[m²'] ]]&\" m² bewertete Streufläche\"","v":"Tonnen / 0 m² bewertete Streufläche"},{"$nulls":3},{"$f":"IFERROR(_xlfn.IFS(AND(Eingabe_Ausbringungen_FremdSole[[#This Row],[Bezug von konzentrierter oder anwendungsfertiger Fremdsole ]]=\"anwendungsfertige Fremdsole\",Eingabe_Ausbringungen_FremdSole[[#This Row],[Bezeichnung Streumittel (Sole)]]=\"Natriumchlorid-Sole\"),(Konzentration_NaCl_konz_Fremdsole-Eingabe_Ausbringungen_FremdSole[[#This Row],[Anwendungskonzentration der Sole '[Prozent'] \nFalls Sie nur eine Angabe zur Bandbreite der Anwendungskonzentrationen kennen, geben Sie bitte einen Mittelwert an.]]),(AND(Eingabe_Ausbringungen_FremdSole[[#This Row],[Bezug von konzentrierter oder anwendungsfertiger Fremdsole ]]=\"anwendungsfertige Fremdsole\",Eingabe_Ausbringungen_FremdSole[[#This Row],[Bezeichnung Streumittel (Sole)]]=\"Magnesiumchlorid-Sole\")),(Konzentration_MgCl2_konz_Fremdsole-Eingabe_Ausbringungen_FremdSole[[#This Row],[Anwendungskonzentration der Sole '[Prozent'] \nFalls Sie nur eine Angabe zur Bandbreite der Anwendungskonzentrationen kennen, geben Sie bitte einen Mittelwert an.]]),(AND(Eingabe_Ausbringungen_FremdSole[[#This Row],[Bezug von konzentrierter oder anwendungsfertiger Fremdsole ]]=\"anwendungsfertige Fremdsole\",Eingabe_Ausbringungen_FremdSole[[#This Row],[Bezeichnung Streumittel (Sole)]]=\"Calciumchlorid-Sole\")),(Konzentration_CaCl2_konz_Fremdsole-Eingabe_Ausbringungen_FremdSole[[#This Row],[Anwendungskonzentration der Sole '[Prozent'] \nFalls Sie nur eine Angabe zur Bandbreite der Anwendungskonzentrationen kennen, geben Sie bitte einen Mittelwert an.]]))*Eingabe_Ausbringungen_FremdSole[[#This Row],[Menge an eingesetzter Fremdesole]],\"k.A.\")","v":"k.A."}]
[{"$nulls":7},{"$f":"\"Tonnen / \"&Streuflaeche[[#Totals],[Bewertete Streufläche bSF  '[m²'] ]]&\" m² bewertete Streufläche\"","v":"Tonnen / 0 m² bewertete Streufläche"},{"$nulls":3},{"$f":"IFERROR(_xlfn.IFS(AND(Eingabe_Ausbringungen_FremdSole[[#This Row],[Bezug von konzentrierter oder anwendungsfertiger Fremdsole ]]=\"anwendungsfertige Fremdsole\",Eingabe_Ausbringungen_FremdSole[[#This Row],[Bezeichnung Streumittel (Sole)]]=\"Natriumchlorid-Sole\"),(Konzentration_NaCl_konz_Fremdsole-Eingabe_Ausbringungen_FremdSole[[#This Row],[Anwendungskonzentration der Sole '[Prozent'] \nFalls Sie nur eine Angabe zur Bandbreite der Anwendungskonzentrationen kennen, geben Sie bitte einen Mittelwert an.]]),(AND(Eingabe_Ausbringungen_FremdSole[[#This Row],[Bezug von konzentrierter oder anwendungsfertiger Fremdsole ]]=\"anwendungsfertige Fremdsole\",Eingabe_Ausbringungen_FremdSole[[#This Row],[Bezeichnung Streumittel (Sole)]]=\"Magnesiumchlorid-Sole\")),(Konzentration_MgCl2_konz_Fremdsole-Eingabe_Ausbringungen_FremdSole[[#This Row],[Anwendungskonzentration der Sole '[Prozent'] \nFalls Sie nur eine Angabe zur Bandbreite der Anwendungskonzentrationen kennen, geben Sie bitte einen Mittelwert an.]]),(AND(Eingabe_Ausbringungen_FremdSole[[#This Row],[Bezug von konzentrierter oder anwendungsfertiger Fremdsole ]]=\"anwendungsfertige Fremdsole\",Eingabe_Ausbringungen_FremdSole[[#This Row],[Bezeichnung Streumittel (Sole)]]=\"Calciumchlorid-Sole\")),(Konzentration_CaCl2_konz_Fremdsole-Eingabe_Ausbringungen_FremdSole[[#This Row],[Anwendungskonzentration der Sole '[Prozent'] \nFalls Sie nur eine Angabe zur Bandbreite der Anwendungskonzentrationen kennen, geben Sie bitte einen Mittelwert an.]]))*Eingabe_Ausbringungen_FremdSole[[#This Row],[Menge an eingesetzter Fremdesole]],\"k.A.\")","v":"k.A."}]
[{"$nulls":7},{"$f":"\"Tonnen / \"&Streuflaeche[[#Totals],[Bewertete Streufläche bSF  '[m²'] ]]&\" m² bewertete Streufläche\"","v":"Tonnen / 0 m² bewertete Streufläche"},{"$nulls":3},{"$f":"IFERROR(_xlfn.IFS(AND(Eingabe_Ausbringungen_FremdSole[[#This Row],[Bezug von konzentrierter oder anwendungsfertiger Fremdsole ]]=\"anwendungsfertige Fremdsole\",Eingabe_Ausbringungen_FremdSole[[#This Row],[Bezeichnung Streumittel (Sole)]]=\"Natriumchlorid-Sole\"),(Konzentration_NaCl_konz_Fremdsole-Eingabe_Ausbringungen_FremdSole[[#This Row],[Anwendungskonzentration der Sole '[Prozent'] \nFalls Sie nur eine Angabe zur Bandbreite der Anwendungskonzentrationen kennen, geben Sie bitte einen Mittelwert an.]]),(AND(Eingabe_Ausbringungen_FremdSole[[#This Row],[Bezug von konzentrierter oder anwendungsfertiger Fremdsole ]]=\"anwendungsfertige Fremdsole\",Eingabe_Ausbringungen_FremdSole[[#This Row],[Bezeichnung Streumittel (Sole)]]=\"Magnesiumchlorid-Sole\")),(Konzentration_MgCl2_konz_Fremdsole-Eingabe_Ausbringungen_FremdSole[[#This Row],[Anwendungskonzentration der Sole '[Prozent'] \nFalls Sie nur eine Angabe zur Bandbreite der Anwendungskonzentrationen kennen, geben Sie bitte einen Mittelwert an.]]),(AND(Eingabe_Ausbringungen_FremdSole[[#This Row],[Bezug von konzentrierter oder anwendungsfertiger Fremdsole ]]=\"anwendungsfertige Fremdsole\",Eingabe_Ausbringungen_FremdSole[[#This Row],[Bezeichnung Streumittel (Sole)]]=\"Calciumchlorid-Sole\")),(Konzentration_CaCl2_konz_Fremdsole-Eingabe_Ausbringungen_FremdSole[[#This Row],[Anwendungskonzentration der Sole '[Prozent'] \nFalls Sie nur eine Angabe zur Bandbreite der Anwendungskonzentrationen kennen, geben Sie bitte einen Mittelwert an.]]))*Eingabe_Ausbringungen_FremdSole[[#This Row],[Menge an eingesetzter Fremdesole]],\"k.A.\")","v":"k.A."}]
[{"$nulls":7},{"$f":"\"Tonnen / \"&Streuflaeche[[#Totals],[Bewertete Streufläche bSF  '[m²'] ]]&\" m² bewertete Streufläche\"","v":"Tonnen / 0 m² bewertete Streufläche"},{"$nulls":3},{"$f":"IFERROR(_xlfn.IFS(AND(Eingabe_Ausbringungen_FremdSole[[#This Row],[Bezug von konzentrierter oder anwendungsfertiger Fremdsole ]]=\"anwendungsfertige Fremdsole\",Eingabe_Ausbringungen_FremdSole[[#This Row],[Bezeichnung Streumittel (Sole)]]=\"Natriumchlorid-Sole\"),(Konzentration_NaCl_konz_Fremdsole-Eingabe_Ausbringungen_FremdSole[[#This Row],[Anwendungskonzentration der Sole '[Prozent'] \nFalls Sie nur eine Angabe zur Bandbreite der Anwendungskonzentrationen kennen, geben Sie bitte einen Mittelwert an.]]),(AND(Eingabe_Ausbringungen_FremdSole[[#This Row],[Bezug von konzentrierter oder anwendungsfertiger Fremdsole ]]=\"anwendungsfertige Fremdsole\",Eingabe_Ausbringungen_FremdSole[[#This Row],[Bezeichnung Streumittel (Sole)]]=\"Magnesiumchlorid-Sole\")),(Konzentration_MgCl2_konz_Fremdsole-Eingabe_Ausbringungen_FremdSole[[#This Row],[Anwendungskonzentration der Sole '[Prozent'] \nFalls Sie nur eine Angabe zur Bandbreite der Anwendungskonzentrationen kennen, geben Sie bitte einen Mittelwert an.]]),(AND(Eingabe_Ausbringungen_FremdSole[[#This Row],[Bezug von konzentrierter oder anwendungsfertiger Fremdsole ]]=\"anwendungsfertige Fremdsole\",Eingabe_Ausbringungen_FremdSole[[#This Row],[Bezeichnung Streumittel (Sole)]]=\"Calciumchlorid-Sole\")),(Konzentration_CaCl2_konz_Fremdsole-Eingabe_Ausbringungen_FremdSole[[#This Row],[Anwendungskonzentration der Sole '[Prozent'] \nFalls Sie nur eine Angabe zur Bandbreite der Anwendungskonzentrationen kennen, geben Sie bitte einen Mittelwert an.]]))*Eingabe_Ausbringungen_FremdSole[[#This Row],[Menge an eingesetzter Fremdesole]],\"k.A.\")","v":"k.A."}]
[{"$nulls":7},{"$f":"\"Tonnen / \"&Streuflaeche[[#Totals],[Bewertete Streufläche bSF  '[m²'] ]]&\" m² bewertete Streufläche\"","v":"Tonnen / 0 m² bewertete Streufläche"},{"$nulls":3},{"$f":"IFERROR(_xlfn.IFS(AND(Eingabe_Ausbringungen_FremdSole[[#This Row],[Bezug von konzentrierter oder anwendungsfertiger Fremdsole ]]=\"anwendungsfertige Fremdsole\",Eingabe_Ausbringungen_FremdSole[[#This Row],[Bezeichnung Streumittel (Sole)]]=\"Natriumchlorid-Sole\"),(Konzentration_NaCl_konz_Fremdsole-Eingabe_Ausbringungen_FremdSole[[#This Row],[Anwendungskonzentration der Sole '[Prozent'] \nFalls Sie nur eine Angabe zur Bandbreite der Anwendungskonzentrationen kennen, geben Sie bitte einen Mittelwert an.]]),(AND(Eingabe_Ausbringungen_FremdSole[[#This Row],[Bezug von konzentrierter oder anwendungsfertiger Fremdsole ]]=\"anwendungsfertige Fremdsole\",Eingabe_Ausbringungen_FremdSole[[#This Row],[Bezeichnung Streumittel (Sole)]]=\"Magnesiumchlorid-Sole\")),(Konzentration_MgCl2_konz_Fremdsole-Eingabe_Ausbringungen_FremdSole[[#This Row],[Anwendungskonzentration der Sole '[Prozent'] \nFalls Sie nur eine Angabe zur Bandbreite der Anwendungskonzentrationen kennen, geben Sie bitte einen Mittelwert an.]]),(AND(Eingabe_Ausbringungen_FremdSole[[#This Row],[Bezug von konzentrierter oder anwendungsfertiger Fremdsole ]]=\"anwendungsfertige Fremdsole\",Eingabe_Ausbringungen_FremdSole[[#This Row],[Bezeichnung Streumittel (Sole)]]=\"Calciumchlorid-Sole\")),(Konzentration_CaCl2_konz_Fremdsole-Eingabe_Ausbringungen_FremdSole[[#This Row],[Anwendungskonzentration der Sole '[Prozent'] \nFalls Sie nur eine Angabe zur Bandbreite der Anwendungskonzentrationen kennen, geben Sie bitte einen Mittelwert an.]]))*Eingabe_Ausbringungen_FremdSole[[#This Row],[Menge an eingesetzter Fremdesole]],\"k.A.\")","v":"k.A."}]
[{"$nulls":7},{"$f":"\"Tonnen / \"&Streuflaeche[[#Totals],[Bewertete Streufläche bSF  '[m²'] ]]&\" m² bewertete Streufläche\"","v":"Tonnen / 0 m² bewertete Streufläche"},{"$nulls":3},{"$f":"IFERROR(_xlfn.IFS(AND(Eingabe_Ausbringungen_FremdSole[[#This Row],[Bezug von konzentrierter oder anwendungsfertiger Fremdsole ]]=\"anwendungsfertige Fremdsole\",Eingabe_Ausbringungen_FremdSole[[#This Row],[Bezeichnung Streumittel (Sole)]]=\"Natriumchlorid-Sole\"),(Konzentration_NaCl_konz_Fremdsole-Eingabe_Ausbringungen_FremdSole[[#This Row],[Anwendungskonzentration der Sole '[Prozent'] \nFalls Sie nur eine Angabe zur Bandbreite der Anwendungskonzentrationen kennen, geben Sie bitte einen Mittelwert an.]]),(AND(Eingabe_Ausbringungen_FremdSole[[#This Row],[Bezug von konzentrierter oder anwendungsfertiger Fremdsole ]]=\"anwendungsfertige Fremdsole\",Eingabe_Ausbringungen_FremdSole[[#This Row],[Bezeichnung Streumittel (Sole)]]=\"Magnesiumchlorid-Sole\")),(Konzentration_MgCl2_konz_Fremdsole-Eingabe_Ausbringungen_FremdSole[[#This Row],[Anwendungskonzentration der Sole '[Prozent'] \nFalls Sie nur eine Angabe zur Bandbreite der Anwendungskonzentrationen kennen, geben Sie bitte einen Mittelwert an.]]),(AND(Eingabe_Ausbringungen_FremdSole[[#This Row],[Bezug von konzentrierter oder anwendungsfertiger Fremdsole ]]=\"anwendungsfertige Fremdsole\",Eingabe_Ausbringungen_FremdSole[[#This Row],[Bezeichnung Streumittel (Sole)]]=\"Calciumchlorid-Sole\")),(Konzentration_CaCl2_konz_Fremdsole-Eingabe_Ausbringungen_FremdSole[[#This Row],[Anwendungskonzentration der Sole '[Prozent'] \nFalls Sie nur eine Angabe zur Bandbreite der Anwendungskonzentrationen kennen, geben Sie bitte einen Mittelwert an.]]))*Eingabe_Ausbringungen_FremdSole[[#This Row],[Menge an eingesetzter Fremdesole]],\"k.A.\")","v":"k.A."}]
[{"$nulls":7},{"$f":"\"Tonnen / \"&Streuflaeche[[#Totals],[Bewertete Streufläche bSF  '[m²'] ]]&\" m² bewertete Streufläche\"","v":"Tonnen / 0 m² bewertete Streufläche"},{"$nulls":3},{"$f":"IFERROR(_xlfn.IFS(AND(Eingabe_Ausbringungen_FremdSole[[#This Row],[Bezug von konzentrierter oder anwendungsfertiger Fremdsole ]]=\"anwendungsfertige Fremdsole\",Eingabe_Ausbringungen_FremdSole[[#This Row],[Bezeichnung Streumittel (Sole)]]=\"Natriumchlorid-Sole\"),(Konzentration_NaCl_konz_Fremdsole-Eingabe_Ausbringungen_FremdSole[[#This Row],[Anwendungskonzentration der Sole '[Prozent'] \nFalls Sie nur eine Angabe zur Bandbreite der Anwendungskonzentrationen kennen, geben Sie bitte einen Mittelwert an.]]),(AND(Eingabe_Ausbringungen_FremdSole[[#This Row],[Bezug von konzentrierter oder anwendungsfertiger Fremdsole ]]=\"anwendungsfertige Fremdsole\",Eingabe_Ausbringungen_FremdSole[[#This Row],[Bezeichnung Streumittel (Sole)]]=\"Magnesiumchlorid-Sole\")),(Konzentration_MgCl2_konz_Fremdsole-Eingabe_Ausbringungen_FremdSole[[#This Row],[Anwendungskonzentration der Sole '[Prozent'] \nFalls Sie nur eine Angabe zur Bandbreite der Anwendungskonzentrationen kennen, geben Sie bitte einen Mittelwert an.]]),(AND(Eingabe_Ausbringungen_FremdSole[[#This Row],[Bezug von konzentrierter oder anwendungsfertiger Fremdsole ]]=\"anwendungsfertige Fremdsole\",Eingabe_Ausbringungen_FremdSole[[#This Row],[Bezeichnung Streumittel (Sole)]]=\"Calciumchlorid-Sole\")),(Konzentration_CaCl2_konz_Fremdsole-Eingabe_Ausbringungen_FremdSole[[#This Row],[Anwendungskonzentration der Sole '[Prozent'] \nFalls Sie nur eine Angabe zur Bandbreite der Anwendungskonzentrationen kennen, geben Sie bitte einen Mittelwert an.]]))*Eingabe_Ausbringungen_FremdSole[[#This Row],[Menge an eingesetzter Fremdesole]],\"k.A.\")","v":"k.A."}]
[{"$nulls":4},"Summe",null,{"$f":"SUBTOTAL(109,Eingabe_Ausbringungen_FremdSole[Menge an eingesetzter Fremdesole])","v":{"v":0,"d":"0.00"}},{"$f":"\"Tonnen / \"&Streuflaeche[[#Totals],[Bewertete Streufläche bSF  '[m²'] ]]&\" m² bewertete Streufläche\"","v":"Tonnen / 0 m² bewertete Streufläche"}]
[]
[{"$nulls":4},"3.2 Verbrauch Kraftstoffe für die Ausbringung"]
[{"$nulls":4},"Erläuterungen:"]
[{"$nulls":4},"Für den Fall, dass Biodiesel in Kraftstoffmischungen verwendet wird, berechnen Sie bitte den Anteil Biodiesel und den Anteil Diesel und tragen diese dann ein. "]
[{"$nulls":4},"Die Angaben zu den Fahrzeugen in der ersten Spalte der nachfolgenden Tabelle dienen dazu, die korrekten Emissionsfakoren für die Berechnung der Emissionen zu verknüpfen. "]
[]
[{"$nulls":4},"Angaben zu den Fahrzeugen (Lkw: zulässiges Gesamtgewicht, Euro Norm, Kraftstoff)","Verbrauch Kraftstoffe","Einheit ","Datenqualität","Anmerkung"]
[{"$nulls":6},{"$f":"IF(OR(Eingabe_Ausbringungen[[#This Row],[Angaben zu den Fahrzeugen (Lkw: zulässiges Gesamtgewicht, Euro Norm, Kraftstoff)]]=\"Pkw, Erdgas, CNG\",Eingabe_Ausbringungen[[#This Row],[Angaben zu den Fahrzeugen (Lkw: zulässiges Gesamtgewicht, Euro Norm, Kraftstoff)]]=\"Pkw, Erdgas, LNG\"),\"kg / \"&Streuflaeche[[#Totals],[Bewertete Streufläche bSF  '[m²'] ]]&\" m² bewertete Streufläche\",\"Liter / \"&Streuflaeche[[#Totals],[Bewertete Streufläche bSF  '[m²'] ]]&\" m² bewertete Streufläche\")","v":"Liter / 0 m² bewertete Streufläche"}]
[{"$nulls":6},{"$f":"IF(OR(Eingabe_Ausbringungen[[#This Row],[Angaben zu den Fahrzeugen (Lkw: zulässiges Gesamtgewicht, Euro Norm, Kraftstoff)]]=\"Pkw, Erdgas, CNG\",Eingabe_Ausbringungen[[#This Row],[Angaben zu den Fahrzeugen (Lkw: zulässiges Gesamtgewicht, Euro Norm, Kraftstoff)]]=\"Pkw, Erdgas, LNG\"),\"kg / \"&Streuflaeche[[#Totals],[Bewertete Streufläche bSF  '[m²'] ]]&\" m² bewertete Streufläche\",\"Liter / \"&Streuflaeche[[#Totals],[Bewertete Streufläche bSF  '[m²'] ]]&\" m² bewertete Streufläche\")","v":"Liter / 0 m² bewertete Streufläche"}]
[{"$nulls":6},{"$f":"IF(OR(Eingabe_Ausbringungen[[#This Row],[Angaben zu den Fahrzeugen (Lkw: zulässiges Gesamtgewicht, Euro Norm, Kraftstoff)]]=\"Pkw, Erdgas, CNG\",Eingabe_Ausbringungen[[#This Row],[Angaben zu den Fahrzeugen (Lkw: zulässiges Gesamtgewicht, Euro Norm, Kraftstoff)]]=\"Pkw, Erdgas, LNG\"),\"kg / \"&Streuflaeche[[#Totals],[Bewertete Streufläche bSF  '[m²'] ]]&\" m² bewertete Streufläche\",\"Liter / \"&Streuflaeche[[#Totals],[Bewertete Streufläche bSF  '[m²'] ]]&\" m² bewertete Streufläche\")","v":"Liter / 0 m² bewertete Streufläche"}]
[{"$nulls":6},{"$f":"IF(OR(Eingabe_Ausbringungen[[#This Row],[Angaben zu den Fahrzeugen (Lkw: zulässiges Gesamtgewicht, Euro Norm, Kraftstoff)]]=\"Pkw, Erdgas, CNG\",Eingabe_Ausbringungen[[#This Row],[Angaben zu den Fahrzeugen (Lkw: zulässiges Gesamtgewicht, Euro Norm, Kraftstoff)]]=\"Pkw, Erdgas, LNG\"),\"kg / \"&Streuflaeche[[#Totals],[Bewertete Streufläche bSF  '[m²'] ]]&\" m² bewertete Streufläche\",\"Liter / \"&Streuflaeche[[#Totals],[Bewertete Streufläche bSF  '[m²'] ]]&\" m² bewertete Streufläche\")","v":"Liter / 0 m² bewertete Streufläche"}]
[{"$nulls":6},{"$f":"IF(OR(Eingabe_Ausbringungen[[#This Row],[Angaben zu den Fahrzeugen (Lkw: zulässiges Gesamtgewicht, Euro Norm, Kraftstoff)]]=\"Pkw, Erdgas, CNG\",Eingabe_Ausbringungen[[#This Row],[Angaben zu den Fahrzeugen (Lkw: zulässiges Gesamtgewicht, Euro Norm, Kraftstoff)]]=\"Pkw, Erdgas, LNG\"),\"kg / \"&Streuflaeche[[#Totals],[Bewertete Streufläche bSF  '[m²'] ]]&\" m² bewertete Streufläche\",\"Liter / \"&Streuflaeche[[#Totals],[Bewertete Streufläche bSF  '[m²'] ]]&\" m² bewertete Streufläche\")","v":"Liter / 0 m² bewertete Streufläche"}]
[{"$nulls":6},{"$f":"IF(OR(Eingabe_Ausbringungen[[#This Row],[Angaben zu den Fahrzeugen (Lkw: zulässiges Gesamtgewicht, Euro Norm, Kraftstoff)]]=\"Pkw, Erdgas, CNG\",Eingabe_Ausbringungen[[#This Row],[Angaben zu den Fahrzeugen (Lkw: zulässiges Gesamtgewicht, Euro Norm, Kraftstoff)]]=\"Pkw, Erdgas, LNG\"),\"kg / \"&Streuflaeche[[#Totals],[Bewertete Streufläche bSF  '[m²'] ]]&\" m² bewertete Streufläche\",\"Liter / \"&Streuflaeche[[#Totals],[Bewertete Streufläche bSF  '[m²'] ]]&\" m² bewertete Streufläche\")","v":"Liter / 0 m² bewertete Streufläche"}]
[{"$nulls":6},{"$f":"IF(OR(Eingabe_Ausbringungen[[#This Row],[Angaben zu den Fahrzeugen (Lkw: zulässiges Gesamtgewicht, Euro Norm, Kraftstoff)]]=\"Pkw, Erdgas, CNG\",Eingabe_Ausbringungen[[#This Row],[Angaben zu den Fahrzeugen (Lkw: zulässiges Gesamtgewicht, Euro Norm, Kraftstoff)]]=\"Pkw, Erdgas, LNG\"),\"kg / \"&Streuflaeche[[#Totals],[Bewertete Streufläche bSF  '[m²'] ]]&\" m² bewertete Streufläche\",\"Liter / \"&Streuflaeche[[#Totals],[Bewertete Streufläche bSF  '[m²'] ]]&\" m² bewertete Streufläche\")","v":"Liter / 0 m² bewertete Streufläche"}]
[{"$nulls":6},{"$f":"IF(OR(Eingabe_Ausbringungen[[#This Row],[Angaben zu den Fahrzeugen (Lkw: zulässiges Gesamtgewicht, Euro Norm, Kraftstoff)]]=\"Pkw, Erdgas, CNG\",Eingabe_Ausbringungen[[#This Row],[Angaben zu den Fahrzeugen (Lkw: zulässiges Gesamtgewicht, Euro Norm, Kraftstoff)]]=\"Pkw, Erdgas, LNG\"),\"kg / \"&Streuflaeche[[#Totals],[Bewertete Streufläche bSF  '[m²'] ]]&\" m² bewertete Streufläche\",\"Liter / \"&Streuflaeche[[#Totals],[Bewertete Streufläche bSF  '[m²'] ]]&\" m² bewertete Streufläche\")","v":"Liter / 0 m² bewertete Streufläche"}]
[{"$nulls":6},{"$f":"IF(OR(Eingabe_Ausbringungen[[#This Row],[Angaben zu den Fahrzeugen (Lkw: zulässiges Gesamtgewicht, Euro Norm, Kraftstoff)]]=\"Pkw, Erdgas, CNG\",Eingabe_Ausbringungen[[#This Row],[Angaben zu den Fahrzeugen (Lkw: zulässiges Gesamtgewicht, Euro Norm, Kraftstoff)]]=\"Pkw, Erdgas, LNG\"),\"kg / \"&Streuflaeche[[#Totals],[Bewertete Streufläche bSF  '[m²'] ]]&\" m² bewertete Streufläche\",\"Liter / \"&Streuflaeche[[#Totals],[Bewertete Streufläche bSF  '[m²'] ]]&\" m² bewertete Streufläche\")","v":"Liter / 0 m² bewertete Streufläche"}]
[{"$nulls":6},{"$f":"IF(OR(Eingabe_Ausbringungen[[#This Row],[Angaben zu den Fahrzeugen (Lkw: zulässiges Gesamtgewicht, Euro Norm, Kraftstoff)]]=\"Pkw, Erdgas, CNG\",Eingabe_Ausbringungen[[#This Row],[Angaben zu den Fahrzeugen (Lkw: zulässiges Gesamtgewicht, Euro Norm, Kraftstoff)]]=\"Pkw, Erdgas, LNG\"),\"kg / \"&Streuflaeche[[#Totals],[Bewertete Streufläche bSF  '[m²'] ]]&\" m² bewertete Streufläche\",\"Liter / \"&Streuflaeche[[#Totals],[Bewertete Streufläche bSF  '[m²'] ]]&\" m² bewertete Streufläche\")","v":"Liter / 0 m² bewertete Streufläche"}]
[{"$nulls":6},{"$f":"IF(OR(Eingabe_Ausbringungen[[#This Row],[Angaben zu den Fahrzeugen (Lkw: zulässiges Gesamtgewicht, Euro Norm, Kraftstoff)]]=\"Pkw, Erdgas, CNG\",Eingabe_Ausbringungen[[#This Row],[Angaben zu den Fahrzeugen (Lkw: zulässiges Gesamtgewicht, Euro Norm, Kraftstoff)]]=\"Pkw, Erdgas, LNG\"),\"kg / \"&Streuflaeche[[#Totals],[Bewertete Streufläche bSF  '[m²'] ]]&\" m² bewertete Streufläche\",\"Liter / \"&Streuflaeche[[#Totals],[Bewertete Streufläche bSF  '[m²'] ]]&\" m² bewertete Streufläche\")","v":"Liter / 0 m² bewertete Streufläche"}]
[]
[]
[]
[]
[null,"4. Transport der Streumittel (trocken, Sole) vom Herstellungsort bis zur Meisterei / zum Bauhof"]
[{"$nulls":4},"Erläuterungen: "]
[{"$nulls":4},"Der Transportweg kann mehrere Abschnitte umfassen. Geben Sie die mit unterschiedlichen Transportmitteln erfolgten Transportbschnitte bitte getrennt ein. "]
[{"$nulls":4},"Sollten Sie für die Angaben zum Transport der Streumittel weitere Zeilen benötigen, dann können Sie diese über die Funktion \"Zeilen einfügen\" in die nachfolgende Tabelle einfügen."]
[{"$nulls":4},"Beschreiben Sie in der ersten Spalte der nachfolgenden Tabelle den jeweiligen Abschnitt des Transportwegs. Beispiele für Transportabschnitte: vom Herstellungsort der Streumittel zur Meisterei oder zum Bauhof; vom Herstellungsort zu einem Zwischenlager des Lieferanten oder zum Zentrallager der Meisterei oder des Bauhofes; vom Zentrallager zur Meisterei oder zum Bauhof etc.."]
[{"$nulls":4},"Geben Sie für alle Transportabschnitte die Transportentfernung und das Transportmittel an. "]
[{"$nulls":4},"Sollten Ihnen Transportentfernungen nicht bekannt sein, so können Sie verschiedene Rechner nutzen, die im Internet zugünglich sind, beispeielsweise: "]
[{"$nulls":4},"• Antransport per LKW, Berechnung eines Landwegs: https://routing.openstreetmap.de/?z=4&center=47.724545%2C-29.707031&hl=de&alt=0&srv=0 "]
[{"$nulls":4},"• Antransport per Schiff, Berechnung eines Wasserweges: https://www.searates.com/services/distances-time/  "]
[{"$nulls":4},"• Antransport per Bahn: Für die Berechnung einer Bahnstrecke konnte kein vergleichbarer Rechner identifiziert werden. Bitte erfragen Sie die Transportentfernungen bei Ihren Lieferanten."]
[{"$nulls":4},"Wählen Sie das Transportmittel aus dem Dropdownmenü aus. Falls Sie die EURO-Klasse eines LKW nicht kennen, wählen Sie bitte den Euro-3-Lkw aus (konservativer Ansatz)."]
[]
[{"$nulls":4},"Beschreibung Transportprozesse, z.B. Produktionsstätte => Zentrallager; Prduktionsstätte =>Meisterei oder Zentrallager => Meisterei)","Spezifikation transportiertes Streumittel","Transportmittel","Transportentfernung, einfache Entfernung (km)","Menge an transportiertem Streumittel (Tonnen)","Einheit ","Tonnenkilometer (automatisch berechneter Wert) (tkm/funktionelle Einheit)","Datenqualität","Anmerkung"]
[{"$nulls":9},"Tonnen/funkionelle Einheit",{"$f":"Eingabe_Antransport[[#This Row],[Transportentfernung, einfache Entfernung (km)]]*Eingabe_Antransport[[#This Row],[Menge an transportiertem Streumittel (Tonnen)]]","v":{"v":0,"d":"0.00"}}]
[{"$nulls":9},"Tonnen/funkionelle Einheit",{"$f":"Eingabe_Antransport[[#This Row],[Transportentfernung, einfache Entfernung (km)]]*Eingabe_Antransport[[#This Row],[Menge an transportiertem Streumittel (Tonnen)]]","v":{"v":0,"d":"0.00"}}]
[{"$nulls":9},"Tonnen/funkionelle Einheit",{"$f":"Eingabe_Antransport[[#This Row],[Transportentfernung, einfache Entfernung (km)]]*Eingabe_Antransport[[#This Row],[Menge an transportiertem Streumittel (Tonnen)]]","v":{"v":0,"d":"0.00"}}]
[{"$nulls":9},"Tonnen/funkionelle Einheit",{"$f":"Eingabe_Antransport[[#This Row],[Transportentfernung, einfache Entfernung (km)]]*Eingabe_Antransport[[#This Row],[Menge an transportiertem Streumittel (Tonnen)]]","v":{"v":0,"d":"0.00"}}]
[{"$nulls":9},"Tonnen/funkionelle Einheit",{"$f":"Eingabe_Antransport[[#This Row],[Transportentfernung, einfache Entfernung (km)]]*Eingabe_Antransport[[#This Row],[Menge an transportiertem Streumittel (Tonnen)]]","v":{"v":0,"d":"0.00"}}]
[{"$nulls":9},"Tonnen/funkionelle Einheit",{"$f":"Eingabe_Antransport[[#This Row],[Transportentfernung, einfache Entfernung (km)]]*Eingabe_Antransport[[#This Row],[Menge an transportiertem Streumittel (Tonnen)]]","v":{"v":0,"d":"0.00"}}]
[{"$nulls":9},"Tonnen/funkionelle Einheit",{"$f":"Eingabe_Antransport[[#This Row],[Transportentfernung, einfache Entfernung (km)]]*Eingabe_Antransport[[#This Row],[Menge an transportiertem Streumittel (Tonnen)]]","v":{"v":0,"d":"0.00"}}]
[{"$nulls":9},"Tonnen/funkionelle Einheit",{"$f":"Eingabe_Antransport[[#This Row],[Transportentfernung, einfache Entfernung (km)]]*Eingabe_Antransport[[#This Row],[Menge an transportiertem Streumittel (Tonnen)]]","v":{"v":0,"d":"0.00"}}]
[{"$nulls":9},"Tonnen/funkionelle Einheit",{"$f":"Eingabe_Antransport[[#This Row],[Transportentfernung, einfache Entfernung (km)]]*Eingabe_Antransport[[#This Row],[Menge an transportiertem Streumittel (Tonnen)]]","v":{"v":0,"d":"0.00"}}]
[{"$nulls":9},"Tonnen/funkionelle Einheit",{"$f":"Eingabe_Antransport[[#This Row],[Transportentfernung, einfache Entfernung (km)]]*Eingabe_Antransport[[#This Row],[Menge an transportiertem Streumittel (Tonnen)]]","v":{"v":0,"d":"0.00"}}]
[{"$nulls":9},"Tonnen/funkionelle Einheit",{"$f":"Eingabe_Antransport[[#This Row],[Transportentfernung, einfache Entfernung (km)]]*Eingabe_Antransport[[#This Row],[Menge an transportiertem Streumittel (Tonnen)]]","v":{"v":0,"d":"0.00"}}]
[]
[{"$nulls":4},"Summe",{"$nulls":3},{"$f":"SUBTOTAL(109,Eingabe_Antransport[Menge an transportiertem Streumittel (Tonnen)])","v":{"v":0,"d":"0.00"}},"Tonnen/funkionelle Einheit"]

{"sheet":"Ergebnisse","index":4,"n_rows":225,"n_cols":8,"rows_kept":225,"merged":[[10,3,10,5],[14,3,14,7],[15,3,15,7],[16,3,16,7],[17,3,17,7],[18,3,18,7],[21,3,21,7],[22,3,22,7],[23,3,23,7],[24,3,24,7],[25,3,25,7]]}
[]
[]
[]
[]
[]
[null,null,"Bezeichnung Meisterei/Bauhof:",{"$f":"'Eingabe Untersuchungsrahmen'!D11","v":0}]
[null,null,"Adresse Meisterei/Bauhof:",{"$f":"'Eingabe Untersuchungsrahmen'!D12","v":0}]
[null,null,"Bundesland/Niederlassung:",{"$f":"'Eingabe Untersuchungsrahmen'!D13","v":0}]
[null,null,"Standort: ",{"$f":"'Eingabe Untersuchungsrahmen'!D14","v":0}]
[null,null,"Bearbeiter*in(nen):",{"$f":"'Eingabe Untersuchungsrahmen'!D15","v":0}]
[null,null,"Datum: ",{"$f":"'Eingabe Untersuchungsrahmen'!D16","v":"2023-12-01"}]
[null,null,"Funktionelle Einheit:",{"$f":"\"Die funktionelle Einheit dieser Ökobilanz ist  \"&Streuflaeche[[#Totals],[Bewertete Streufläche bSF  '[m²'] ]]&\" m² bewertete Streufläche im Bilanzzeitraum \"&TEXT('Eingabe Untersuchungsrahmen'!E42, \"TT.MM.JJJJ\")&\"-\"&TEXT('Eingabe Untersuchungsrahmen'!E43, \"TT.MM.JJJJ\")","v":"Die funktionelle Einheit dieser Ökobilanz ist  0 m² bewertete Streufläche im Bilanzzeitraum 01.11.2023-30.11.2023"}]
[]
[null,null,{"$f":"'Eingabe Untersuchungsrahmen'!C51","v":"Winterdienst:"}]
[null,null,{"$f":"'Eingabe Untersuchungsrahmen'!C52","v":"Anteile Trockensalz, FS 30 und FS 100 der betrachteten Winterdienstaktivitäten (Einsätze in Prozent, geschätzt)"},{"$f":"IF('Eingabe Untersuchungsrahmen'!E52=\"\",\"k.A.\",WD_Info_Salz)","v":"k.A."}]
[null,null,{"$f":"'Eingabe Untersuchungsrahmen'!C53","v":"Anteile präventiver und kurativer Maßnahmen der betrachteten Winterdienstaktivitäten (Einsätze in Prozent, geschätzt)"},{"$f":"IF('Eingabe Untersuchungsrahmen'!E53=\"\",\"k.A.\",WD_Info_P_K_Maßnahmen)","v":"k.A."}]
[null,null,{"$f":"'Eingabe Untersuchungsrahmen'!C54","v":"Besonderheiten in Bezug auf die verwendeten Fahrzeuge und die eingesetzte Streutechnik "},{"$f":"IF('Eingabe Untersuchungsrahmen'!E54=\"\",\"k.A.\",WD_Info_Technik)","v":"k.A."}]
[null,null,{"$f":"'Eingabe Untersuchungsrahmen'!C55","v":"Sonstige Besonderheiten in Bezug auf den durchgeführten Winterdienst"},{"$f":"IF('Eingabe Untersuchungsrahmen'!E55=\"\",\"k.A.\",WD_Info_Besonderheiten_WD)","v":"k.A."}]
[null,null,{"$f":"'Eingabe Untersuchungsrahmen'!C56","v":"Gibt es interne Salz- und Soletransporte sowie Umschlagsprozesse? Wenn ja, diese bitte kurz beschreiben."},{"$f":"IF('Eingabe Untersuchungsrahmen'!E56=\"\",\"k.A.\",WD_info_interne_Transport_Umschlag)","v":"k.A."}]
[]
[null,null,{"$f":"'Eingabe Untersuchungsrahmen'!C58","v":"Wetter- und Straßenbedingungen: "}]
[null,null,{"$f":"'Eingabe Untersuchungsrahmen'!C59","v":"Schneefallereignisse (z.B. Häufigkeit, Dauer/Zeitpunkt und Schwere)"},{"$f":"IF('Eingabe Untersuchungsrahmen'!E59=\"\",\"k.A.\",WD_Info_Schnee)","v":"k.A."}]
[null,null,{"$f":"'Eingabe Untersuchungsrahmen'!C60","v":"Reifglätte (z.B. Häufigkeit, Dauer/Zeitpunkt und Schwere) "},{"$f":"IF('Eingabe Untersuchungsrahmen'!E60=\"\",\"k.A.\",WD_Info_Eis)","v":"k.A."}]
[null,null,{"$f":"'Eingabe Untersuchungsrahmen'!C61","v":"Eisglätte (z.B. Häufigkeit, Dauer/Zeitpunkt und Schwere) "},{"$f":"IF('Eingabe Untersuchungsrahmen'!E61=\"\",\"k.A.\",WD_Info_Glatt)","v":"k.A."}]
[null,null,{"$f":"'Eingabe Untersuchungsrahmen'!C62","v":"Sonstige Besonderheiten der Wetterbedingungen "},{"$f":"IF('Eingabe Untersuchungsrahmen'!E62=\"\",\"k.A.\",WD_Info_Wetter)","v":"k.A."}]
[null,null,{"$f":"'Eingabe Untersuchungsrahmen'!C63","v":"Besonderheiten in Bezug auf den Verkehr / die Verkehrsbedingungen"},{"$f":"IF('Eingabe Untersuchungsrahmen'!E63=\"\",\"k.A.\",WD_Info_Besonderheiten_Verkehr)","v":"k.A."}]
[]
[]
[null,"1. Gesamtergebnis der Ökobilanz"]
[null,null,"Erläuterungen zur Schreibweise der Ergebnisse:"]
[null,null,"Die Darstellung der absoluten Ergebnisse erfolgt als Dezimalzahl mit zwei Nachkommastellen. "]
[null,null,"Eine Ausnahme stellt die Wirkungskategorie Ozonabbaupotenzial dar. Da in dieser Wirkungskategorie sehr kleine Werte zu erwarten sind, wurde die wissenschaftliche Schreibweise gewählt. "]
[]
[null,null,"Funktionelle Einheit","Kumulierter Energie Aufwand\n(MJ / funktionelle Einheit)","Treibhauspotenzial \n(kg CO2-Äq / funktionelle Einheit)","Versauerungspotenzial\n(mol H+-Äq/ funktionelle Einheit)","Ozonabbaupotenzial\n(kg CFC11-Äq / funktionelle Einheit)","Photooxidantienpotenzial \n(kg NMVOC-Äq / funktionelle Einheit)"]
[null,null,{"$f":"Streuflaeche[[#Totals],[Bewertete Streufläche bSF  '[m²'] ]] &\" m² bewertete Streufläche im Bilanzzeitraum \"&TEXT('Eingabe Untersuchungsrahmen'!E42, \"TT.MM.JJJJ\")&\"-\"&TEXT('Eingabe Untersuchungsrahmen'!E43, \"TT.MM.JJJJ\")","v":"0 m² bewertete Streufläche im Bilanzzeitraum 01.11.2023-30.11.2023"},{"$f":"Ergebnis_Absolut[[#Totals],[Kumulierter Energie Aufwand\n(MJ / funktionelle Einheit)]]","v":0},{"$f":"Ergebnis_Absolut[[#Totals],[Treibhauspotenzial \n(kg CO2-Äq / funktionelle Einheit)]]","v":0},{"$f":"Ergebnis_Absolut[[#Totals],[Versauerungspotenzial\n(mol H+-Äq/ funktionelle Einheit)]]","v":0},{"$f":"Ergebnis_Absolut[[#Totals],[Ozonabbaupotenzial\n(kg CFC11-Äq / funktionelle Einheit)]]","v":0},{"$f":"Ergebnis_Absolut[[#Totals],[Photooxidantienpotenzial \n(kg NMVOC-Äq / funktionelle Einheit)]]","v":0}]
[null,null,"1  m² bewertete Streufläche im Bilanzzeitraum",{"$f":"D35/FU_bSF","v":{"$error":"#DIV/0!"}},{"$f":"E35/FU_bSF","v":{"$error":"#DIV/0!"}},{"$f":"F35/FU_bSF","v":{"$error":"#DIV/0!"}},{"$f":"G35/FU_bSF","v":{"$error":"#DIV/0!"}},{"$f":"H35/FU_bSF","v":{"$error":"#DIV/0!"}}]
[]
[]
[null,null,"Erläuterungen zur Datenqualität"]
[null,null,"In der nachfolgenden Tabelle wird die Datenqualtiät der spezifischen Daten dargestellt, die Sie eingegeben haben. "]
[null,null,"Die Datenqualität bildet nicht ab, welche Bedeutung die jeweiligen spezifischen Daten im Rahmen der Bilanz haben, "]
[null,null,"z.B. welchen Einfluss es auf das Ergebnis hätte, wenn statt eines grob abgeschätzten Wertes ein gemessener Wert eingegeben würde. "]
[null,null,"Prüfen Sie daher in der nachfolgenden differenzierten Darstellung der Ergebnisse, welche Prozesse besonders relevant sind, "]
[null,null,"und welche Datenqualität die entsprechenden von Ihnen  eingegebenen spezifischen Daten haben. "]
[null,null,"Ist der Beitrag eines Prozesses besonders groß, kann es sinnvoll sein Daten nachzuerheben, um die Datenqualität zu verbessern und das Ergebnis der Ökobilanz zu präzisieren. "]
[]
[null,null,"Datenqualität der spezifischen Daten","Anzahl","Anteil in %"]
[null,null,"gemessen",{"$f":"SUM(COUNTIF(INDIRECT({\"Eingabe_Meisterei_Intern_Prozess_Inventar[Datenqualität]\";\"Eingabe_Eigene_Stromerzeugung[Datenqualität]\";\"Eingabe_Eigene_Waermebereitstellung[Datenqualität]\";\"Eingabe_Ausbringungen_Fremdsalz[Datenqualität]\";\"Eingabe_Ausbringungen_FremdSole[Datenqualität]\";\"Eingabe_Ausbringungen[Datenqualität]\";\"Eingabe_Antransport[Datenqualität]\"}),C48))","v":0},{"$f":"D48/$D$51","v":{"v":0,"d":"0%"}}]
[null,null,"berechnet",{"$f":"SUM(COUNTIF(INDIRECT({\"Eingabe_Meisterei_Intern_Prozess_Inventar[Datenqualität]\";\"Eingabe_Eigene_Stromerzeugung[Datenqualität]\";\"Eingabe_Eigene_Waermebereitstellung[Datenqualität]\";\"Eingabe_Ausbringungen_Fremdsalz[Datenqualität]\";\"Eingabe_Ausbringungen_FremdSole[Datenqualität]\";\"Eingabe_Ausbringungen[Datenqualität]\";\"Eingabe_Antransport[Datenqualität]\"}),C49))","v":1},{"$f":"D49/$D$51","v":{"v":1,"d":"100%"}}]
[null,null,"abgeschätzt",{"$f":"SUM(COUNTIF(INDIRECT({\"Eingabe_Meisterei_Intern_Prozess_Inventar[Datenqualität]\";\"Eingabe_Eigene_Stromerzeugung[Datenqualität]\";\"Eingabe_Eigene_Waermebereitstellung[Datenqualität]\";\"Eingabe_Ausbringungen_Fremdsalz[Datenqualität]\";\"Eingabe_Ausbringungen_FremdSole[Datenqualität]\";\"Eingabe_Ausbringungen[Datenqualität]\";\"Eingabe_Antransport[Datenqualität]\"}),C50))","v":0},{"$f":"D50/$D$51","v":{"v":0,"d":"0%"}}]
[null,null,"Summe",{"$f":"SUM(D48:D50)","v":1},{"$f":"D51/$D$51","v":{"v":1,"d":"100%"}}]
[]
[]
[]
[null,"2. Darstellung der Ökobilanz-Ergebnisse differenziert nach Prozessen "]
[null,"2.1","Beitraganalyse"]
[null,null,"2.1.1 Absolute Ergebnisse nach Prozessen "]
[null,null,"Erläuterung:"]
[null,null,"In der nachfolgenden Tabelle werden die Zahlenwerte mit einem Farbbalken hinterlegt. Die Größe des Farbbalkens spiegelt die Größe des Beitrags innerhalb einer Umweltwirkungskategorie wieder."]
[]
[]
[]
[null,null,"Prozess","Kumulierter Energie Aufwand\n(MJ / funktionelle Einheit)","Treibhauspotenzial \n(kg CO2-Äq / funktionelle Einheit)","Versauerungspotenzial\n(mol H+-Äq/ funktionelle Einheit)","Ozonabbaupotenzial\n(kg CFC11-Äq / funktionelle Einheit)","Photooxidantienpotenzial \n(kg NMVOC-Äq / funktionelle Einheit)"]
[null,null,"Herstellung der Streumittel (trockene Streumittel und Sole)",{"$f":"Result_KEA_Sole_Herstellung+Result_KEA_Trockensalz_Herstellung","v":0},{"$f":"Result_GWP_Sole_Herstellung+Result_GWP_Trockensalz_Herstellung","v":0},{"$f":"Result_AP_Sole_Herstellung+Result_AP_Trockensalz_Herstellung","v":0},{"$f":"Result_ODP_Sole_Herstellung+Result_ODP_Trockensalz_Herstellung","v":0},{"$f":"Result_POCP_Sole_Herstellung+Result_POCP_Trockensalz_Herstellung","v":0}]
[null,null,"Transporte der Streumittel (trockene Streumittel und Sole)",{"$f":"Result_KEA_Antransport","v":0},{"$f":"Result_GWP_Antransport","v":0},{"$f":"Result_AP_Antransport","v":0},{"$f":"Result_ODP_Antransport","v":0},{"$f":"Result_POCP_Antransport","v":0}]
[null,null,"Ausbringung der Streumittel (direkte Emisssionen bei der Ausbringung und Herstellung Kraftstoffe)",{"$f":"Result_Ausbringung_KEA","v":0},{"$f":"Result_Ausbringung_GWP","v":0},{"$f":"Result_Ausbringung_AP","v":0},{"$f":"Result_Ausbringung_ODP","v":0},{"$f":"Result_Ausbringung_POCP","v":0}]
[null,null,"Stromverbrauch in der Meisterei / im Bauhof (Bereitstellung Strom, Netzbezug)",{"$f":"Eingabe_Strom_stromnetz*EF_KEA_Strom","v":0},{"$f":"Eingabe_Strom_stromnetz*EF_GWP_Strom","v":0},{"$f":"Eingabe_Strom_stromnetz*EF_AP_Strom","v":0},{"$f":"Eingabe_Strom_stromnetz*EF_ODP_Strom","v":0},{"$f":"Eingabe_Strom_stromnetz*EF_POCP_Strom","v":0}]
[null,null,"Stromverbrauch in der Meisterei / im Bauhof (Bereitstellung Strom, eigene Stromerzeugung)",{"$f":"Eingabe_Eigene_Stromerzeugung[Verbrauch]*Emissionsfaktoren!D$84","v":0},{"$f":"Eingabe_Eigene_Stromerzeugung[Verbrauch]*Emissionsfaktoren!E$84","v":0},{"$f":"Eingabe_Eigene_Stromerzeugung[Verbrauch]*Emissionsfaktoren!F$84","v":0},{"$f":"Eingabe_Eigene_Stromerzeugung[Verbrauch]*Emissionsfaktoren!G$84","v":0},{"$f":"Eingabe_Eigene_Stromerzeugung[Verbrauch]*Emissionsfaktoren!H$84","v":0}]
[null,null,"Wärmeverbrauch in der Meisterei / im Bauhof (Bereitstellung Wärme, Netzbezug)",{"$f":"Eingabe_Waermemix*EF_KEA_Waerme","v":0},{"$f":"Eingabe_Waermemix*EF_GWP_Waerme","v":0},{"$f":"Eingabe_Waermemix*EF_AP_Waerme","v":0},{"$f":"Eingabe_Waermemix*EF_ODP_Waerme","v":0},{"$f":"Eingabe_Waermemix*EF_POCP_Waerme","v":0}]
[null,null,"Wärmeverbrauch in der Meisterei / im Bauhof (Bereitstellung Wärme, eigene Wärmeerzeugung)",{"$f":"Result_KEA_Waerme_EigenE","v":0},{"$f":"Result_GWP_Waerme_EigenE","v":0},{"$f":"Result_AP_Waerme_EigenE","v":0},{"$f":"Result_ODP_Waerme_EigenE","v":0},{"$f":"Result_POCP_Waerme_EigenE","v":0}]
[null,null,"Wasserverbrauch (Bereitstellung Trinwasser, Bezug Leitungswasser) für Sole-Herstellung sowie die Reinigung von Fahrzeugen und Streumaschinen",{"$f":"Eingabe_Leitungswasser*EF_KEA_Wasser","v":0},{"$f":"Eingabe_Leitungswasser*EF_GWP_Wasser","v":0},{"$f":"Eingabe_Leitungswasser*EF_AP_Wasser","v":0},{"$f":"Eingabe_Leitungswasser*EF_ODP_Wasser","v":0},{"$f":"Eingabe_Leitungswasser*EF_POCP_Wasser","v":0}]
[null,null,"Herstellung von Motor- und Hydrauliköl sowie Diesel für Prozesse in der Meisterei / im Bauhof",{"$f":"Eingabe_Oel*Emissionsfaktoren!D102+Eingabe_Beladung_Dieselverbrauch*Emissionsfaktoren!D103","v":0},{"$f":"Eingabe_Oel*Emissionsfaktoren!E102+Eingabe_Beladung_Dieselverbrauch*Emissionsfaktoren!E103","v":0},{"$f":"Eingabe_Oel*Emissionsfaktoren!F102+Eingabe_Beladung_Dieselverbrauch*Emissionsfaktoren!F103","v":0},{"$f":"Eingabe_Oel*Emissionsfaktoren!G102+Eingabe_Beladung_Dieselverbrauch*Emissionsfaktoren!G103","v":0},{"$f":"Eingabe_Oel*Emissionsfaktoren!H102+Eingabe_Beladung_Dieselverbrauch*Emissionsfaktoren!H103","v":0}]
[null,null,"Summe",{"$f":"SUBTOTAL(109,Ergebnis_Absolut[Kumulierter Energie Aufwand\n(MJ / funktionelle Einheit)])","v":0},{"$f":"SUBTOTAL(109,Ergebnis_Absolut[Treibhauspotenzial \n(kg CO2-Äq / funktionelle Einheit)])","v":0},{"$f":"SUBTOTAL(109,Ergebnis_Absolut[Versauerungspotenzial\n(mol H+-Äq/ funktionelle Einheit)])","v":0},{"$f":"SUBTOTAL(109,Ergebnis_Absolut[Ozonabbaupotenzial\n(kg CFC11-Äq / funktionelle Einheit)])","v":0},{"$f":"SUBTOTAL(109,Ergebnis_Absolut[Photooxidantienpotenzial \n(kg NMVOC-Äq / funktionelle Einheit)])","v":0}]
[]
[null,null,"2.1.2 Anteile der einzelnen Prozesse am Gesamtergebnis "]
[null,null,"Prozess","Kumulierter Energie Aufwand\n(MJ / funktionelle Einheit)","Treibhauspotenzial \n(kg CO2-Äq / funktionelle Einheit)","Versauerungspotenzial\n(mol H+-Äq/ funktionelle Einheit)","Ozonabbaupotenzial\n(kg CFC11-Äq / funktionelle Einheit)","Photooxidantienpotenzial \n(kg NMVOC-Äq / funktionelle Einheit)"]
[null,null,{"$f":"C64","v":"Herstellung der Streumittel (trockene Streumittel und Sole)"},{"$f":"D64/Ergebnis_Absolut[[#Totals],[Kumulierter Energie Aufwand\n(MJ / funktionelle Einheit)]]","v":{"$error":"#DIV/0!"}},{"$f":"E64/Ergebnis_Absolut[[#Totals],[Treibhauspotenzial \n(kg CO2-Äq / funktionelle Einheit)]]","v":{"$error":"#DIV/0!"}},{"$f":"F64/Ergebnis_Absolut[[#Totals],[Versauerungspotenzial\n(mol H+-Äq/ funktionelle Einheit)]]","v":{"$error":"#DIV/0!"}},{"$f":"G64/Ergebnis_Absolut[[#Totals],[Ozonabbaupotenzial\n(kg CFC11-Äq / funktionelle Einheit)]]","v":{"$error":"#DIV/0!"}},{"$f":"H64/Ergebnis_Absolut[[#Totals],[Photooxidantienpotenzial \n(kg NMVOC-Äq / funktionelle Einheit)]]","v":{"$error":"#DIV/0!"}}]
[null,null,"Transporte der Streumittel (trockene Streumittel und Sole)",{"$f":"D65/Ergebnis_Absolut[[#Totals],[Kumulierter Energie Aufwand\n(MJ / funktionelle Einheit)]]","v":{"$error":"#DIV/0!"}},{"$f":"E65/Ergebnis_Absolut[[#Totals],[Treibhauspotenzial \n(kg CO2-Äq / funktionelle Einheit)]]","v":{"$error":"#DIV/0!"}},{"$f":"F65/Ergebnis_Absolut[[#Totals],[Versauerungspotenzial\n(mol H+-Äq/ funktionelle Einheit)]]","v":{"$error":"#DIV/0!"}},{"$f":"G65/Ergebnis_Absolut[[#Totals],[Ozonabbaupotenzial\n(kg CFC11-Äq / funktionelle Einheit)]]","v":{"$error":"#DIV/0!"}},{"$f":"H65/Ergebnis_Absolut[[#Totals],[Photooxidantienpotenzial \n(kg NMVOC-Äq / funktionelle Einheit)]]","v":{"$error":"#DIV/0!"}}]
[null,null,"Ausbringung der Streumittel (direkte Emisssionen bei der Ausbringung und Herstellung Kraftstoffe)",{"$f":"D66/Ergebnis_Absolut[[#Totals],[Kumulierter Energie Aufwand\n(MJ / funktionelle Einheit)]]","v":{"$error":"#DIV/0!"}},{"$f":"E66/Ergebnis_Absolut[[#Totals],[Treibhauspotenzial \n(kg CO2-Äq / funktionelle Einheit)]]","v":{"$error":"#DIV/0!"}},{"$f":"F66/Ergebnis_Absolut[[#Totals],[Versauerungspotenzial\n(mol H+-Äq/ funktionelle Einheit)]]","v":{"$error":"#DIV/0!"}},{"$f":"G66/Ergebnis_Absolut[[#Totals],[Ozonabbaupotenzial\n(kg CFC11-Äq / funktionelle Einheit)]]","v":{"$error":"#DIV/0!"}},{"$f":"H66/Ergebnis_Absolut[[#Totals],[Photooxidantienpotenzial \n(kg NMVOC-Äq / funktionelle Einheit)]]","v":{"$error":"#DIV/0!"}}]
[null,null,"Stromverbrauch in der Meisterei / im Bauhof (Bereitstellung Strom, Netzbezug)",{"$f":"D67/Ergebnis_Absolut[[#Totals],[Kumulierter Energie Aufwand\n(MJ / funktionelle Einheit)]]","v":{"$error":"#DIV/0!"}},{"$f":"E67/Ergebnis_Absolut[[#Totals],[Treibhauspotenzial \n(kg CO2-Äq / funktionelle Einheit)]]","v":{"$error":"#DIV/0!"}},{"$f":"F67/Ergebnis_Absolut[[#Totals],[Versauerungspotenzial\n(mol H+-Äq/ funktionelle Einheit)]]","v":{"$error":"#DIV/0!"}},{"$f":"G67/Ergebnis_Absolut[[#Totals],[Ozonabbaupotenzial\n(kg CFC11-Äq / funktionelle Einheit)]]","v":{"$error":"#DIV/0!"}},{"$f":"H67/Ergebnis_Absolut[[#Totals],[Photooxidantienpotenzial \n(kg NMVOC-Äq / funktionelle Einheit)]]","v":{"$error":"#DIV/0!"}}]
[null,null,"Stromverbrauch in der Meisterei / im Bauhof (Bereitstellung Strom, eigene Stromerzeugung)",{"$f":"D68/Ergebnis_Absolut[[#Totals],[Kumulierter Energie Aufwand\n(MJ / funktionelle Einheit)]]","v":{"$error":"#DIV/0!"}},{"$f":"E68/Ergebnis_Absolut[[#Totals],[Treibhauspotenzial \n(kg CO2-Äq / funktionelle Einheit)]]","v":{"$error":"#DIV/0!"}},{"$f":"F68/Ergebnis_Absolut[[#Totals],[Versauerungspotenzial\n(mol H+-Äq/ funktionelle Einheit)]]","v":{"$error":"#DIV/0!"}},{"$f":"G68/Ergebnis_Absolut[[#Totals],[Ozonabbaupotenzial\n(kg CFC11-Äq / funktionelle Einheit)]]","v":{"$error":"#DIV/0!"}},{"$f":"H68/Ergebnis_Absolut[[#Totals],[Photooxidantienpotenzial \n(kg NMVOC-Äq / funktionelle Einheit)]]","v":{"$error":"#DIV/0!"}}]
[null,null,"Wärmeverbrauch in der Meisterei / im Bauhof (Bereitstellung Wärme, Netzbezug)",{"$f":"D69/Ergebnis_Absolut[[#Totals],[Kumulierter Energie Aufwand\n(MJ / funktionelle Einheit)]]","v":{"$error":"#DIV/0!"}},{"$f":"E69/Ergebnis_Absolut[[#Totals],[Treibhauspotenzial \n(kg CO2-Äq / funktionelle Einheit)]]","v":{"$error":"#DIV/0!"}},{"$f":"F69/Ergebnis_Absolut[[#Totals],[Versauerungspotenzial\n(mol H+-Äq/ funktionelle Einheit)]]","v":{"$error":"#DIV/0!"}},{"$f":"G69/Ergebnis_Absolut[[#Totals],[Ozonabbaupotenzial\n(kg CFC11-Äq / funktionelle Einheit)]]","v":{"$error":"#DIV/0!"}},{"$f":"H69/Ergebnis_Absolut[[#Totals],[Photooxidantienpotenzial \n(kg NMVOC-Äq / funktionelle Einheit)]]","v":{"$error":"#DIV/0!"}}]
[null,null,{"$f":"C70","v":"Wärmeverbrauch in der Meisterei / im Bauhof (Bereitstellung Wärme, eigene Wärmeerzeugung)"},{"$f":"D70/Ergebnis_Absolut[[#Totals],[Kumulierter Energie Aufwand\n(MJ / funktionelle Einheit)]]","v":{"$error":"#DIV/0!"}},{"$f":"E70/Ergebnis_Absolut[[#Totals],[Treibhauspotenzial \n(kg CO2-Äq / funktionelle Einheit)]]","v":{"$error":"#DIV/0!"}},{"$f":"F70/Ergebnis_Absolut[[#Totals],[Versauerungspotenzial\n(mol H+-Äq/ funktionelle Einheit)]]","v":{"$error":"#DIV/0!"}},{"$f":"G70/Ergebnis_Absolut[[#Totals],[Ozonabbaupotenzial\n(kg CFC11-Äq / funktionelle Einheit)]]","v":{"$error":"#DIV/0!"}},{"$f":"H70/Ergebnis_Absolut[[#Totals],[Photooxidantienpotenzial \n(kg NMVOC-Äq / funktionelle Einheit)]]","v":{"$error":"#DIV/0!"}}]
[null,null,{"$f":"C71","v":"Wasserverbrauch (Bereitstellung Trinwasser, Bezug Leitungswasser) für Sole-Herstellung sowie die Reinigung von Fahrzeugen und Streumaschinen"},{"$f":"D71/Ergebnis_Absolut[[#Totals],[Kumulierter Energie Aufwand\n(MJ / funktionelle Einheit)]]","v":{"$error":"#DIV/0!"}},{"$f":"E71/Ergebnis_Absolut[[#Totals],[Treibhauspotenzial \n(kg CO2-Äq / funktionelle Einheit)]]","v":{"$error":"#DIV/0!"}},{"$f":"F71/Ergebnis_Absolut[[#Totals],[Versauerungspotenzial\n(mol H+-Äq/ funktionelle Einheit)]]","v":{"$error":"#DIV/0!"}},{"$f":"G71/Ergebnis_Absolut[[#Totals],[Ozonabbaupotenzial\n(kg CFC11-Äq / funktionelle Einheit)]]","v":{"$error":"#DIV/0!"}},{"$f":"H71/Ergebnis_Absolut[[#Totals],[Photooxidantienpotenzial \n(kg NMVOC-Äq / funktionelle Einheit)]]","v":{"$error":"#DIV/0!"}}]
[null,null,"Herstellung von Motor- und Hydrauliköl sowie Diesel für Prozesse in der Meisterei / im Bauhof",{"$f":"D72/Ergebnis_Absolut[[#Totals],[Kumulierter Energie Aufwand\n(MJ / funktionelle Einheit)]]","v":{"$error":"#DIV/0!"}},{"$f":"E72/Ergebnis_Absolut[[#Totals],[Treibhauspotenzial \n(kg CO2-Äq / funktionelle Einheit)]]","v":{"$error":"#DIV/0!"}},{"$f":"F72/Ergebnis_Absolut[[#Totals],[Versauerungspotenzial\n(mol H+-Äq/ funktionelle Einheit)]]","v":{"$error":"#DIV/0!"}},{"$f":"G72/Ergebnis_Absolut[[#Totals],[Ozonabbaupotenzial\n(kg CFC11-Äq / funktionelle Einheit)]]","v":{"$error":"#DIV/0!"}},{"$f":"H72/Ergebnis_Absolut[[#Totals],[Photooxidantienpotenzial \n(kg NMVOC-Äq / funktionelle Einheit)]]","v":{"$error":"#DIV/0!"}}]
[null,null,"Summe",{"$f":"SUBTOTAL(109,Ergebnisse!$D$77:$D$85)","v":{"v":0,"d":"0%"}},{"$f":"SUBTOTAL(109,Ergebnisse!$E$77:$E$85)","v":{"v":0,"d":"0%"}},{"$f":"SUBTOTAL(109,Ergebnisse!$F$77:$F$85)","v":{"v":0,"d":"0%"}},{"$f":"SUBTOTAL(109,Ergebnisse!$G$77:$G$85)","v":{"v":0,"d":"0%"}},{"$f":"SUBTOTAL(109,Ergebnisse!$H$77:$H$85)","v":{"v":0,"d":"0%"}}]
[]
[null,"2.2",{"$f":"C64","v":"Herstellung der Streumittel (trockene Streumittel und Sole)"}]
[null,null,"2.2.1 Verbrauch an trockenen Streumitteln (Trockensalz für die Ausbringung sowie für die eigene Herstellung von Sole)"]
[null,null,"Bezeichnung Streumittel","Kumulierter Energie Aufwand\n(MJ / funktionelle Einheit)","Treibhauspotenzial \n(kg CO2-Äq / funktionelle Einheit)","Versauerungspotenzial\n(mol H+-Äq/ funktionelle Einheit)","Ozonabbaupotenzial\n(kg CFC11-Äq / funktionelle Einheit","Photooxidantienpotenzial \n(kg NMVOC-Äq / funktionelle Einheit)"]
[null,null,"Natriumchlorid (aus Steinsalz)",{"$f":"SUMIF(Eingabe_Ausbringungen_Fremdsalz[Bezeichnung Streumittel (Trockensalz)],Result_Trockensalz[[#This Row],[Bezeichnung Streumittel]],Eingabe_Ausbringungen_Fremdsalz[Verbrauch '[Tonnen/funktionelle Einheit']])*_xlfn.XLOOKUP(Result_Trockensalz[[#This Row],[Bezeichnung Streumittel]],EF_StreumittelTrocken_Herstellung[Trockensalz],EF_StreumittelTrocken_Herstellung[KEA (MJ  / Tonne)])","v":0},{"$f":"SUMIF(Eingabe_Ausbringungen_Fremdsalz[Bezeichnung Streumittel (Trockensalz)],Result_Trockensalz[[#This Row],[Bezeichnung Streumittel]],Eingabe_Ausbringungen_Fremdsalz[Verbrauch '[Tonnen/funktionelle Einheit']])*_xlfn.XLOOKUP(Result_Trockensalz[[#This Row],[Bezeichnung Streumittel]],EF_StreumittelTrocken_Herstellung[Trockensalz],EF_StreumittelTrocken_Herstellung[GWP (kg CO2Äq.  /  Tonne)])","v":0},{"$f":"SUMIF(Eingabe_Ausbringungen_Fremdsalz[Bezeichnung Streumittel (Trockensalz)],Result_Trockensalz[[#This Row],[Bezeichnung Streumittel]],Eingabe_Ausbringungen_Fremdsalz[Verbrauch '[Tonnen/funktionelle Einheit']])*_xlfn.XLOOKUP(Result_Trockensalz[[#This Row],[Bezeichnung Streumittel]],EF_StreumittelTrocken_Herstellung[Trockensalz],EF_StreumittelTrocken_Herstellung[AP (mol H+ Äq. / Tonne)])","v":0},{"$f":"SUMIF(Eingabe_Ausbringungen_Fremdsalz[Bezeichnung Streumittel (Trockensalz)],Result_Trockensalz[[#This Row],[Bezeichnung Streumittel]],Eingabe_Ausbringungen_Fremdsalz[Verbrauch '[Tonnen/funktionelle Einheit']])*_xlfn.XLOOKUP(Result_Trockensalz[[#This Row],[Bezeichnung Streumittel]],EF_StreumittelTrocken_Herstellung[Trockensalz],EF_StreumittelTrocken_Herstellung[ODP (kg FCKW-11 Äq. / Tonne)])","v":0},{"$f":"SUMIF(Eingabe_Ausbringungen_Fremdsalz[Bezeichnung Streumittel (Trockensalz)],Result_Trockensalz[[#This Row],[Bezeichnung Streumittel]],Eingabe_Ausbringungen_Fremdsalz[Verbrauch '[Tonnen/funktionelle Einheit']])*_xlfn.XLOOKUP(Result_Trockensalz[[#This Row],[Bezeichnung Streumittel]],EF_StreumittelTrocken_Herstellung[Trockensalz],EF_StreumittelTrocken_Herstellung[POCP (kg NMVOC Äq. / Tonne)])","v":0}]
[null,null,"Natriumchlorid (aus Siedesalz)",{"$f":"SUMIF(Eingabe_Ausbringungen_Fremdsalz[Bezeichnung Streumittel (Trockensalz)],Result_Trockensalz[[#This Row],[Bezeichnung Streumittel]],Eingabe_Ausbringungen_Fremdsalz[Verbrauch '[Tonnen/funktionelle Einheit']])*_xlfn.XLOOKUP(Result_Trockensalz[[#This Row],[Bezeichnung Streumittel]],EF_StreumittelTrocken_Herstellung[Trockensalz],EF_StreumittelTrocken_Herstellung[KEA (MJ  / Tonne)])","v":0},{"$f":"SUMIF(Eingabe_Ausbringungen_Fremdsalz[Bezeichnung Streumittel (Trockensalz)],Result_Trockensalz[[#This Row],[Bezeichnung Streumittel]],Eingabe_Ausbringungen_Fremdsalz[Verbrauch '[Tonnen/funktionelle Einheit']])*_xlfn.XLOOKUP(Result_Trockensalz[[#This Row],[Bezeichnung Streumittel]],EF_StreumittelTrocken_Herstellung[Trockensalz],EF_StreumittelTrocken_Herstellung[GWP (kg CO2Äq.  /  Tonne)])","v":0},{"$f":"SUMIF(Eingabe_Ausbringungen_Fremdsalz[Bezeichnung Streumittel (Trockensalz)],Result_Trockensalz[[#This Row],[Bezeichnung Streumittel]],Eingabe_Ausbringungen_Fremdsalz[Verbrauch '[Tonnen/funktionelle Einheit']])*_xlfn.XLOOKUP(Result_Trockensalz[[#This Row],[Bezeichnung Streumittel]],EF_StreumittelTrocken_Herstellung[Trockensalz],EF_StreumittelTrocken_Herstellung[AP (mol H+ Äq. / Tonne)])","v":0},{"$f":"SUMIF(Eingabe_Ausbringungen_Fremdsalz[Bezeichnung Streumittel (Trockensalz)],Result_Trockensalz[[#This Row],[Bezeichnung Streumittel]],Eingabe_Ausbringungen_Fremdsalz[Verbrauch '[Tonnen/funktionelle Einheit']])*_xlfn.XLOOKUP(Result_Trockensalz[[#This Row],[Bezeichnung Streumittel]],EF_StreumittelTrocken_Herstellung[Trockensalz],EF_StreumittelTrocken_Herstellung[ODP (kg FCKW-11 Äq. / Tonne)])","v":0},{"$f":"SUMIF(Eingabe_Ausbringungen_Fremdsalz[Bezeichnung Streumittel (Trockensalz)],Result_Trockensalz[[#This Row],[Bezeichnung Streumittel]],Eingabe_Ausbringungen_Fremdsalz[Verbrauch '[Tonnen/funktionelle Einheit']])*_xlfn.XLOOKUP(Result_Trockensalz[[#This Row],[Bezeichnung Streumittel]],EF_StreumittelTrocken_Herstellung[Trockensalz],EF_StreumittelTrocken_Herstellung[POCP (kg NMVOC Äq. / Tonne)])","v":0}]
[null,null,"Natriumchlorid (aus Meersalz)",{"$f":"SUMIF(Eingabe_Ausbringungen_Fremdsalz[Bezeichnung Streumittel (Trockensalz)],Result_Trockensalz[[#This Row],[Bezeichnung Streumittel]],Eingabe_Ausbringungen_Fremdsalz[Verbrauch '[Tonnen/funktionelle Einheit']])*_xlfn.XLOOKUP(Result_Trockensalz[[#This Row],[Bezeichnung Streumittel]],EF_StreumittelTrocken_Herstellung[Trockensalz],EF_StreumittelTrocken_Herstellung[KEA (MJ  / Tonne)])","v":0},{"$f":"SUMIF(Eingabe_Ausbringungen_Fremdsalz[Bezeichnung Streumittel (Trockensalz)],Result_Trockensalz[[#This Row],[Bezeichnung Streumittel]],Eingabe_Ausbringungen_Fremdsalz[Verbrauch '[Tonnen/funktionelle Einheit']])*_xlfn.XLOOKUP(Result_Trockensalz[[#This Row],[Bezeichnung Streumittel]],EF_StreumittelTrocken_Herstellung[Trockensalz],EF_StreumittelTrocken_Herstellung[GWP (kg CO2Äq.  /  Tonne)])","v":0},{"$f":"SUMIF(Eingabe_Ausbringungen_Fremdsalz[Bezeichnung Streumittel (Trockensalz)],Result_Trockensalz[[#This Row],[Bezeichnung Streumittel]],Eingabe_Ausbringungen_Fremdsalz[Verbrauch '[Tonnen/funktionelle Einheit']])*_xlfn.XLOOKUP(Result_Trockensalz[[#This Row],[Bezeichnung Streumittel]],EF_StreumittelTrocken_Herstellung[Trockensalz],EF_StreumittelTrocken_Herstellung[AP (mol H+ Äq. / Tonne)])","v":0},{"$f":"SUMIF(Eingabe_Ausbringungen_Fremdsalz[Bezeichnung Streumittel (Trockensalz)],Result_Trockensalz[[#This Row],[Bezeichnung Streumittel]],Eingabe_Ausbringungen_Fremdsalz[Verbrauch '[Tonnen/funktionelle Einheit']])*_xlfn.XLOOKUP(Result_Trockensalz[[#This Row],[Bezeichnung Streumittel]],EF_StreumittelTrocken_Herstellung[Trockensalz],EF_StreumittelTrocken_Herstellung[ODP (kg FCKW-11 Äq. / Tonne)])","v":0},{"$f":"SUMIF(Eingabe_Ausbringungen_Fremdsalz[Bezeichnung Streumittel (Trockensalz)],Result_Trockensalz[[#This Row],[Bezeichnung Streumittel]],Eingabe_Ausbringungen_Fremdsalz[Verbrauch '[Tonnen/funktionelle Einheit']])*_xlfn.XLOOKUP(Result_Trockensalz[[#This Row],[Bezeichnung Streumittel]],EF_StreumittelTrocken_Herstellung[Trockensalz],EF_StreumittelTrocken_Herstellung[POCP (kg NMVOC Äq. / Tonne)])","v":0}]
[null,null,"Calciumchlorid (Prills, 100%)      ",{"$f":"SUMIF(Eingabe_Ausbringungen_Fremdsalz[Bezeichnung Streumittel (Trockensalz)],Result_Trockensalz[[#This Row],[Bezeichnung Streumittel]],Eingabe_Ausbringungen_Fremdsalz[Verbrauch '[Tonnen/funktionelle Einheit']])*_xlfn.XLOOKUP(Result_Trockensalz[[#This Row],[Bezeichnung Streumittel]],EF_StreumittelTrocken_Herstellung[Trockensalz],EF_StreumittelTrocken_Herstellung[KEA (MJ  / Tonne)])","v":0},{"$f":"SUMIF(Eingabe_Ausbringungen_Fremdsalz[Bezeichnung Streumittel (Trockensalz)],Result_Trockensalz[[#This Row],[Bezeichnung Streumittel]],Eingabe_Ausbringungen_Fremdsalz[Verbrauch '[Tonnen/funktionelle Einheit']])*_xlfn.XLOOKUP(Result_Trockensalz[[#This Row],[Bezeichnung Streumittel]],EF_StreumittelTrocken_Herstellung[Trockensalz],EF_StreumittelTrocken_Herstellung[GWP (kg CO2Äq.  /  Tonne)])","v":0},{"$f":"SUMIF(Eingabe_Ausbringungen_Fremdsalz[Bezeichnung Streumittel (Trockensalz)],Result_Trockensalz[[#This Row],[Bezeichnung Streumittel]],Eingabe_Ausbringungen_Fremdsalz[Verbrauch '[Tonnen/funktionelle Einheit']])*_xlfn.XLOOKUP(Result_Trockensalz[[#This Row],[Bezeichnung Streumittel]],EF_StreumittelTrocken_Herstellung[Trockensalz],EF_StreumittelTrocken_Herstellung[AP (mol H+ Äq. / Tonne)])","v":0},{"$f":"SUMIF(Eingabe_Ausbringungen_Fremdsalz[Bezeichnung Streumittel (Trockensalz)],Result_Trockensalz[[#This Row],[Bezeichnung Streumittel]],Eingabe_Ausbringungen_Fremdsalz[Verbrauch '[Tonnen/funktionelle Einheit']])*_xlfn.XLOOKUP(Result_Trockensalz[[#This Row],[Bezeichnung Streumittel]],EF_StreumittelTrocken_Herstellung[Trockensalz],EF_StreumittelTrocken_Herstellung[ODP (kg FCKW-11 Äq. / Tonne)])","v":0},{"$f":"SUMIF(Eingabe_Ausbringungen_Fremdsalz[Bezeichnung Streumittel (Trockensalz)],Result_Trockensalz[[#This Row],[Bezeichnung Streumittel]],Eingabe_Ausbringungen_Fremdsalz[Verbrauch '[Tonnen/funktionelle Einheit']])*_xlfn.XLOOKUP(Result_Trockensalz[[#This Row],[Bezeichnung Streumittel]],EF_StreumittelTrocken_Herstellung[Trockensalz],EF_StreumittelTrocken_Herstellung[POCP (kg NMVOC Äq. / Tonne)])","v":0}]
[null,null,"Calciumchlorid (Flakes 76-82%)     ",{"$f":"SUMIF(Eingabe_Ausbringungen_Fremdsalz[Bezeichnung Streumittel (Trockensalz)],Result_Trockensalz[[#This Row],[Bezeichnung Streumittel]],Eingabe_Ausbringungen_Fremdsalz[Verbrauch '[Tonnen/funktionelle Einheit']])*_xlfn.XLOOKUP(Result_Trockensalz[[#This Row],[Bezeichnung Streumittel]],EF_StreumittelTrocken_Herstellung[Trockensalz],EF_StreumittelTrocken_Herstellung[KEA (MJ  / Tonne)])","v":0},{"$f":"SUMIF(Eingabe_Ausbringungen_Fremdsalz[Bezeichnung Streumittel (Trockensalz)],Result_Trockensalz[[#This Row],[Bezeichnung Streumittel]],Eingabe_Ausbringungen_Fremdsalz[Verbrauch '[Tonnen/funktionelle Einheit']])*_xlfn.XLOOKUP(Result_Trockensalz[[#This Row],[Bezeichnung Streumittel]],EF_StreumittelTrocken_Herstellung[Trockensalz],EF_StreumittelTrocken_Herstellung[GWP (kg CO2Äq.  /  Tonne)])","v":0},{"$f":"SUMIF(Eingabe_Ausbringungen_Fremdsalz[Bezeichnung Streumittel (Trockensalz)],Result_Trockensalz[[#This Row],[Bezeichnung Streumittel]],Eingabe_Ausbringungen_Fremdsalz[Verbrauch '[Tonnen/funktionelle Einheit']])*_xlfn.XLOOKUP(Result_Trockensalz[[#This Row],[Bezeichnung Streumittel]],EF_StreumittelTrocken_Herstellung[Trockensalz],EF_StreumittelTrocken_Herstellung[AP (mol H+ Äq. / Tonne)])","v":0},{"$f":"SUMIF(Eingabe_Ausbringungen_Fremdsalz[Bezeichnung Streumittel (Trockensalz)],Result_Trockensalz[[#This Row],[Bezeichnung Streumittel]],Eingabe_Ausbringungen_Fremdsalz[Verbrauch '[Tonnen/funktionelle Einheit']])*_xlfn.XLOOKUP(Result_Trockensalz[[#This Row],[Bezeichnung Streumittel]],EF_StreumittelTrocken_Herstellung[Trockensalz],EF_StreumittelTrocken_Herstellung[ODP (kg FCKW-11 Äq. / Tonne)])","v":0},{"$f":"SUMIF(Eingabe_Ausbringungen_Fremdsalz[Bezeichnung Streumittel (Trockensalz)],Result_Trockensalz[[#This Row],[Bezeichnung Streumittel]],Eingabe_Ausbringungen_Fremdsalz[Verbrauch '[Tonnen/funktionelle Einheit']])*_xlfn.XLOOKUP(Result_Trockensalz[[#This Row],[Bezeichnung Streumittel]],EF_StreumittelTrocken_Herstellung[Trockensalz],EF_StreumittelTrocken_Herstellung[POCP (kg NMVOC Äq. / Tonne)])","v":0}]
[null,null,"Summe",{"$f":"SUBTOTAL(109,Result_Trockensalz[Kumulierter Energie Aufwand\n(MJ / funktionelle Einheit)])","v":0},{"$f":"SUBTOTAL(109,Result_Trockensalz[Treibhauspotenzial \n(kg CO2-Äq / funktionelle Einheit)])","v":0},{"$f":"SUBTOTAL(109,Result_Trockensalz[Versauerungspotenzial\n(mol H+-Äq/ funktionelle Einheit)])","v":0},{"$f":"SUBTOTAL(109,Result_Trockensalz[Ozonabbaupotenzial\n(kg CFC11-Äq / funktionelle Einheit])","v":0},{"$f":"SUBTOTAL(109,Result_Trockensalz[Photooxidantienpotenzial \n(kg NMVOC-Äq / funktionelle Einheit)])","v":0}]
[]
[null,null,"2.2.2 Verbrauchte Fremdsole (Fremdsole in Anwendungskonzentration sowie konzentrierte Fremdsole)"]
[null,null,"Bezeichnung Streumittel","Kumulierter Energie Aufwand\n(MJ / funktionelle Einheit)","Treibhauspotenzial \n(kg CO2-Äq / funktionelle Einheit)","Versauerungspotenzial\n(mol H+-Äq/ funktionelle Einheit)","Ozonabbaupotenzial\n(kg CFC11-Äq / funktionelle Einheit)","Photooxidantienpotenzial \n(kg NMVOC-Äq / funktionelle Einheit)"]
[null,null,"Natriumchlorid-Sole, konzentrierte Fremdsole",{"$f":"SUMIFS(Eingabe_Ausbringungen_FremdSole[Menge an eingesetzter Fremdesole],Eingabe_Ausbringungen_FremdSole[Bezeichnung Streumittel (Sole)],\"Natriumchlorid-Sole\",Eingabe_Ausbringungen_FremdSole[[Bezug von konzentrierter oder anwendungsfertiger Fremdsole ]],\"konzentrierte Fremdsole\")*EF_KEA_NaCl_Konz_Sole","v":0},{"$f":"SUMIFS(Eingabe_Ausbringungen_FremdSole[Menge an eingesetzter Fremdesole],Eingabe_Ausbringungen_FremdSole[Bezeichnung Streumittel (Sole)],\"Natriumchlorid-Sole\",Eingabe_Ausbringungen_FremdSole[[Bezug von konzentrierter oder anwendungsfertiger Fremdsole ]],\"konzentrierte Fremdsole\")*EF_GWP_NaCl_Konz_Sole","v":0},{"$f":"SUMIFS(Eingabe_Ausbringungen_FremdSole[Menge an eingesetzter Fremdesole],Eingabe_Ausbringungen_FremdSole[Bezeichnung Streumittel (Sole)],\"Natriumchlorid-Sole\",Eingabe_Ausbringungen_FremdSole[[Bezug von konzentrierter oder anwendungsfertiger Fremdsole ]],\"konzentrierte Fremdsole\")*EF_AP_NaCl_Konz_Sole","v":0},{"$f":"SUMIFS(Eingabe_Ausbringungen_FremdSole[Menge an eingesetzter Fremdesole],Eingabe_Ausbringungen_FremdSole[Bezeichnung Streumittel (Sole)],\"Natriumchlorid-Sole\",Eingabe_Ausbringungen_FremdSole[[Bezug von konzentrierter oder anwendungsfertiger Fremdsole ]],\"konzentrierte Fremdsole\")*EF_ODP_NaCl_Konz_Sole","v":0},{"$f":"SUMIFS(Eingabe_Ausbringungen_FremdSole[Menge an eingesetzter Fremdesole],Eingabe_Ausbringungen_FremdSole[Bezeichnung Streumittel (Sole)],\"Natriumchlorid-Sole\",Eingabe_Ausbringungen_FremdSole[[Bezug von konzentrierter oder anwendungsfertiger Fremdsole ]],\"konzentrierte Fremdsole\")*EF_POCP_NaCl_Konz_Sole","v":0}]
[null,null,"Natriumchlorid-Sole, anwendungsfertige Fremdsole",{"$f":"SUMIFS(Eingabe_Ausbringungen_FremdSole[Menge an eingesetzter Fremdesole],Eingabe_Ausbringungen_FremdSole[Bezeichnung Streumittel (Sole)],\"Natriumchlorid-Sole\",Eingabe_Ausbringungen_FremdSole[[Bezug von konzentrierter oder anwendungsfertiger Fremdsole ]],\"anwendungsfertige Fremdsole\")*(EF_KEA_NaCl_Konz_Sole+1.5*EF_KEA_Strom)+SUMIFS(Eingabe_Ausbringungen_FremdSole[Wasserverbrauch für die Verdünnung bei Herstellern (Tonne/FU), nur relevant für anwendigungsfertige Fremdsole],Eingabe_Ausbringungen_FremdSole[Bezeichnung Streumittel (Sole)],\"Natriumchlorid-Sole\",Eingabe_Ausbringungen_FremdSole[[Bezug von konzentrierter oder anwendungsfertiger Fremdsole ]],\"anwendungsfertige Fremdsole\")*EF_KEA_Wasser*1000","v":0},{"$f":"SUMIFS(Eingabe_Ausbringungen_FremdSole[Menge an eingesetzter Fremdesole],Eingabe_Ausbringungen_FremdSole[Bezeichnung Streumittel (Sole)],\"Natriumchlorid-Sole\",Eingabe_Ausbringungen_FremdSole[[Bezug von konzentrierter oder anwendungsfertiger Fremdsole ]],\"anwendungsfertige Fremdsole\")*(EF_GWP_NaCl_Konz_Sole+1.5*EF_GWP_Strom)+SUMIFS(Eingabe_Ausbringungen_FremdSole[Wasserverbrauch für die Verdünnung bei Herstellern (Tonne/FU), nur relevant für anwendigungsfertige Fremdsole],Eingabe_Ausbringungen_FremdSole[Bezeichnung Streumittel (Sole)],\"Natriumchlorid-Sole\",Eingabe_Ausbringungen_FremdSole[[Bezug von konzentrierter oder anwendungsfertiger Fremdsole ]],\"anwendungsfertige Fremdsole\")*EF_GWP_Wasser*1000","v":0},{"$f":"SUMIFS(Eingabe_Ausbringungen_FremdSole[Menge an eingesetzter Fremdesole],Eingabe_Ausbringungen_FremdSole[Bezeichnung Streumittel (Sole)],\"Natriumchlorid-Sole\",Eingabe_Ausbringungen_FremdSole[[Bezug von konzentrierter oder anwendungsfertiger Fremdsole ]],\"anwendungsfertige Fremdsole\")*(EF_AP_NaCl_Konz_Sole+1.5*EF_AP_Strom)+SUMIFS(Eingabe_Ausbringungen_FremdSole[Wasserverbrauch für die Verdünnung bei Herstellern (Tonne/FU), nur relevant für anwendigungsfertige Fremdsole],Eingabe_Ausbringungen_FremdSole[Bezeichnung Streumittel (Sole)],\"Natriumchlorid-Sole\",Eingabe_Ausbringungen_FremdSole[[Bezug von konzentrierter oder anwendungsfertiger Fremdsole ]],\"anwendungsfertige Fremdsole\")*EF_AP_Wasser*1000","v":0},{"$f":"SUMIFS(Eingabe_Ausbringungen_FremdSole[Menge an eingesetzter Fremdesole],Eingabe_Ausbringungen_FremdSole[Bezeichnung Streumittel (Sole)],\"Natriumchlorid-Sole\",Eingabe_Ausbringungen_FremdSole[[Bezug von konzentrierter oder anwendungsfertiger Fremdsole ]],\"anwendungsfertige Fremdsole\")*(EF_ODP_NaCl_Konz_Sole+1.5*EF_ODP_Strom)+SUMIFS(Eingabe_Ausbringungen_FremdSole[Wasserverbrauch für die Verdünnung bei Herstellern (Tonne/FU), nur relevant für anwendigungsfertige Fremdsole],Eingabe_Ausbringungen_FremdSole[Bezeichnung Streumittel (Sole)],\"Natriumchlorid-Sole\",Eingabe_Ausbringungen_FremdSole[[Bezug von konzentrierter oder anwendungsfertiger Fremdsole ]],\"anwendungsfertige Fremdsole\")*EF_ODP_Wasser*1000","v":0},{"$f":"SUMIFS(Eingabe_Ausbringungen_FremdSole[Menge an eingesetzter Fremdesole],Eingabe_Ausbringungen_FremdSole[Bezeichnung Streumittel (Sole)],\"Natriumchlorid-Sole\",Eingabe_Ausbringungen_FremdSole[[Bezug von konzentrierter oder anwendungsfertiger Fremdsole ]],\"anwendungsfertige Fremdsole\")*(EF_POCP_NaCl_Konz_Sole+1.5*EF_POCP_Strom)+SUMIFS(Eingabe_Ausbringungen_FremdSole[Wasserverbrauch für die Verdünnung bei Herstellern (Tonne/FU), nur relevant für anwendigungsfertige Fremdsole],Eingabe_Ausbringungen_FremdSole[Bezeichnung Streumittel (Sole)],\"Natriumchlorid-Sole\",Eingabe_Ausbringungen_FremdSole[[Bezug von konzentrierter oder anwendungsfertiger Fremdsole ]],\"anwendungsfertige Fremdsole\")*EF_POCP_Wasser*1000","v":0}]
[null,null,"Magnesiumchlorid-Sole, konzentrierte Fremdsole",{"$f":"SUMIFS(Eingabe_Ausbringungen_FremdSole[Menge an eingesetzter Fremdesole],Eingabe_Ausbringungen_FremdSole[Bezeichnung Streumittel (Sole)],\"Magnesiumchlorid-Sole\",Eingabe_Ausbringungen_FremdSole[[Bezug von konzentrierter oder anwendungsfertiger Fremdsole ]],\"konzentrierte Fremdsole\")*EF_KEA_MgCl2_Konz_Sole","v":0},{"$f":"SUMIFS(Eingabe_Ausbringungen_FremdSole[Menge an eingesetzter Fremdesole],Eingabe_Ausbringungen_FremdSole[Bezeichnung Streumittel (Sole)],\"Magnesiumchlorid-Sole\",Eingabe_Ausbringungen_FremdSole[[Bezug von konzentrierter oder anwendungsfertiger Fremdsole ]],\"konzentrierte Fremdsole\")*EF_GWP_MgCl2_Konz_Sole","v":0},{"$f":"SUMIFS(Eingabe_Ausbringungen_FremdSole[Menge an eingesetzter Fremdesole],Eingabe_Ausbringungen_FremdSole[Bezeichnung Streumittel (Sole)],\"Magnesiumchlorid-Sole\",Eingabe_Ausbringungen_FremdSole[[Bezug von konzentrierter oder anwendungsfertiger Fremdsole ]],\"konzentrierte Fremdsole\")*EF_AP_MgCl2_Konz_Sole","v":0},{"$f":"SUMIFS(Eingabe_Ausbringungen_FremdSole[Menge an eingesetzter Fremdesole],Eingabe_Ausbringungen_FremdSole[Bezeichnung Streumittel (Sole)],\"Magnesiumchlorid-Sole\",Eingabe_Ausbringungen_FremdSole[[Bezug von konzentrierter oder anwendungsfertiger Fremdsole ]],\"konzentrierte Fremdsole\")*EF_ODP_MgCl2_Konz_Sole","v":0},{"$f":"SUMIFS(Eingabe_Ausbringungen_FremdSole[Menge an eingesetzter Fremdesole],Eingabe_Ausbringungen_FremdSole[Bezeichnung Streumittel (Sole)],\"Magnesiumchlorid-Sole\",Eingabe_Ausbringungen_FremdSole[[Bezug von konzentrierter oder anwendungsfertiger Fremdsole ]],\"konzentrierte Fremdsole\")*EF_POCP_MgCl2_Konz_Sole","v":0}]
[null,null,"Magnesiumchlorid-Sole, anwendungsfertige Fremdsole",{"$f":"SUMIFS(Eingabe_Ausbringungen_FremdSole[Menge an eingesetzter Fremdesole],Eingabe_Ausbringungen_FremdSole[Bezeichnung Streumittel (Sole)],\"Magnesiumchlorid-Sole\",Eingabe_Ausbringungen_FremdSole[[Bezug von konzentrierter oder anwendungsfertiger Fremdsole ]],\"anwendungsfertige Fremdsole\")*(EF_KEA_MgCl2_Konz_Sole+1.5*EF_KEA_Strom)+SUMIFS(Eingabe_Ausbringungen_FremdSole[Wasserverbrauch für die Verdünnung bei Herstellern (Tonne/FU), nur relevant für anwendigungsfertige Fremdsole],Eingabe_Ausbringungen_FremdSole[Bezeichnung Streumittel (Sole)],\"Magnesiumchlorid-Sole\",Eingabe_Ausbringungen_FremdSole[[Bezug von konzentrierter oder anwendungsfertiger Fremdsole ]],\"anwendungsfertige Fremdsole\")*EF_KEA_Wasser*1000","v":0},{"$f":"SUMIFS(Eingabe_Ausbringungen_FremdSole[Menge an eingesetzter Fremdesole],Eingabe_Ausbringungen_FremdSole[Bezeichnung Streumittel (Sole)],\"Magnesiumchlorid-Sole\",Eingabe_Ausbringungen_FremdSole[[Bezug von konzentrierter oder anwendungsfertiger Fremdsole ]],\"anwendungsfertige Fremdsole\")*(EF_GWP_MgCl2_Konz_Sole+1.5*EF_GWP_Strom)+SUMIFS(Eingabe_Ausbringungen_FremdSole[Wasserverbrauch für die Verdünnung bei Herstellern (Tonne/FU), nur relevant für anwendigungsfertige Fremdsole],Eingabe_Ausbringungen_FremdSole[Bezeichnung Streumittel (Sole)],\"Magnesiumchlorid-Sole\",Eingabe_Ausbringungen_FremdSole[[Bezug von konzentrierter oder anwendungsfertiger Fremdsole ]],\"anwendungsfertige Fremdsole\")*EF_GWP_Wasser*1000","v":0},{"$f":"SUMIFS(Eingabe_Ausbringungen_FremdSole[Menge an eingesetzter Fremdesole],Eingabe_Ausbringungen_FremdSole[Bezeichnung Streumittel (Sole)],\"Magnesiumchlorid-Sole\",Eingabe_Ausbringungen_FremdSole[[Bezug von konzentrierter oder anwendungsfertiger Fremdsole ]],\"anwendungsfertige Fremdsole\")*(EF_AP_MgCl2_Konz_Sole+1.5*EF_AP_Strom)+SUMIFS(Eingabe_Ausbringungen_FremdSole[Wasserverbrauch für die Verdünnung bei Herstellern (Tonne/FU), nur relevant für anwendigungsfertige Fremdsole],Eingabe_Ausbringungen_FremdSole[Bezeichnung Streumittel (Sole)],\"Magnesiumchlorid-Sole\",Eingabe_Ausbringungen_FremdSole[[Bezug von konzentrierter oder anwendungsfertiger Fremdsole ]],\"anwendungsfertige Fremdsole\")*EF_AP_Wasser*1000","v":0},{"$f":"SUMIFS(Eingabe_Ausbringungen_FremdSole[Menge an eingesetzter Fremdesole],Eingabe_Ausbringungen_FremdSole[Bezeichnung Streumittel (Sole)],\"Magnesiumchlorid-Sole\",Eingabe_Ausbringungen_FremdSole[[Bezug von konzentrierter oder anwendungsfertiger Fremdsole ]],\"anwendungsfertige Fremdsole\")*(EF_ODP_MgCl2_Konz_Sole+1.5*EF_ODP_Strom)+SUMIFS(Eingabe_Ausbringungen_FremdSole[Wasserverbrauch für die Verdünnung bei Herstellern (Tonne/FU), nur relevant für anwendigungsfertige Fremdsole],Eingabe_Ausbringungen_FremdSole[Bezeichnung Streumittel (Sole)],\"Magnesiumchlorid-Sole\",Eingabe_Ausbringungen_FremdSole[[Bezug von konzentrierter oder anwendungsfertiger Fremdsole ]],\"anwendungsfertige Fremdsole\")*EF_ODP_Wasser*1000","v":0},{"$f":"SUMIFS(Eingabe_Ausbringungen_FremdSole[Menge an eingesetzter Fremdesole],Eingabe_Ausbringungen_FremdSole[Bezeichnung Streumittel (Sole)],\"Magnesiumchlorid-Sole\",Eingabe_Ausbringungen_FremdSole[[Bezug von konzentrierter oder anwendungsfertiger Fremdsole ]],\"anwendungsfertige Fremdsole\")*(EF_POCP_MgCl2_Konz_Sole+1.5*EF_POCP_Strom)+SUMIFS(Eingabe_Ausbringungen_FremdSole[Wasserverbrauch für die Verdünnung bei Herstellern (Tonne/FU), nur relevant für anwendigungsfertige Fremdsole],Eingabe_Ausbringungen_FremdSole[Bezeichnung Streumittel (Sole)],\"Magnesiumchlorid-Sole\",Eingabe_Ausbringungen_FremdSole[[Bezug von konzentrierter oder anwendungsfertiger Fremdsole ]],\"anwendungsfertige Fremdsole\")*EF_POCP_Wasser*1000","v":0}]
[null,null,"Calciumchlorid-Sole, konzentrierte Fremdsole ",{"$f":"SUMIFS(Eingabe_Ausbringungen_FremdSole[Menge an eingesetzter Fremdesole],Eingabe_Ausbringungen_FremdSole[Bezeichnung Streumittel (Sole)],\"Calciumchlorid-Sole\",Eingabe_Ausbringungen_FremdSole[[Bezug von konzentrierter oder anwendungsfertiger Fremdsole ]],\"konzentrierte Fremdsole\")*EF_KEA_CaCl2_Konz_Sole","v":0},{"$f":"SUMIFS(Eingabe_Ausbringungen_FremdSole[Menge an eingesetzter Fremdesole],Eingabe_Ausbringungen_FremdSole[Bezeichnung Streumittel (Sole)],\"Calciumchlorid-Sole\",Eingabe_Ausbringungen_FremdSole[[Bezug von konzentrierter oder anwendungsfertiger Fremdsole ]],\"konzentrierte Fremdsole\")*EF_GWP_CaCl2_Konz_Sole","v":0},{"$f":"SUMIFS(Eingabe_Ausbringungen_FremdSole[Menge an eingesetzter Fremdesole],Eingabe_Ausbringungen_FremdSole[Bezeichnung Streumittel (Sole)],\"Calciumchlorid-Sole\",Eingabe_Ausbringungen_FremdSole[[Bezug von konzentrierter oder anwendungsfertiger Fremdsole ]],\"konzentrierte Fremdsole\")*EF_AP_CaCl2_Konz_Sole","v":0},{"$f":"SUMIFS(Eingabe_Ausbringungen_FremdSole[Menge an eingesetzter Fremdesole],Eingabe_Ausbringungen_FremdSole[Bezeichnung Streumittel (Sole)],\"Calciumchlorid-Sole\",Eingabe_Ausbringungen_FremdSole[[Bezug von konzentrierter oder anwendungsfertiger Fremdsole ]],\"konzentrierte Fremdsole\")*EF_ODP_CaCl2_Konz_Sole","v":0},{"$f":"SUMIFS(Eingabe_Ausbringungen_FremdSole[Menge an eingesetzter Fremdesole],Eingabe_Ausbringungen_FremdSole[Bezeichnung Streumittel (Sole)],\"Calciumchlorid-Sole\",Eingabe_Ausbringungen_FremdSole[[Bezug von konzentrierter oder anwendungsfertiger Fremdsole ]],\"konzentrierte Fremdsole\")*EF_POCP_CaCl2_Konz_Sole","v":0}]
[null,null,"Calciumchlorid-Sole, anwendungsfertige Fremdsole ",{"$f":"SUMIFS(Eingabe_Ausbringungen_FremdSole[Menge an eingesetzter Fremdesole],Eingabe_Ausbringungen_FremdSole[Bezeichnung Streumittel (Sole)],\"Calciumchlorid-Sole\",Eingabe_Ausbringungen_FremdSole[[Bezug von konzentrierter oder anwendungsfertiger Fremdsole ]],\"anwendungsfertige Fremdsole\")*(EF_KEA_CaCl2_Konz_Sole+1.5*EF_KEA_Strom)+SUMIFS(Eingabe_Ausbringungen_FremdSole[Wasserverbrauch für die Verdünnung bei Herstellern (Tonne/FU), nur relevant für anwendigungsfertige Fremdsole],Eingabe_Ausbringungen_FremdSole[Bezeichnung Streumittel (Sole)],\"Calciumchlorid-Sole\",Eingabe_Ausbringungen_FremdSole[[Bezug von konzentrierter oder anwendungsfertiger Fremdsole ]],\"anwendungsfertige Fremdsole\")*EF_KEA_Wasser*1000","v":0},{"$f":"SUMIFS(Eingabe_Ausbringungen_FremdSole[Menge an eingesetzter Fremdesole],Eingabe_Ausbringungen_FremdSole[Bezeichnung Streumittel (Sole)],\"Calciumchlorid-Sole\",Eingabe_Ausbringungen_FremdSole[[Bezug von konzentrierter oder anwendungsfertiger Fremdsole ]],\"anwendungsfertige Fremdsole\")*(EF_GWP_CaCl2_Konz_Sole+1.5*EF_GWP_Strom)+SUMIFS(Eingabe_Ausbringungen_FremdSole[Wasserverbrauch für die Verdünnung bei Herstellern (Tonne/FU), nur relevant für anwendigungsfertige Fremdsole],Eingabe_Ausbringungen_FremdSole[Bezeichnung Streumittel (Sole)],\"Calciumchlorid-Sole\",Eingabe_Ausbringungen_FremdSole[[Bezug von konzentrierter oder anwendungsfertiger Fremdsole ]],\"anwendungsfertige Fremdsole\")*EF_GWP_Wasser*1000","v":0},{"$f":"SUMIFS(Eingabe_Ausbringungen_FremdSole[Menge an eingesetzter Fremdesole],Eingabe_Ausbringungen_FremdSole[Bezeichnung Streumittel (Sole)],\"Calciumchlorid-Sole\",Eingabe_Ausbringungen_FremdSole[[Bezug von konzentrierter oder anwendungsfertiger Fremdsole ]],\"anwendungsfertige Fremdsole\")*(EF_AP_CaCl2_Konz_Sole+1.5*EF_AP_Strom)+SUMIFS(Eingabe_Ausbringungen_FremdSole[Wasserverbrauch für die Verdünnung bei Herstellern (Tonne/FU), nur relevant für anwendigungsfertige Fremdsole],Eingabe_Ausbringungen_FremdSole[Bezeichnung Streumittel (Sole)],\"Calciumchlorid-Sole\",Eingabe_Ausbringungen_FremdSole[[Bezug von konzentrierter oder anwendungsfertiger Fremdsole ]],\"anwendungsfertige Fremdsole\")*EF_AP_Wasser*1000","v":0},{"$f":"SUMIFS(Eingabe_Ausbringungen_FremdSole[Menge an eingesetzter Fremdesole],Eingabe_Ausbringungen_FremdSole[Bezeichnung Streumittel (Sole)],\"Calciumchlorid-Sole\",Eingabe_Ausbringungen_FremdSole[[Bezug von konzentrierter oder anwendungsfertiger Fremdsole ]],\"anwendungsfertige Fremdsole\")*(EF_ODP_CaCl2_Konz_Sole+1.5*EF_ODP_Strom)+SUMIFS(Eingabe_Ausbringungen_FremdSole[Wasserverbrauch für die Verdünnung bei Herstellern (Tonne/FU), nur relevant für anwendigungsfertige Fremdsole],Eingabe_Ausbringungen_FremdSole[Bezeichnung Streumittel (Sole)],\"Calciumchlorid-Sole\",Eingabe_Ausbringungen_FremdSole[[Bezug von konzentrierter oder anwendungsfertiger Fremdsole ]],\"anwendungsfertige Fremdsole\")*EF_ODP_Wasser*1000","v":0},{"$f":"SUMIFS(Eingabe_Ausbringungen_FremdSole[Menge an eingesetzter Fremdesole],Eingabe_Ausbringungen_FremdSole[Bezeichnung Streumittel (Sole)],\"Calciumchlorid-Sole\",Eingabe_Ausbringungen_FremdSole[[Bezug von konzentrierter oder anwendungsfertiger Fremdsole ]],\"anwendungsfertige Fremdsole\")*(EF_POCP_CaCl2_Konz_Sole+1.5*EF_POCP_Strom)+SUMIFS(Eingabe_Ausbringungen_FremdSole[Wasserverbrauch für die Verdünnung bei Herstellern (Tonne/FU), nur relevant für anwendigungsfertige Fremdsole],Eingabe_Ausbringungen_FremdSole[Bezeichnung Streumittel (Sole)],\"Calciumchlorid-Sole\",Eingabe_Ausbringungen_FremdSole[[Bezug von konzentrierter oder anwendungsfertiger Fremdsole ]],\"anwendungsfertige Fremdsole\")*EF_POCP_Wasser*1000","v":0}]
[null,null,"Summe",{"$f":"SUBTOTAL(109,Result_Sole[Kumulierter Energie Aufwand\n(MJ / funktionelle Einheit)])","v":0},{"$f":"SUBTOTAL(109,Result_Sole[Treibhauspotenzial \n(kg CO2-Äq / funktionelle Einheit)])","v":0},{"$f":"SUBTOTAL(109,Result_Sole[Versauerungspotenzial\n(mol H+-Äq/ funktionelle Einheit)])","v":0},{"$f":"SUBTOTAL(109,Result_Sole[Ozonabbaupotenzial\n(kg CFC11-Äq / funktionelle Einheit)])","v":0},{"$f":"SUBTOTAL(109,Result_Sole[Photooxidantienpotenzial \n(kg NMVOC-Äq / funktionelle Einheit)])","v":0}]
[]
[null,"2.3",{"$f":"C65","v":"Transporte der Streumittel (trockene Streumittel und Sole)"}]
[null,null,"Transportmittel","Kumulierter Energie Aufwand\n(MJ / funktionelle Einheit)","Treibhauspotenzial \n(kg CO2-Äq / funktionelle Einheit)","Versauerungspotenzial\n(mol H+-Äq/ funktionelle Einheit)","Ozonabbaupotenzial\n(kg CFC11-Äq / funktionelle Einheit)","Photooxidantienpotenzial \n(kg NMVOC-Äq / funktionelle Einheit)"]
[null,null,"Bahn",{"$f":"SUMIF(Eingabe_Antransport[Transportmittel],Result_Antransport[[#This Row],[Transportmittel]],Eingabe_Antransport[Tonnenkilometer (automatisch berechneter Wert) (tkm/funktionelle Einheit)])*_xlfn.XLOOKUP(Result_Antransport[[#This Row],[Transportmittel]],Transportmittel_AntransportStreumittel,Emissionsfaktoren!D$35:D$46)","v":0},{"$f":"SUMIF(Eingabe_Antransport[Transportmittel],Result_Antransport[[#This Row],[Transportmittel]],Eingabe_Antransport[Tonnenkilometer (automatisch berechneter Wert) (tkm/funktionelle Einheit)])*_xlfn.XLOOKUP(Result_Antransport[[#This Row],[Transportmittel]],Transportmittel_AntransportStreumittel,Emissionsfaktoren!E$35:E$46)","v":0},{"$f":"SUMIF(Eingabe_Antransport[Transportmittel],Result_Antransport[[#This Row],[Transportmittel]],Eingabe_Antransport[Tonnenkilometer (automatisch berechneter Wert) (tkm/funktionelle Einheit)])*_xlfn.XLOOKUP(Result_Antransport[[#This Row],[Transportmittel]],Transportmittel_AntransportStreumittel,Emissionsfaktoren!F$35:F$46)","v":0},{"$f":"SUMIF(Eingabe_Antransport[Transportmittel],Result_Antransport[[#This Row],[Transportmittel]],Eingabe_Antransport[Tonnenkilometer (automatisch berechneter Wert) (tkm/funktionelle Einheit)])*_xlfn.XLOOKUP(Result_Antransport[[#This Row],[Transportmittel]],Transportmittel_AntransportStreumittel,Emissionsfaktoren!G$35:G$46)","v":0},{"$f":"SUMIF(Eingabe_Antransport[Transportmittel],Result_Antransport[[#This Row],[Transportmittel]],Eingabe_Antransport[Tonnenkilometer (automatisch berechneter Wert) (tkm/funktionelle Einheit)])*_xlfn.XLOOKUP(Result_Antransport[[#This Row],[Transportmittel]],Transportmittel_AntransportStreumittel,Emissionsfaktoren!H$35:H$46)","v":0}]
[null,null,"Binnenschiff",{"$f":"SUMIF(Eingabe_Antransport[Transportmittel],Result_Antransport[[#This Row],[Transportmittel]],Eingabe_Antransport[Tonnenkilometer (automatisch berechneter Wert) (tkm/funktionelle Einheit)])*_xlfn.XLOOKUP(Result_Antransport[[#This Row],[Transportmittel]],Transportmittel_AntransportStreumittel,Emissionsfaktoren!D$35:D$46)","v":0},{"$f":"SUMIF(Eingabe_Antransport[Transportmittel],Result_Antransport[[#This Row],[Transportmittel]],Eingabe_Antransport[Tonnenkilometer (automatisch berechneter Wert) (tkm/funktionelle Einheit)])*_xlfn.XLOOKUP(Result_Antransport[[#This Row],[Transportmittel]],Transportmittel_AntransportStreumittel,Emissionsfaktoren!E$35:E$46)","v":0},{"$f":"SUMIF(Eingabe_Antransport[Transportmittel],Result_Antransport[[#This Row],[Transportmittel]],Eingabe_Antransport[Tonnenkilometer (automatisch berechneter Wert) (tkm/funktionelle Einheit)])*_xlfn.XLOOKUP(Result_Antransport[[#This Row],[Transportmittel]],Transportmittel_AntransportStreumittel,Emissionsfaktoren!F$35:F$46)","v":0},{"$f":"SUMIF(Eingabe_Antransport[Transportmittel],Result_Antransport[[#This Row],[Transportmittel]],Eingabe_Antransport[Tonnenkilometer (automatisch berechneter Wert) (tkm/funktionelle Einheit)])*_xlfn.XLOOKUP(Result_Antransport[[#This Row],[Transportmittel]],Transportmittel_AntransportStreumittel,Emissionsfaktoren!G$35:G$46)","v":0},{"$f":"SUMIF(Eingabe_Antransport[Transportmittel],Result_Antransport[[#This Row],[Transportmittel]],Eingabe_Antransport[Tonnenkilometer (automatisch berechneter Wert) (tkm/funktionelle Einheit)])*_xlfn.XLOOKUP(Result_Antransport[[#This Row],[Transportmittel]],Transportmittel_AntransportStreumittel,Emissionsfaktoren!H$35:H$46)","v":0}]
[null,null,"Massengutfrachter",{"$f":"SUMIF(Eingabe_Antransport[Transportmittel],Result_Antransport[[#This Row],[Transportmittel]],Eingabe_Antransport[Tonnenkilometer (automatisch berechneter Wert) (tkm/funktionelle Einheit)])*_xlfn.XLOOKUP(Result_Antransport[[#This Row],[Transportmittel]],Transportmittel_AntransportStreumittel,Emissionsfaktoren!D$35:D$46)","v":0},{"$f":"SUMIF(Eingabe_Antransport[Transportmittel],Result_Antransport[[#This Row],[Transportmittel]],Eingabe_Antransport[Tonnenkilometer (automatisch berechneter Wert) (tkm/funktionelle Einheit)])*_xlfn.XLOOKUP(Result_Antransport[[#This Row],[Transportmittel]],Transportmittel_AntransportStreumittel,Emissionsfaktoren!E$35:E$46)","v":0},{"$f":"SUMIF(Eingabe_Antransport[Transportmittel],Result_Antransport[[#This Row],[Transportmittel]],Eingabe_Antransport[Tonnenkilometer (automatisch berechneter Wert) (tkm/funktionelle Einheit)])*_xlfn.XLOOKUP(Result_Antransport[[#This Row],[Transportmittel]],Transportmittel_AntransportStreumittel,Emissionsfaktoren!F$35:F$46)","v":0},{"$f":"SUMIF(Eingabe_Antransport[Transportmittel],Result_Antransport[[#This Row],[Transportmittel]],Eingabe_Antransport[Tonnenkilometer (automatisch berechneter Wert) (tkm/funktionelle Einheit)])*_xlfn.XLOOKUP(Result_Antransport[[#This Row],[Transportmittel]],Transportmittel_AntransportStreumittel,Emissionsfaktoren!G$35:G$46)","v":0},{"$f":"SUMIF(Eingabe_Antransport[Transportmittel],Result_Antransport[[#This Row],[Transportmittel]],Eingabe_Antransport[Tonnenkilometer (automatisch berechneter Wert) (tkm/funktionelle Einheit)])*_xlfn.XLOOKUP(Result_Antransport[[#This Row],[Transportmittel]],Transportmittel_AntransportStreumittel,Emissionsfaktoren!H$35:H$46)","v":0}]
[null,null,"Containerschiff",{"$f":"SUMIF(Eingabe_Antransport[Transportmittel],Result_Antransport[[#This Row],[Transportmittel]],Eingabe_Antransport[Tonnenkilometer (automatisch berechneter Wert) (tkm/funktionelle Einheit)])*_xlfn.XLOOKUP(Result_Antransport[[#This Row],[Transportmittel]],Transportmittel_AntransportStreumittel,Emissionsfaktoren!D$35:D$46)","v":0},{"$f":"SUMIF(Eingabe_Antransport[Transportmittel],Result_Antransport[[#This Row],[Transportmittel]],Eingabe_Antransport[Tonnenkilometer (automatisch berechneter Wert) (tkm/funktionelle Einheit)])*_xlfn.XLOOKUP(Result_Antransport[[#This Row],[Transportmittel]],Transportmittel_AntransportStreumittel,Emissionsfaktoren!E$35:E$46)","v":0},{"$f":"SUMIF(Eingabe_Antransport[Transportmittel],Result_Antransport[[#This Row],[Transportmittel]],Eingabe_Antransport[Tonnenkilometer (automatisch berechneter Wert) (tkm/funktionelle Einheit)])*_xlfn.XLOOKUP(Result_Antransport[[#This Row],[Transportmittel]],Transportmittel_AntransportStreumittel,Emissionsfaktoren!F$35:F$46)","v":0},{"$f":"SUMIF(Eingabe_Antransport[Transportmittel],Result_Antransport[[#This Row],[Transportmittel]],Eingabe_Antransport[Tonnenkilometer (automatisch berechneter Wert) (tkm/funktionelle Einheit)])*_xlfn.XLOOKUP(Result_Antransport[[#This Row],[Transportmittel]],Transportmittel_AntransportStreumittel,Emissionsfaktoren!G$35:G$46)","v":0},{"$f":"SUMIF(Eingabe_Antransport[Transportmittel],Result_Antransport[[#This Row],[Transportmittel]],Eingabe_Antransport[Tonnenkilometer (automatisch berechneter Wert) (tkm/funktionelle Einheit)])*_xlfn.XLOOKUP(Result_Antransport[[#This Row],[Transportmittel]],Transportmittel_AntransportStreumittel,Emissionsfaktoren!H$35:H$46)","v":0}]
[null,null,"Lkw >14-26t, Euro 3",{"$f":"SUMIF(Eingabe_Antransport[Transportmittel],Result_Antransport[[#This Row],[Transportmittel]],Eingabe_Antransport[Tonnenkilometer (automatisch berechneter Wert) (tkm/funktionelle Einheit)])*2*_xlfn.XLOOKUP(Result_Antransport[[#This Row],[Transportmittel]],Transportmittel_AntransportStreumittel,Emissionsfaktoren!D$35:D$46)","v":0},{"$f":"SUMIF(Eingabe_Antransport[Transportmittel],Result_Antransport[[#This Row],[Transportmittel]],Eingabe_Antransport[Tonnenkilometer (automatisch berechneter Wert) (tkm/funktionelle Einheit)])*2*_xlfn.XLOOKUP(Result_Antransport[[#This Row],[Transportmittel]],Transportmittel_AntransportStreumittel,Emissionsfaktoren!E$35:E$46)","v":0},{"$f":"SUMIF(Eingabe_Antransport[Transportmittel],Result_Antransport[[#This Row],[Transportmittel]],Eingabe_Antransport[Tonnenkilometer (automatisch berechneter Wert) (tkm/funktionelle Einheit)])*2*_xlfn.XLOOKUP(Result_Antransport[[#This Row],[Transportmittel]],Transportmittel_AntransportStreumittel,Emissionsfaktoren!F$35:F$46)","v":0},{"$f":"SUMIF(Eingabe_Antransport[Transportmittel],Result_Antransport[[#This Row],[Transportmittel]],Eingabe_Antransport[Tonnenkilometer (automatisch berechneter Wert) (tkm/funktionelle Einheit)])*2*_xlfn.XLOOKUP(Result_Antransport[[#This Row],[Transportmittel]],Transportmittel_AntransportStreumittel,Emissionsfaktoren!G$35:G$46)","v":0},{"$f":"SUMIF(Eingabe_Antransport[Transportmittel],Result_Antransport[[#This Row],[Transportmittel]],Eingabe_Antransport[Tonnenkilometer (automatisch berechneter Wert) (tkm/funktionelle Einheit)])*2*_xlfn.XLOOKUP(Result_Antransport[[#This Row],[Transportmittel]],Transportmittel_AntransportStreumittel,Emissionsfaktoren!H$35:H$46)","v":0}]
[null,null,"Lkw >14-26t, Euro 4",{"$f":"SUMIF(Eingabe_Antransport[Transportmittel],Result_Antransport[[#This Row],[Transportmittel]],Eingabe_Antransport[Tonnenkilometer (automatisch berechneter Wert) (tkm/funktionelle Einheit)])*2*_xlfn.XLOOKUP(Result_Antransport[[#This Row],[Transportmittel]],Transportmittel_AntransportStreumittel,Emissionsfaktoren!D$35:D$46)","v":0},{"$f":"SUMIF(Eingabe_Antransport[Transportmittel],Result_Antransport[[#This Row],[Transportmittel]],Eingabe_Antransport[Tonnenkilometer (automatisch berechneter Wert) (tkm/funktionelle Einheit)])*2*_xlfn.XLOOKUP(Result_Antransport[[#This Row],[Transportmittel]],Transportmittel_AntransportStreumittel,Emissionsfaktoren!E$35:E$46)","v":0},{"$f":"SUMIF(Eingabe_Antransport[Transportmittel],Result_Antransport[[#This Row],[Transportmittel]],Eingabe_Antransport[Tonnenkilometer (automatisch berechneter Wert) (tkm/funktionelle Einheit)])*2*_xlfn.XLOOKUP(Result_Antransport[[#This Row],[Transportmittel]],Transportmittel_AntransportStreumittel,Emissionsfaktoren!F$35:F$46)","v":0},{"$f":"SUMIF(Eingabe_Antransport[Transportmittel],Result_Antransport[[#This Row],[Transportmittel]],Eingabe_Antransport[Tonnenkilometer (automatisch berechneter Wert) (tkm/funktionelle Einheit)])*2*_xlfn.XLOOKUP(Result_Antransport[[#This Row],[Transportmittel]],Transportmittel_AntransportStreumittel,Emissionsfaktoren!G$35:G$46)","v":0},{"$f":"SUMIF(Eingabe_Antransport[Transportmittel],Result_Antransport[[#This Row],[Transportmittel]],Eingabe_Antransport[Tonnenkilometer (automatisch berechneter Wert) (tkm/funktionelle Einheit)])*2*_xlfn.XLOOKUP(Result_Antransport[[#This Row],[Transportmittel]],Transportmittel_AntransportStreumittel,Emissionsfaktoren!H$35:H$46)","v":0}]
[null,null,"Lkw >14-26t, Euro 5",{"$f":"SUMIF(Eingabe_Antransport[Transportmittel],Result_Antransport[[#This Row],[Transportmittel]],Eingabe_Antransport[Tonnenkilometer (automatisch berechneter Wert) (tkm/funktionelle Einheit)])*2*_xlfn.XLOOKUP(Result_Antransport[[#This Row],[Transportmittel]],Transportmittel_AntransportStreumittel,Emissionsfaktoren!D$35:D$46)","v":0},{"$f":"SUMIF(Eingabe_Antransport[Transportmittel],Result_Antransport[[#This Row],[Transportmittel]],Eingabe_Antransport[Tonnenkilometer (automatisch berechneter Wert) (tkm/funktionelle Einheit)])*2*_xlfn.XLOOKUP(Result_Antransport[[#This Row],[Transportmittel]],Transportmittel_AntransportStreumittel,Emissionsfaktoren!E$35:E$46)","v":0},{"$f":"SUMIF(Eingabe_Antransport[Transportmittel],Result_Antransport[[#This Row],[Transportmittel]],Eingabe_Antransport[Tonnenkilometer (automatisch berechneter Wert) (tkm/funktionelle Einheit)])*2*_xlfn.XLOOKUP(Result_Antransport[[#This Row],[Transportmittel]],Transportmittel_AntransportStreumittel,Emissionsfaktoren!F$35:F$46)","v":0},{"$f":"SUMIF(Eingabe_Antransport[Transportmittel],Result_Antransport[[#This Row],[Transportmittel]],Eingabe_Antransport[Tonnenkilometer (automatisch berechneter Wert) (tkm/funktionelle Einheit)])*2*_xlfn.XLOOKUP(Result_Antransport[[#This Row],[Transportmittel]],Transportmittel_AntransportStreumittel,Emissionsfaktoren!G$35:G$46)","v":0},{"$f":"SUMIF(Eingabe_Antransport[Transportmittel],Result_Antransport[[#This Row],[Transportmittel]],Eingabe_Antransport[Tonnenkilometer (automatisch berechneter Wert) (tkm/funktionelle Einheit)])*2*_xlfn.XLOOKUP(Result_Antransport[[#This Row],[Transportmittel]],Transportmittel_AntransportStreumittel,Emissionsfaktoren!H$35:H$46)","v":0}]
[null,null,"Lkw >14-26t, Euro 6",{"$f":"SUMIF(Eingabe_Antransport[Transportmittel],Result_Antransport[[#This Row],[Transportmittel]],Eingabe_Antransport[Tonnenkilometer (automatisch berechneter Wert) (tkm/funktionelle Einheit)])*2*_xlfn.XLOOKUP(Result_Antransport[[#This Row],[Transportmittel]],Transportmittel_AntransportStreumittel,Emissionsfaktoren!D$35:D$46)","v":0},{"$f":"SUMIF(Eingabe_Antransport[Transportmittel],Result_Antransport[[#This Row],[Transportmittel]],Eingabe_Antransport[Tonnenkilometer (automatisch berechneter Wert) (tkm/funktionelle Einheit)])*2*_xlfn.XLOOKUP(Result_Antransport[[#This Row],[Transportmittel]],Transportmittel_AntransportStreumittel,Emissionsfaktoren!E$35:E$46)","v":0},{"$f":"SUMIF(Eingabe_Antransport[Transportmittel],Result_Antransport[[#This Row],[Transportmittel]],Eingabe_Antransport[Tonnenkilometer (automatisch berechneter Wert) (tkm/funktionelle Einheit)])*2*_xlfn.XLOOKUP(Result_Antransport[[#This Row],[Transportmittel]],Transportmittel_AntransportStreumittel,Emissionsfaktoren!F$35:F$46)","v":0},{"$f":"SUMIF(Eingabe_Antransport[Transportmittel],Result_Antransport[[#This Row],[Transportmittel]],Eingabe_Antransport[Tonnenkilometer (automatisch berechneter Wert) (tkm/funktionelle Einheit)])*2*_xlfn.XLOOKUP(Result_Antransport[[#This Row],[Transportmittel]],Transportmittel_AntransportStreumittel,Emissionsfaktoren!G$35:G$46)","v":0},{"$f":"SUMIF(Eingabe_Antransport[Transportmittel],Result_Antransport[[#This Row],[Transportmittel]],Eingabe_Antransport[Tonnenkilometer (automatisch berechneter Wert) (tkm/funktionelle Einheit)])*2*_xlfn.XLOOKUP(Result_Antransport[[#This Row],[Transportmittel]],Transportmittel_AntransportStreumittel,Emissionsfaktoren!H$35:H$46)","v":0}]
[null,null,"Lkw >7.5-14t, Euro 3",{"$f":"SUMIF(Eingabe_Antransport[Transportmittel],Result_Antransport[[#This Row],[Transportmittel]],Eingabe_Antransport[Tonnenkilometer (automatisch berechneter Wert) (tkm/funktionelle Einheit)])*2*_xlfn.XLOOKUP(Result_Antransport[[#This Row],[Transportmittel]],Transportmittel_AntransportStreumittel,Emissionsfaktoren!D$35:D$46)","v":0},{"$f":"SUMIF(Eingabe_Antransport[Transportmittel],Result_Antransport[[#This Row],[Transportmittel]],Eingabe_Antransport[Tonnenkilometer (automatisch berechneter Wert) (tkm/funktionelle Einheit)])*2*_xlfn.XLOOKUP(Result_Antransport[[#This Row],[Transportmittel]],Transportmittel_AntransportStreumittel,Emissionsfaktoren!E$35:E$46)","v":0},{"$f":"SUMIF(Eingabe_Antransport[Transportmittel],Result_Antransport[[#This Row],[Transportmittel]],Eingabe_Antransport[Tonnenkilometer (automatisch berechneter Wert) (tkm/funktionelle Einheit)])*2*_xlfn.XLOOKUP(Result_Antransport[[#This Row],[Transportmittel]],Transportmittel_AntransportStreumittel,Emissionsfaktoren!F$35:F$46)","v":0},{"$f":"SUMIF(Eingabe_Antransport[Transportmittel],Result_Antransport[[#This Row],[Transportmittel]],Eingabe_Antransport[Tonnenkilometer (automatisch berechneter Wert) (tkm/funktionelle Einheit)])*2*_xlfn.XLOOKUP(Result_Antransport[[#This Row],[Transportmittel]],Transportmittel_AntransportStreumittel,Emissionsfaktoren!G$35:G$46)","v":0},{"$f":"SUMIF(Eingabe_Antransport[Transportmittel],Result_Antransport[[#This Row],[Transportmittel]],Eingabe_Antransport[Tonnenkilometer (automatisch berechneter Wert) (tkm/funktionelle Einheit)])*2*_xlfn.XLOOKUP(Result_Antransport[[#This Row],[Transportmittel]],Transportmittel_AntransportStreumittel,Emissionsfaktoren!H$35:H$46)","v":0}]
[null,null,"Lkw >7.5-14t, Euro 4",{"$f":"SUMIF(Eingabe_Antransport[Transportmittel],Result_Antransport[[#This Row],[Transportmittel]],Eingabe_Antransport[Tonnenkilometer (automatisch berechneter Wert) (tkm/funktionelle Einheit)])*2*_xlfn.XLOOKUP(Result_Antransport[[#This Row],[Transportmittel]],Transportmittel_AntransportStreumittel,Emissionsfaktoren!D$35:D$46)","v":0},{"$f":"SUMIF(Eingabe_Antransport[Transportmittel],Result_Antransport[[#This Row],[Transportmittel]],Eingabe_Antransport[Tonnenkilometer (automatisch berechneter Wert) (tkm/funktionelle Einheit)])*2*_xlfn.XLOOKUP(Result_Antransport[[#This Row],[Transportmittel]],Transportmittel_AntransportStreumittel,Emissionsfaktoren!E$35:E$46)","v":0},{"$f":"SUMIF(Eingabe_Antransport[Transportmittel],Result_Antransport[[#This Row],[Transportmittel]],Eingabe_Antransport[Tonnenkilometer (automatisch berechneter Wert) (tkm/funktionelle Einheit)])*2*_xlfn.XLOOKUP(Result_Antransport[[#This Row],[Transportmittel]],Transportmittel_AntransportStreumittel,Emissionsfaktoren!F$35:F$46)","v":0},{"$f":"SUMIF(Eingabe_Antransport[Transportmittel],Result_Antransport[[#This Row],[Transportmittel]],Eingabe_Antransport[Tonnenkilometer (automatisch berechneter Wert) (tkm/funktionelle Einheit)])*2*_xlfn.XLOOKUP(Result_Antransport[[#This Row],[Transportmittel]],Transportmittel_AntransportStreumittel,Emissionsfaktoren!G$35:G$46)","v":0},{"$f":"SUMIF(Eingabe_Antransport[Transportmittel],Result_Antransport[[#This Row],[Transportmittel]],Eingabe_Antransport[Tonnenkilometer (automatisch berechneter Wert) (tkm/funktionelle Einheit)])*2*_xlfn.XLOOKUP(Result_Antransport[[#This Row],[Transportmittel]],Transportmittel_AntransportStreumittel,Emissionsfaktoren!H$35:H$46)","v":0}]
[null,null,"Lkw >7.5-14t, Euro 5",{"$f":"SUMIF(Eingabe_Antransport[Transportmittel],Result_Antransport[[#This Row],[Transportmittel]],Eingabe_Antransport[Tonnenkilometer (automatisch berechneter Wert) (tkm/funktionelle Einheit)])*2*_xlfn.XLOOKUP(Result_Antransport[[#This Row],[Transportmittel]],Transportmittel_AntransportStreumittel,Emissionsfaktoren!D$35:D$46)","v":0},{"$f":"SUMIF(Eingabe_Antransport[Transportmittel],Result_Antransport[[#This Row],[Transportmittel]],Eingabe_Antransport[Tonnenkilometer (automatisch berechneter Wert) (tkm/funktionelle Einheit)])*2*_xlfn.XLOOKUP(Result_Antransport[[#This Row],[Transportmittel]],Transportmittel_AntransportStreumittel,Emissionsfaktoren!E$35:E$46)","v":0},{"$f":"SUMIF(Eingabe_Antransport[Transportmittel],Result_Antransport[[#This Row],[Transportmittel]],Eingabe_Antransport[Tonnenkilometer (automatisch berechneter Wert) (tkm/funktionelle Einheit)])*2*_xlfn.XLOOKUP(Result_Antransport[[#This Row],[Transportmittel]],Transportmittel_AntransportStreumittel,Emissionsfaktoren!F$35:F$46)","v":0},{"$f":"SUMIF(Eingabe_Antransport[Transportmittel],Result_Antransport[[#This Row],[Transportmittel]],Eingabe_Antransport[Tonnenkilometer (automatisch berechneter Wert) (tkm/funktionelle Einheit)])*2*_xlfn.XLOOKUP(Result_Antransport[[#This Row],[Transportmittel]],Transportmittel_AntransportStreumittel,Emissionsfaktoren!G$35:G$46)","v":0},{"$f":"SUMIF(Eingabe_Antransport[Transportmittel],Result_Antransport[[#This Row],[Transportmittel]],Eingabe_Antransport[Tonnenkilometer (automatisch berechneter Wert) (tkm/funktionelle Einheit)])*2*_xlfn.XLOOKUP(Result_Antransport[[#This Row],[Transportmittel]],Transportmittel_AntransportStreumittel,Emissionsfaktoren!H$35:H$46)","v":0}]
[null,null,"Lkw >7.5-14t, Euro 6",{"$f":"SUMIF(Eingabe_Antransport[Transportmittel],Result_Antransport[[#This Row],[Transportmittel]],Eingabe_Antransport[Tonnenkilometer (automatisch berechneter Wert) (tkm/funktionelle Einheit)])*2*_xlfn.XLOOKUP(Result_Antransport[[#This Row],[Transportmittel]],Transportmittel_AntransportStreumittel,Emissionsfaktoren!D$35:D$46)","v":0},{"$f":"SUMIF(Eingabe_Antransport[Transportmittel],Result_Antransport[[#This Row],[Transportmittel]],Eingabe_Antransport[Tonnenkilometer (automatisch berechneter Wert) (tkm/funktionelle Einheit)])*2*_xlfn.XLOOKUP(Result_Antransport[[#This Row],[Transportmittel]],Transportmittel_AntransportStreumittel,Emissionsfaktoren!E$35:E$46)","v":0},{"$f":"SUMIF(Eingabe_Antransport[Transportmittel],Result_Antransport[[#This Row],[Transportmittel]],Eingabe_Antransport[Tonnenkilometer (automatisch berechneter Wert) (tkm/funktionelle Einheit)])*2*_xlfn.XLOOKUP(Result_Antransport[[#This Row],[Transportmittel]],Transportmittel_AntransportStreumittel,Emissionsfaktoren!F$35:F$46)","v":0},{"$f":"SUMIF(Eingabe_Antransport[Transportmittel],Result_Antransport[[#This Row],[Transportmittel]],Eingabe_Antransport[Tonnenkilometer (automatisch berechneter Wert) (tkm/funktionelle Einheit)])*2*_xlfn.XLOOKUP(Result_Antransport[[#This Row],[Transportmittel]],Transportmittel_AntransportStreumittel,Emissionsfaktoren!G$35:G$46)","v":0},{"$f":"SUMIF(Eingabe_Antransport[Transportmittel],Result_Antransport[[#This Row],[Transportmittel]],Eingabe_Antransport[Tonnenkilometer (automatisch berechneter Wert) (tkm/funktionelle Einheit)])*2*_xlfn.XLOOKUP(Result_Antransport[[#This Row],[Transportmittel]],Transportmittel_AntransportStreumittel,Emissionsfaktoren!H$35:H$46)","v":0}]
[null,null,"Summe",{"$f":"SUBTOTAL(109,Result_Antransport[Kumulierter Energie Aufwand\n(MJ / funktionelle Einheit)])","v":0},{"$f":"SUBTOTAL(109,Result_Antransport[Treibhauspotenzial \n(kg CO2-Äq / funktionelle Einheit)])","v":0},{"$f":"SUBTOTAL(109,Result_Antransport[Versauerungspotenzial\n(mol H+-Äq/ funktionelle Einheit)])","v":0},{"$f":"SUBTOTAL(109,Result_Antransport[Ozonabbaupotenzial\n(kg CFC11-Äq / funktionelle Einheit)])","v":0},{"$f":"SUBTOTAL(109,Result_Antransport[Photooxidantienpotenzial \n(kg NMVOC-Äq / funktionelle Einheit)])","v":0}]
[]
[null,"2.4",{"$f":"C66","v":"Ausbringung der Streumittel (direkte Emisssionen bei der Ausbringung und Herstellung Kraftstoffe)"}]
[null,null,"Fahrzeuge (Lkw, zulässiges Gesamtgewicht, Euro_Norm, Kraftstoffe)","Kumulierter Energie Aufwand\n(MJ / funktionelle Einheit)","Treibhauspotenzial \n(kg CO2-Äq / funktionelle Einheit)","Versauerungspotenzial\n(mol H+-Äq/ funktionelle Einheit)","Ozonabbaupotenzial\n(kg CFC11-Äq / funktionelle Einheit)","Photooxidantienpotenzial \n(kg NMVOC-Äq / funktionelle Einheit)"]
[null,null,"Lkw >14-26t, Euro 3, Diesel",{"$f":"SUMIF(Eingabe_Ausbringungen[Angaben zu den Fahrzeugen (Lkw: zulässiges Gesamtgewicht, Euro Norm, Kraftstoff)],Result_Ausbringung[[#This Row],[Fahrzeuge (Lkw, zulässiges Gesamtgewicht, Euro_Norm, Kraftstoffe)]],Eingabe_Ausbringungen[Verbrauch Kraftstoffe])*_xlfn.XLOOKUP(Result_Ausbringung[[#This Row],[Fahrzeuge (Lkw, zulässiges Gesamtgewicht, Euro_Norm, Kraftstoffe)]],Auswahl_Lkw_pkw,EF_Ausbringung[KEA (MJ  / Einheit)])","v":0},{"$f":"SUMIF(Eingabe_Ausbringungen[Angaben zu den Fahrzeugen (Lkw: zulässiges Gesamtgewicht, Euro Norm, Kraftstoff)],Result_Ausbringung[[#This Row],[Fahrzeuge (Lkw, zulässiges Gesamtgewicht, Euro_Norm, Kraftstoffe)]],Eingabe_Ausbringungen[Verbrauch Kraftstoffe])*_xlfn.XLOOKUP(Result_Ausbringung[[#This Row],[Fahrzeuge (Lkw, zulässiges Gesamtgewicht, Euro_Norm, Kraftstoffe)]],Auswahl_Lkw_pkw,EF_Ausbringung[GWP (kg CO2Äq. / Einheit)])","v":0},{"$f":"SUMIF(Eingabe_Ausbringungen[Angaben zu den Fahrzeugen (Lkw: zulässiges Gesamtgewicht, Euro Norm, Kraftstoff)],Result_Ausbringung[[#This Row],[Fahrzeuge (Lkw, zulässiges Gesamtgewicht, Euro_Norm, Kraftstoffe)]],Eingabe_Ausbringungen[Verbrauch Kraftstoffe])*_xlfn.XLOOKUP(Result_Ausbringung[[#This Row],[Fahrzeuge (Lkw, zulässiges Gesamtgewicht, Euro_Norm, Kraftstoffe)]],Auswahl_Lkw_pkw,EF_Ausbringung[AP (mol H+ Äq. / Einheit)])","v":0},{"$f":"SUMIF(Eingabe_Ausbringungen[Angaben zu den Fahrzeugen (Lkw: zulässiges Gesamtgewicht, Euro Norm, Kraftstoff)],Result_Ausbringung[[#This Row],[Fahrzeuge (Lkw, zulässiges Gesamtgewicht, Euro_Norm, Kraftstoffe)]],Eingabe_Ausbringungen[Verbrauch Kraftstoffe])*_xlfn.XLOOKUP(Result_Ausbringung[[#This Row],[Fahrzeuge (Lkw, zulässiges Gesamtgewicht, Euro_Norm, Kraftstoffe)]],Auswahl_Lkw_pkw,EF_Ausbringung[ODP (kg FCKW-11 Äq. / Einheit)])","v":0},{"$f":"SUMIF(Eingabe_Ausbringungen[Angaben zu den Fahrzeugen (Lkw: zulässiges Gesamtgewicht, Euro Norm, Kraftstoff)],Result_Ausbringung[[#This Row],[Fahrzeuge (Lkw, zulässiges Gesamtgewicht, Euro_Norm, Kraftstoffe)]],Eingabe_Ausbringungen[Verbrauch Kraftstoffe])*_xlfn.XLOOKUP(Result_Ausbringung[[#This Row],[Fahrzeuge (Lkw, zulässiges Gesamtgewicht, Euro_Norm, Kraftstoffe)]],Auswahl_Lkw_pkw,EF_Ausbringung[POCP (kg NMVOC Äq. / Einheit)])","v":0}]
[null,null,"Lkw >14-26t, Euro 4, Diesel",{"$f":"SUMIF(Eingabe_Ausbringungen[Angaben zu den Fahrzeugen (Lkw: zulässiges Gesamtgewicht, Euro Norm, Kraftstoff)],Result_Ausbringung[[#This Row],[Fahrzeuge (Lkw, zulässiges Gesamtgewicht, Euro_Norm, Kraftstoffe)]],Eingabe_Ausbringungen[Verbrauch Kraftstoffe])*_xlfn.XLOOKUP(Result_Ausbringung[[#This Row],[Fahrzeuge (Lkw, zulässiges Gesamtgewicht, Euro_Norm, Kraftstoffe)]],Auswahl_Lkw_pkw,EF_Ausbringung[KEA (MJ  / Einheit)])","v":0},{"$f":"SUMIF(Eingabe_Ausbringungen[Angaben zu den Fahrzeugen (Lkw: zulässiges Gesamtgewicht, Euro Norm, Kraftstoff)],Result_Ausbringung[[#This Row],[Fahrzeuge (Lkw, zulässiges Gesamtgewicht, Euro_Norm, Kraftstoffe)]],Eingabe_Ausbringungen[Verbrauch Kraftstoffe])*_xlfn.XLOOKUP(Result_Ausbringung[[#This Row],[Fahrzeuge (Lkw, zulässiges Gesamtgewicht, Euro_Norm, Kraftstoffe)]],Auswahl_Lkw_pkw,EF_Ausbringung[GWP (kg CO2Äq. / Einheit)])","v":0},{"$f":"SUMIF(Eingabe_Ausbringungen[Angaben zu den Fahrzeugen (Lkw: zulässiges Gesamtgewicht, Euro Norm, Kraftstoff)],Result_Ausbringung[[#This Row],[Fahrzeuge (Lkw, zulässiges Gesamtgewicht, Euro_Norm, Kraftstoffe)]],Eingabe_Ausbringungen[Verbrauch Kraftstoffe])*_xlfn.XLOOKUP(Result_Ausbringung[[#This Row],[Fahrzeuge (Lkw, zulässiges Gesamtgewicht, Euro_Norm, Kraftstoffe)]],Auswahl_Lkw_pkw,EF_Ausbringung[AP (mol H+ Äq. / Einheit)])","v":0},{"$f":"SUMIF(Eingabe_Ausbringungen[Angaben zu den Fahrzeugen (Lkw: zulässiges Gesamtgewicht, Euro Norm, Kraftstoff)],Result_Ausbringung[[#This Row],[Fahrzeuge (Lkw, zulässiges Gesamtgewicht, Euro_Norm, Kraftstoffe)]],Eingabe_Ausbringungen[Verbrauch Kraftstoffe])*_xlfn.XLOOKUP(Result_Ausbringung[[#This Row],[Fahrzeuge (Lkw, zulässiges Gesamtgewicht, Euro_Norm, Kraftstoffe)]],Auswahl_Lkw_pkw,EF_Ausbringung[ODP (kg FCKW-11 Äq. / Einheit)])","v":0},{"$f":"SUMIF(Eingabe_Ausbringungen[Angaben zu den Fahrzeugen (Lkw: zulässiges Gesamtgewicht, Euro Norm, Kraftstoff)],Result_Ausbringung[[#This Row],[Fahrzeuge (Lkw, zulässiges Gesamtgewicht, Euro_Norm, Kraftstoffe)]],Eingabe_Ausbringungen[Verbrauch Kraftstoffe])*_xlfn.XLOOKUP(Result_Ausbringung[[#This Row],[Fahrzeuge (Lkw, zulässiges Gesamtgewicht, Euro_Norm, Kraftstoffe)]],Auswahl_Lkw_pkw,EF_Ausbringung[POCP (kg NMVOC Äq. / Einheit)])","v":0}]
[null,null,"Lkw >14-26t, Euro 5, Diesel",{"$f":"SUMIF(Eingabe_Ausbringungen[Angaben zu den Fahrzeugen (Lkw: zulässiges Gesamtgewicht, Euro Norm, Kraftstoff)],Result_Ausbringung[[#This Row],[Fahrzeuge (Lkw, zulässiges Gesamtgewicht, Euro_Norm, Kraftstoffe)]],Eingabe_Ausbringungen[Verbrauch Kraftstoffe])*_xlfn.XLOOKUP(Result_Ausbringung[[#This Row],[Fahrzeuge (Lkw, zulässiges Gesamtgewicht, Euro_Norm, Kraftstoffe)]],Auswahl_Lkw_pkw,EF_Ausbringung[KEA (MJ  / Einheit)])","v":0},{"$f":"SUMIF(Eingabe_Ausbringungen[Angaben zu den Fahrzeugen (Lkw: zulässiges Gesamtgewicht, Euro Norm, Kraftstoff)],Result_Ausbringung[[#This Row],[Fahrzeuge (Lkw, zulässiges Gesamtgewicht, Euro_Norm, Kraftstoffe)]],Eingabe_Ausbringungen[Verbrauch Kraftstoffe])*_xlfn.XLOOKUP(Result_Ausbringung[[#This Row],[Fahrzeuge (Lkw, zulässiges Gesamtgewicht, Euro_Norm, Kraftstoffe)]],Auswahl_Lkw_pkw,EF_Ausbringung[GWP (kg CO2Äq. / Einheit)])","v":0},{"$f":"SUMIF(Eingabe_Ausbringungen[Angaben zu den Fahrzeugen (Lkw: zulässiges Gesamtgewicht, Euro Norm, Kraftstoff)],Result_Ausbringung[[#This Row],[Fahrzeuge (Lkw, zulässiges Gesamtgewicht, Euro_Norm, Kraftstoffe)]],Eingabe_Ausbringungen[Verbrauch Kraftstoffe])*_xlfn.XLOOKUP(Result_Ausbringung[[#This Row],[Fahrzeuge (Lkw, zulässiges Gesamtgewicht, Euro_Norm, Kraftstoffe)]],Auswahl_Lkw_pkw,EF_Ausbringung[AP (mol H+ Äq. / Einheit)])","v":0},{"$f":"SUMIF(Eingabe_Ausbringungen[Angaben zu den Fahrzeugen (Lkw: zulässiges Gesamtgewicht, Euro Norm, Kraftstoff)],Result_Ausbringung[[#This Row],[Fahrzeuge (Lkw, zulässiges Gesamtgewicht, Euro_Norm, Kraftstoffe)]],Eingabe_Ausbringungen[Verbrauch Kraftstoffe])*_xlfn.XLOOKUP(Result_Ausbringung[[#This Row],[Fahrzeuge (Lkw, zulässiges Gesamtgewicht, Euro_Norm, Kraftstoffe)]],Auswahl_Lkw_pkw,EF_Ausbringung[ODP (kg FCKW-11 Äq. / Einheit)])","v":0},{"$f":"SUMIF(Eingabe_Ausbringungen[Angaben zu den Fahrzeugen (Lkw: zulässiges Gesamtgewicht, Euro Norm, Kraftstoff)],Result_Ausbringung[[#This Row],[Fahrzeuge (Lkw, zulässiges Gesamtgewicht, Euro_Norm, Kraftstoffe)]],Eingabe_Ausbringungen[Verbrauch Kraftstoffe])*_xlfn.XLOOKUP(Result_Ausbringung[[#This Row],[Fahrzeuge (Lkw, zulässiges Gesamtgewicht, Euro_Norm, Kraftstoffe)]],Auswahl_Lkw_pkw,EF_Ausbringung[POCP (kg NMVOC Äq. / Einheit)])","v":0}]
[null,null,"Lkw >14-26t, Euro 6, Diesel",{"$f":"SUMIF(Eingabe_Ausbringungen[Angaben zu den Fahrzeugen (Lkw: zulässiges Gesamtgewicht, Euro Norm, Kraftstoff)],Result_Ausbringung[[#This Row],[Fahrzeuge (Lkw, zulässiges Gesamtgewicht, Euro_Norm, Kraftstoffe)]],Eingabe_Ausbringungen[Verbrauch Kraftstoffe])*_xlfn.XLOOKUP(Result_Ausbringung[[#This Row],[Fahrzeuge (Lkw, zulässiges Gesamtgewicht, Euro_Norm, Kraftstoffe)]],Auswahl_Lkw_pkw,EF_Ausbringung[KEA (MJ  / Einheit)])","v":0},{"$f":"SUMIF(Eingabe_Ausbringungen[Angaben zu den Fahrzeugen (Lkw: zulässiges Gesamtgewicht, Euro Norm, Kraftstoff)],Result_Ausbringung[[#This Row],[Fahrzeuge (Lkw, zulässiges Gesamtgewicht, Euro_Norm, Kraftstoffe)]],Eingabe_Ausbringungen[Verbrauch Kraftstoffe])*_xlfn.XLOOKUP(Result_Ausbringung[[#This Row],[Fahrzeuge (Lkw, zulässiges Gesamtgewicht, Euro_Norm, Kraftstoffe)]],Auswahl_Lkw_pkw,EF_Ausbringung[GWP (kg CO2Äq. / Einheit)])","v":0},{"$f":"SUMIF(Eingabe_Ausbringungen[Angaben zu den Fahrzeugen (Lkw: zulässiges Gesamtgewicht, Euro Norm, Kraftstoff)],Result_Ausbringung[[#This Row],[Fahrzeuge (Lkw, zulässiges Gesamtgewicht, Euro_Norm, Kraftstoffe)]],Eingabe_Ausbringungen[Verbrauch Kraftstoffe])*_xlfn.XLOOKUP(Result_Ausbringung[[#This Row],[Fahrzeuge (Lkw, zulässiges Gesamtgewicht, Euro_Norm, Kraftstoffe)]],Auswahl_Lkw_pkw,EF_Ausbringung[AP (mol H+ Äq. / Einheit)])","v":0},{"$f":"SUMIF(Eingabe_Ausbringungen[Angaben zu den Fahrzeugen (Lkw: zulässiges Gesamtgewicht, Euro Norm, Kraftstoff)],Result_Ausbringung[[#This Row],[Fahrzeuge (Lkw, zulässiges Gesamtgewicht, Euro_Norm, Kraftstoffe)]],Eingabe_Ausbringungen[Verbrauch Kraftstoffe])*_xlfn.XLOOKUP(Result_Ausbringung[[#This Row],[Fahrzeuge (Lkw, zulässiges Gesamtgewicht, Euro_Norm, Kraftstoffe)]],Auswahl_Lkw_pkw,EF_Ausbringung[ODP (kg FCKW-11 Äq. / Einheit)])","v":0},{"$f":"SUMIF(Eingabe_Ausbringungen[Angaben zu den Fahrzeugen (Lkw: zulässiges Gesamtgewicht, Euro Norm, Kraftstoff)],Result_Ausbringung[[#This Row],[Fahrzeuge (Lkw, zulässiges Gesamtgewicht, Euro_Norm, Kraftstoffe)]],Eingabe_Ausbringungen[Verbrauch Kraftstoffe])*_xlfn.XLOOKUP(Result_Ausbringung[[#This Row],[Fahrzeuge (Lkw, zulässiges Gesamtgewicht, Euro_Norm, Kraftstoffe)]],Auswahl_Lkw_pkw,EF_Ausbringung[POCP (kg NMVOC Äq. / Einheit)])","v":0}]
[null,null,"Lkw / Unimog >7.5-14t, Euro 3, Diesel",{"$f":"SUMIF(Eingabe_Ausbringungen[Angaben zu den Fahrzeugen (Lkw: zulässiges Gesamtgewicht, Euro Norm, Kraftstoff)],Result_Ausbringung[[#This Row],[Fahrzeuge (Lkw, zulässiges Gesamtgewicht, Euro_Norm, Kraftstoffe)]],Eingabe_Ausbringungen[Verbrauch Kraftstoffe])*_xlfn.XLOOKUP(Result_Ausbringung[[#This Row],[Fahrzeuge (Lkw, zulässiges Gesamtgewicht, Euro_Norm, Kraftstoffe)]],Auswahl_Lkw_pkw,EF_Ausbringung[KEA (MJ  / Einheit)])","v":0},{"$f":"SUMIF(Eingabe_Ausbringungen[Angaben zu den Fahrzeugen (Lkw: zulässiges Gesamtgewicht, Euro Norm, Kraftstoff)],Result_Ausbringung[[#This Row],[Fahrzeuge (Lkw, zulässiges Gesamtgewicht, Euro_Norm, Kraftstoffe)]],Eingabe_Ausbringungen[Verbrauch Kraftstoffe])*_xlfn.XLOOKUP(Result_Ausbringung[[#This Row],[Fahrzeuge (Lkw, zulässiges Gesamtgewicht, Euro_Norm, Kraftstoffe)]],Auswahl_Lkw_pkw,EF_Ausbringung[GWP (kg CO2Äq. / Einheit)])","v":0},{"$f":"SUMIF(Eingabe_Ausbringungen[Angaben zu den Fahrzeugen (Lkw: zulässiges Gesamtgewicht, Euro Norm, Kraftstoff)],Result_Ausbringung[[#This Row],[Fahrzeuge (Lkw, zulässiges Gesamtgewicht, Euro_Norm, Kraftstoffe)]],Eingabe_Ausbringungen[Verbrauch Kraftstoffe])*_xlfn.XLOOKUP(Result_Ausbringung[[#This Row],[Fahrzeuge (Lkw, zulässiges Gesamtgewicht, Euro_Norm, Kraftstoffe)]],Auswahl_Lkw_pkw,EF_Ausbringung[AP (mol H+ Äq. / Einheit)])","v":0},{"$f":"SUMIF(Eingabe_Ausbringungen[Angaben zu den Fahrzeugen (Lkw: zulässiges Gesamtgewicht, Euro Norm, Kraftstoff)],Result_Ausbringung[[#This Row],[Fahrzeuge (Lkw, zulässiges Gesamtgewicht, Euro_Norm, Kraftstoffe)]],Eingabe_Ausbringungen[Verbrauch Kraftstoffe])*_xlfn.XLOOKUP(Result_Ausbringung[[#This Row],[Fahrzeuge (Lkw, zulässiges Gesamtgewicht, Euro_Norm, Kraftstoffe)]],Auswahl_Lkw_pkw,EF_Ausbringung[ODP (kg FCKW-11 Äq. / Einheit)])","v":0},{"$f":"SUMIF(Eingabe_Ausbringungen[Angaben zu den Fahrzeugen (Lkw: zulässiges Gesamtgewicht, Euro Norm, Kraftstoff)],Result_Ausbringung[[#This Row],[Fahrzeuge (Lkw, zulässiges Gesamtgewicht, Euro_Norm, Kraftstoffe)]],Eingabe_Ausbringungen[Verbrauch Kraftstoffe])*_xlfn.XLOOKUP(Result_Ausbringung[[#This Row],[Fahrzeuge (Lkw, zulässiges Gesamtgewicht, Euro_Norm, Kraftstoffe)]],Auswahl_Lkw_pkw,EF_Ausbringung[POCP (kg NMVOC Äq. / Einheit)])","v":0}]
[null,null,"Lkw / Unimog >7.5-14t, Euro 4, Diesel",{"$f":"SUMIF(Eingabe_Ausbringungen[Angaben zu den Fahrzeugen (Lkw: zulässiges Gesamtgewicht, Euro Norm, Kraftstoff)],Result_Ausbringung[[#This Row],[Fahrzeuge (Lkw, zulässiges Gesamtgewicht, Euro_Norm, Kraftstoffe)]],Eingabe_Ausbringungen[Verbrauch Kraftstoffe])*_xlfn.XLOOKUP(Result_Ausbringung[[#This Row],[Fahrzeuge (Lkw, zulässiges Gesamtgewicht, Euro_Norm, Kraftstoffe)]],Auswahl_Lkw_pkw,EF_Ausbringung[KEA (MJ  / Einheit)])","v":0},{"$f":"SUMIF(Eingabe_Ausbringungen[Angaben zu den Fahrzeugen (Lkw: zulässiges Gesamtgewicht, Euro Norm, Kraftstoff)],Result_Ausbringung[[#This Row],[Fahrzeuge (Lkw, zulässiges Gesamtgewicht, Euro_Norm, Kraftstoffe)]],Eingabe_Ausbringungen[Verbrauch Kraftstoffe])*_xlfn.XLOOKUP(Result_Ausbringung[[#This Row],[Fahrzeuge (Lkw, zulässiges Gesamtgewicht, Euro_Norm, Kraftstoffe)]],Auswahl_Lkw_pkw,EF_Ausbringung[GWP (kg CO2Äq. / Einheit)])","v":0},{"$f":"SUMIF(Eingabe_Ausbringungen[Angaben zu den Fahrzeugen (Lkw: zulässiges Gesamtgewicht, Euro Norm, Kraftstoff)],Result_Ausbringung[[#This Row],[Fahrzeuge (Lkw, zulässiges Gesamtgewicht, Euro_Norm, Kraftstoffe)]],Eingabe_Ausbringungen[Verbrauch Kraftstoffe])*_xlfn.XLOOKUP(Result_Ausbringung[[#This Row],[Fahrzeuge (Lkw, zulässiges Gesamtgewicht, Euro_Norm, Kraftstoffe)]],Auswahl_Lkw_pkw,EF_Ausbringung[AP (mol H+ Äq. / Einheit)])","v":0},{"$f":"SUMIF(Eingabe_Ausbringungen[Angaben zu den Fahrzeugen (Lkw: zulässiges Gesamtgewicht, Euro Norm, Kraftstoff)],Result_Ausbringung[[#This Row],[Fahrzeuge (Lkw, zulässiges Gesamtgewicht, Euro_Norm, Kraftstoffe)]],Eingabe_Ausbringungen[Verbrauch Kraftstoffe])*_xlfn.XLOOKUP(Result_Ausbringung[[#This Row],[Fahrzeuge (Lkw, zulässiges Gesamtgewicht, Euro_Norm, Kraftstoffe)]],Auswahl_Lkw_pkw,EF_Ausbringung[ODP (kg FCKW-11 Äq. / Einheit)])","v":0},{"$f":"SUMIF(Eingabe_Ausbringungen[Angaben zu den Fahrzeugen (Lkw: zulässiges Gesamtgewicht, Euro Norm, Kraftstoff)],Result_Ausbringung[[#This Row],[Fahrzeuge (Lkw, zulässiges Gesamtgewicht, Euro_Norm, Kraftstoffe)]],Eingabe_Ausbringungen[Verbrauch Kraftstoffe])*_xlfn.XLOOKUP(Result_Ausbringung[[#This Row],[Fahrzeuge (Lkw, zulässiges Gesamtgewicht, Euro_Norm, Kraftstoffe)]],Auswahl_Lkw_pkw,EF_Ausbringung[POCP (kg NMVOC Äq. / Einheit)])","v":0}]
[null,null,"Lkw / Unimog >7.5-14t, Euro 5, Diesel",{"$f":"SUMIF(Eingabe_Ausbringungen[Angaben zu den Fahrzeugen (Lkw: zulässiges Gesamtgewicht, Euro Norm, Kraftstoff)],Result_Ausbringung[[#This Row],[Fahrzeuge (Lkw, zulässiges Gesamtgewicht, Euro_Norm, Kraftstoffe)]],Eingabe_Ausbringungen[Verbrauch Kraftstoffe])*_xlfn.XLOOKUP(Result_Ausbringung[[#This Row],[Fahrzeuge (Lkw, zulässiges Gesamtgewicht, Euro_Norm, Kraftstoffe)]],Auswahl_Lkw_pkw,EF_Ausbringung[KEA (MJ  / Einheit)])","v":0},{"$f":"SUMIF(Eingabe_Ausbringungen[Angaben zu den Fahrzeugen (Lkw: zulässiges Gesamtgewicht, Euro Norm, Kraftstoff)],Result_Ausbringung[[#This Row],[Fahrzeuge (Lkw, zulässiges Gesamtgewicht, Euro_Norm, Kraftstoffe)]],Eingabe_Ausbringungen[Verbrauch Kraftstoffe])*_xlfn.XLOOKUP(Result_Ausbringung[[#This Row],[Fahrzeuge (Lkw, zulässiges Gesamtgewicht, Euro_Norm, Kraftstoffe)]],Auswahl_Lkw_pkw,EF_Ausbringung[GWP (kg CO2Äq. / Einheit)])","v":0},{"$f":"SUMIF(Eingabe_Ausbringungen[Angaben zu den Fahrzeugen (Lkw: zulässiges Gesamtgewicht, Euro Norm, Kraftstoff)],Result_Ausbringung[[#This Row],[Fahrzeuge (Lkw, zulässiges Gesamtgewicht, Euro_Norm, Kraftstoffe)]],Eingabe_Ausbringungen[Verbrauch Kraftstoffe])*_xlfn.XLOOKUP(Result_Ausbringung[[#This Row],[Fahrzeuge (Lkw, zulässiges Gesamtgewicht, Euro_Norm, Kraftstoffe)]],Auswahl_Lkw_pkw,EF_Ausbringung[AP (mol H+ Äq. / Einheit)])","v":0},{"$f":"SUMIF(Eingabe_Ausbringungen[Angaben zu den Fahrzeugen (Lkw: zulässiges Gesamtgewicht, Euro Norm, Kraftstoff)],Result_Ausbringung[[#This Row],[Fahrzeuge (Lkw, zulässiges Gesamtgewicht, Euro_Norm, Kraftstoffe)]],Eingabe_Ausbringungen[Verbrauch Kraftstoffe])*_xlfn.XLOOKUP(Result_Ausbringung[[#This Row],[Fahrzeuge (Lkw, zulässiges Gesamtgewicht, Euro_Norm, Kraftstoffe)]],Auswahl_Lkw_pkw,EF_Ausbringung[ODP (kg FCKW-11 Äq. / Einheit)])","v":0},{"$f":"SUMIF(Eingabe_Ausbringungen[Angaben zu den Fahrzeugen (Lkw: zulässiges Gesamtgewicht, Euro Norm, Kraftstoff)],Result_Ausbringung[[#This Row],[Fahrzeuge (Lkw, zulässiges Gesamtgewicht, Euro_Norm, Kraftstoffe)]],Eingabe_Ausbringungen[Verbrauch Kraftstoffe])*_xlfn.XLOOKUP(Result_Ausbringung[[#This Row],[Fahrzeuge (Lkw, zulässiges Gesamtgewicht, Euro_Norm, Kraftstoffe)]],Auswahl_Lkw_pkw,EF_Ausbringung[POCP (kg NMVOC Äq. / Einheit)])","v":0}]
[null,null,"Lkw / Unimog >7.5-14t, Euro 6, Diesel",{"$f":"SUMIF(Eingabe_Ausbringungen[Angaben zu den Fahrzeugen (Lkw: zulässiges Gesamtgewicht, Euro Norm, Kraftstoff)],Result_Ausbringung[[#This Row],[Fahrzeuge (Lkw, zulässiges Gesamtgewicht, Euro_Norm, Kraftstoffe)]],Eingabe_Ausbringungen[Verbrauch Kraftstoffe])*_xlfn.XLOOKUP(Result_Ausbringung[[#This Row],[Fahrzeuge (Lkw, zulässiges Gesamtgewicht, Euro_Norm, Kraftstoffe)]],Auswahl_Lkw_pkw,EF_Ausbringung[KEA (MJ  / Einheit)])","v":0},{"$f":"SUMIF(Eingabe_Ausbringungen[Angaben zu den Fahrzeugen (Lkw: zulässiges Gesamtgewicht, Euro Norm, Kraftstoff)],Result_Ausbringung[[#This Row],[Fahrzeuge (Lkw, zulässiges Gesamtgewicht, Euro_Norm, Kraftstoffe)]],Eingabe_Ausbringungen[Verbrauch Kraftstoffe])*_xlfn.XLOOKUP(Result_Ausbringung[[#This Row],[Fahrzeuge (Lkw, zulässiges Gesamtgewicht, Euro_Norm, Kraftstoffe)]],Auswahl_Lkw_pkw,EF_Ausbringung[GWP (kg CO2Äq. / Einheit)])","v":0},{"$f":"SUMIF(Eingabe_Ausbringungen[Angaben zu den Fahrzeugen (Lkw: zulässiges Gesamtgewicht, Euro Norm, Kraftstoff)],Result_Ausbringung[[#This Row],[Fahrzeuge (Lkw, zulässiges Gesamtgewicht, Euro_Norm, Kraftstoffe)]],Eingabe_Ausbringungen[Verbrauch Kraftstoffe])*_xlfn.XLOOKUP(Result_Ausbringung[[#This Row],[Fahrzeuge (Lkw, zulässiges Gesamtgewicht, Euro_Norm, Kraftstoffe)]],Auswahl_Lkw_pkw,EF_Ausbringung[AP (mol H+ Äq. / Einheit)])","v":0},{"$f":"SUMIF(Eingabe_Ausbringungen[Angaben zu den Fahrzeugen (Lkw: zulässiges Gesamtgewicht, Euro Norm, Kraftstoff)],Result_Ausbringung[[#This Row],[Fahrzeuge (Lkw, zulässiges Gesamtgewicht, Euro_Norm, Kraftstoffe)]],Eingabe_Ausbringungen[Verbrauch Kraftstoffe])*_xlfn.XLOOKUP(Result_Ausbringung[[#This Row],[Fahrzeuge (Lkw, zulässiges Gesamtgewicht, Euro_Norm, Kraftstoffe)]],Auswahl_Lkw_pkw,EF_Ausbringung[ODP (kg FCKW-11 Äq. / Einheit)])","v":0},{"$f":"SUMIF(Eingabe_Ausbringungen[Angaben zu den Fahrzeugen (Lkw: zulässiges Gesamtgewicht, Euro Norm, Kraftstoff)],Result_Ausbringung[[#This Row],[Fahrzeuge (Lkw, zulässiges Gesamtgewicht, Euro_Norm, Kraftstoffe)]],Eingabe_Ausbringungen[Verbrauch Kraftstoffe])*_xlfn.XLOOKUP(Result_Ausbringung[[#This Row],[Fahrzeuge (Lkw, zulässiges Gesamtgewicht, Euro_Norm, Kraftstoffe)]],Auswahl_Lkw_pkw,EF_Ausbringung[POCP (kg NMVOC Äq. / Einheit)])","v":0}]
[null,null,"Unimog ≤7,5t,  Euro 3, Diesel",{"$f":"SUMIF(Eingabe_Ausbringungen[Angaben zu den Fahrzeugen (Lkw: zulässiges Gesamtgewicht, Euro Norm, Kraftstoff)],Result_Ausbringung[[#This Row],[Fahrzeuge (Lkw, zulässiges Gesamtgewicht, Euro_Norm, Kraftstoffe)]],Eingabe_Ausbringungen[Verbrauch Kraftstoffe])*_xlfn.XLOOKUP(Result_Ausbringung[[#This Row],[Fahrzeuge (Lkw, zulässiges Gesamtgewicht, Euro_Norm, Kraftstoffe)]],Auswahl_Lkw_pkw,EF_Ausbringung[KEA (MJ  / Einheit)])","v":0},{"$f":"SUMIF(Eingabe_Ausbringungen[Angaben zu den Fahrzeugen (Lkw: zulässiges Gesamtgewicht, Euro Norm, Kraftstoff)],Result_Ausbringung[[#This Row],[Fahrzeuge (Lkw, zulässiges Gesamtgewicht, Euro_Norm, Kraftstoffe)]],Eingabe_Ausbringungen[Verbrauch Kraftstoffe])*_xlfn.XLOOKUP(Result_Ausbringung[[#This Row],[Fahrzeuge (Lkw, zulässiges Gesamtgewicht, Euro_Norm, Kraftstoffe)]],Auswahl_Lkw_pkw,EF_Ausbringung[GWP (kg CO2Äq. / Einheit)])","v":0},{"$f":"SUMIF(Eingabe_Ausbringungen[Angaben zu den Fahrzeugen (Lkw: zulässiges Gesamtgewicht, Euro Norm, Kraftstoff)],Result_Ausbringung[[#This Row],[Fahrzeuge (Lkw, zulässiges Gesamtgewicht, Euro_Norm, Kraftstoffe)]],Eingabe_Ausbringungen[Verbrauch Kraftstoffe])*_xlfn.XLOOKUP(Result_Ausbringung[[#This Row],[Fahrzeuge (Lkw, zulässiges Gesamtgewicht, Euro_Norm, Kraftstoffe)]],Auswahl_Lkw_pkw,EF_Ausbringung[AP (mol H+ Äq. / Einheit)])","v":0},{"$f":"SUMIF(Eingabe_Ausbringungen[Angaben zu den Fahrzeugen (Lkw: zulässiges Gesamtgewicht, Euro Norm, Kraftstoff)],Result_Ausbringung[[#This Row],[Fahrzeuge (Lkw, zulässiges Gesamtgewicht, Euro_Norm, Kraftstoffe)]],Eingabe_Ausbringungen[Verbrauch Kraftstoffe])*_xlfn.XLOOKUP(Result_Ausbringung[[#This Row],[Fahrzeuge (Lkw, zulässiges Gesamtgewicht, Euro_Norm, Kraftstoffe)]],Auswahl_Lkw_pkw,EF_Ausbringung[ODP (kg FCKW-11 Äq. / Einheit)])","v":0},{"$f":"SUMIF(Eingabe_Ausbringungen[Angaben zu den Fahrzeugen (Lkw: zulässiges Gesamtgewicht, Euro Norm, Kraftstoff)],Result_Ausbringung[[#This Row],[Fahrzeuge (Lkw, zulässiges Gesamtgewicht, Euro_Norm, Kraftstoffe)]],Eingabe_Ausbringungen[Verbrauch Kraftstoffe])*_xlfn.XLOOKUP(Result_Ausbringung[[#This Row],[Fahrzeuge (Lkw, zulässiges Gesamtgewicht, Euro_Norm, Kraftstoffe)]],Auswahl_Lkw_pkw,EF_Ausbringung[POCP (kg NMVOC Äq. / Einheit)])","v":0}]
[null,null,"Unimog ≤7,5t,  Euro 4, Diesel",{"$f":"SUMIF(Eingabe_Ausbringungen[Angaben zu den Fahrzeugen (Lkw: zulässiges Gesamtgewicht, Euro Norm, Kraftstoff)],Result_Ausbringung[[#This Row],[Fahrzeuge (Lkw, zulässiges Gesamtgewicht, Euro_Norm, Kraftstoffe)]],Eingabe_Ausbringungen[Verbrauch Kraftstoffe])*_xlfn.XLOOKUP(Result_Ausbringung[[#This Row],[Fahrzeuge (Lkw, zulässiges Gesamtgewicht, Euro_Norm, Kraftstoffe)]],Auswahl_Lkw_pkw,EF_Ausbringung[KEA (MJ  / Einheit)])","v":0},{"$f":"SUMIF(Eingabe_Ausbringungen[Angaben zu den Fahrzeugen (Lkw: zulässiges Gesamtgewicht, Euro Norm, Kraftstoff)],Result_Ausbringung[[#This Row],[Fahrzeuge (Lkw, zulässiges Gesamtgewicht, Euro_Norm, Kraftstoffe)]],Eingabe_Ausbringungen[Verbrauch Kraftstoffe])*_xlfn.XLOOKUP(Result_Ausbringung[[#This Row],[Fahrzeuge (Lkw, zulässiges Gesamtgewicht, Euro_Norm, Kraftstoffe)]],Auswahl_Lkw_pkw,EF_Ausbringung[GWP (kg CO2Äq. / Einheit)])","v":0},{"$f":"SUMIF(Eingabe_Ausbringungen[Angaben zu den Fahrzeugen (Lkw: zulässiges Gesamtgewicht, Euro Norm, Kraftstoff)],Result_Ausbringung[[#This Row],[Fahrzeuge (Lkw, zulässiges Gesamtgewicht, Euro_Norm, Kraftstoffe)]],Eingabe_Ausbringungen[Verbrauch Kraftstoffe])*_xlfn.XLOOKUP(Result_Ausbringung[[#This Row],[Fahrzeuge (Lkw, zulässiges Gesamtgewicht, Euro_Norm, Kraftstoffe)]],Auswahl_Lkw_pkw,EF_Ausbringung[AP (mol H+ Äq. / Einheit)])","v":0},{"$f":"SUMIF(Eingabe_Ausbringungen[Angaben zu den Fahrzeugen (Lkw: zulässiges Gesamtgewicht, Euro Norm, Kraftstoff)],Result_Ausbringung[[#This Row],[Fahrzeuge (Lkw, zulässiges Gesamtgewicht, Euro_Norm, Kraftstoffe)]],Eingabe_Ausbringungen[Verbrauch Kraftstoffe])*_xlfn.XLOOKUP(Result_Ausbringung[[#This Row],[Fahrzeuge (Lkw, zulässiges Gesamtgewicht, Euro_Norm, Kraftstoffe)]],Auswahl_Lkw_pkw,EF_Ausbringung[ODP (kg FCKW-11 Äq. / Einheit)])","v":0},{"$f":"SUMIF(Eingabe_Ausbringungen[Angaben zu den Fahrzeugen (Lkw: zulässiges Gesamtgewicht, Euro Norm, Kraftstoff)],Result_Ausbringung[[#This Row],[Fahrzeuge (Lkw, zulässiges Gesamtgewicht, Euro_Norm, Kraftstoffe)]],Eingabe_Ausbringungen[Verbrauch Kraftstoffe])*_xlfn.XLOOKUP(Result_Ausbringung[[#This Row],[Fahrzeuge (Lkw, zulässiges Gesamtgewicht, Euro_Norm, Kraftstoffe)]],Auswahl_Lkw_pkw,EF_Ausbringung[POCP (kg NMVOC Äq. / Einheit)])","v":0}]
[null,null,"Unimog ≤7,5t,  Euro 5, Diesel",{"$f":"SUMIF(Eingabe_Ausbringungen[Angaben zu den Fahrzeugen (Lkw: zulässiges Gesamtgewicht, Euro Norm, Kraftstoff)],Result_Ausbringung[[#This Row],[Fahrzeuge (Lkw, zulässiges Gesamtgewicht, Euro_Norm, Kraftstoffe)]],Eingabe_Ausbringungen[Verbrauch Kraftstoffe])*_xlfn.XLOOKUP(Result_Ausbringung[[#This Row],[Fahrzeuge (Lkw, zulässiges Gesamtgewicht, Euro_Norm, Kraftstoffe)]],Auswahl_Lkw_pkw,EF_Ausbringung[KEA (MJ  / Einheit)])","v":0},{"$f":"SUMIF(Eingabe_Ausbringungen[Angaben zu den Fahrzeugen (Lkw: zulässiges Gesamtgewicht, Euro Norm, Kraftstoff)],Result_Ausbringung[[#This Row],[Fahrzeuge (Lkw, zulässiges Gesamtgewicht, Euro_Norm, Kraftstoffe)]],Eingabe_Ausbringungen[Verbrauch Kraftstoffe])*_xlfn.XLOOKUP(Result_Ausbringung[[#This Row],[Fahrzeuge (Lkw, zulässiges Gesamtgewicht, Euro_Norm, Kraftstoffe)]],Auswahl_Lkw_pkw,EF_Ausbringung[GWP (kg CO2Äq. / Einheit)])","v":0},{"$f":"SUMIF(Eingabe_Ausbringungen[Angaben zu den Fahrzeugen (Lkw: zulässiges Gesamtgewicht, Euro Norm, Kraftstoff)],Result_Ausbringung[[#This Row],[Fahrzeuge (Lkw, zulässiges Gesamtgewicht, Euro_Norm, Kraftstoffe)]],Eingabe_Ausbringungen[Verbrauch Kraftstoffe])*_xlfn.XLOOKUP(Result_Ausbringung[[#This Row],[Fahrzeuge (Lkw, zulässiges Gesamtgewicht, Euro_Norm, Kraftstoffe)]],Auswahl_Lkw_pkw,EF_Ausbringung[AP (mol H+ Äq. / Einheit)])","v":0},{"$f":"SUMIF(Eingabe_Ausbringungen[Angaben zu den Fahrzeugen (Lkw: zulässiges Gesamtgewicht, Euro Norm, Kraftstoff)],Result_Ausbringung[[#This Row],[Fahrzeuge (Lkw, zulässiges Gesamtgewicht, Euro_Norm, Kraftstoffe)]],Eingabe_Ausbringungen[Verbrauch Kraftstoffe])*_xlfn.XLOOKUP(Result_Ausbringung[[#This Row],[Fahrzeuge (Lkw, zulässiges Gesamtgewicht, Euro_Norm, Kraftstoffe)]],Auswahl_Lkw_pkw,EF_Ausbringung[ODP (kg FCKW-11 Äq. / Einheit)])","v":0},{"$f":"SUMIF(Eingabe_Ausbringungen[Angaben zu den Fahrzeugen (Lkw: zulässiges Gesamtgewicht, Euro Norm, Kraftstoff)],Result_Ausbringung[[#This Row],[Fahrzeuge (Lkw, zulässiges Gesamtgewicht, Euro_Norm, Kraftstoffe)]],Eingabe_Ausbringungen[Verbrauch Kraftstoffe])*_xlfn.XLOOKUP(Result_Ausbringung[[#This Row],[Fahrzeuge (Lkw, zulässiges Gesamtgewicht, Euro_Norm, Kraftstoffe)]],Auswahl_Lkw_pkw,EF_Ausbringung[POCP (kg NMVOC Äq. / Einheit)])","v":0}]
[null,null,"Unimog ≤7,5t,  Euro 6, Diesel",{"$f":"SUMIF(Eingabe_Ausbringungen[Angaben zu den Fahrzeugen (Lkw: zulässiges Gesamtgewicht, Euro Norm, Kraftstoff)],Result_Ausbringung[[#This Row],[Fahrzeuge (Lkw, zulässiges Gesamtgewicht, Euro_Norm, Kraftstoffe)]],Eingabe_Ausbringungen[Verbrauch Kraftstoffe])*_xlfn.XLOOKUP(Result_Ausbringung[[#This Row],[Fahrzeuge (Lkw, zulässiges Gesamtgewicht, Euro_Norm, Kraftstoffe)]],Auswahl_Lkw_pkw,EF_Ausbringung[KEA (MJ  / Einheit)])","v":0},{"$f":"SUMIF(Eingabe_Ausbringungen[Angaben zu den Fahrzeugen (Lkw: zulässiges Gesamtgewicht, Euro Norm, Kraftstoff)],Result_Ausbringung[[#This Row],[Fahrzeuge (Lkw, zulässiges Gesamtgewicht, Euro_Norm, Kraftstoffe)]],Eingabe_Ausbringungen[Verbrauch Kraftstoffe])*_xlfn.XLOOKUP(Result_Ausbringung[[#This Row],[Fahrzeuge (Lkw, zulässiges Gesamtgewicht, Euro_Norm, Kraftstoffe)]],Auswahl_Lkw_pkw,EF_Ausbringung[GWP (kg CO2Äq. / Einheit)])","v":0},{"$f":"SUMIF(Eingabe_Ausbringungen[Angaben zu den Fahrzeugen (Lkw: zulässiges Gesamtgewicht, Euro Norm, Kraftstoff)],Result_Ausbringung[[#This Row],[Fahrzeuge (Lkw, zulässiges Gesamtgewicht, Euro_Norm, Kraftstoffe)]],Eingabe_Ausbringungen[Verbrauch Kraftstoffe])*_xlfn.XLOOKUP(Result_Ausbringung[[#This Row],[Fahrzeuge (Lkw, zulässiges Gesamtgewicht, Euro_Norm, Kraftstoffe)]],Auswahl_Lkw_pkw,EF_Ausbringung[AP (mol H+ Äq. / Einheit)])","v":0},{"$f":"SUMIF(Eingabe_Ausbringungen[Angaben zu den Fahrzeugen (Lkw: zulässiges Gesamtgewicht, Euro Norm, Kraftstoff)],Result_Ausbringung[[#This Row],[Fahrzeuge (Lkw, zulässiges Gesamtgewicht, Euro_Norm, Kraftstoffe)]],Eingabe_Ausbringungen[Verbrauch Kraftstoffe])*_xlfn.XLOOKUP(Result_Ausbringung[[#This Row],[Fahrzeuge (Lkw, zulässiges Gesamtgewicht, Euro_Norm, Kraftstoffe)]],Auswahl_Lkw_pkw,EF_Ausbringung[ODP (kg FCKW-11 Äq. / Einheit)])","v":0},{"$f":"SUMIF(Eingabe_Ausbringungen[Angaben zu den Fahrzeugen (Lkw: zulässiges Gesamtgewicht, Euro Norm, Kraftstoff)],Result_Ausbringung[[#This Row],[Fahrzeuge (Lkw, zulässiges Gesamtgewicht, Euro_Norm, Kraftstoffe)]],Eingabe_Ausbringungen[Verbrauch Kraftstoffe])*_xlfn.XLOOKUP(Result_Ausbringung[[#This Row],[Fahrzeuge (Lkw, zulässiges Gesamtgewicht, Euro_Norm, Kraftstoffe)]],Auswahl_Lkw_pkw,EF_Ausbringung[POCP (kg NMVOC Äq. / Einheit)])","v":0}]
[null,null,"Lkw, Biodiesel",{"$f":"SUMIF(Eingabe_Ausbringungen[Angaben zu den Fahrzeugen (Lkw: zulässiges Gesamtgewicht, Euro Norm, Kraftstoff)],Result_Ausbringung[[#This Row],[Fahrzeuge (Lkw, zulässiges Gesamtgewicht, Euro_Norm, Kraftstoffe)]],Eingabe_Ausbringungen[Verbrauch Kraftstoffe])*_xlfn.XLOOKUP(Result_Ausbringung[[#This Row],[Fahrzeuge (Lkw, zulässiges Gesamtgewicht, Euro_Norm, Kraftstoffe)]],Auswahl_Lkw_pkw,EF_Ausbringung[KEA (MJ  / Einheit)])","v":0},{"$f":"SUMIF(Eingabe_Ausbringungen[Angaben zu den Fahrzeugen (Lkw: zulässiges Gesamtgewicht, Euro Norm, Kraftstoff)],Result_Ausbringung[[#This Row],[Fahrzeuge (Lkw, zulässiges Gesamtgewicht, Euro_Norm, Kraftstoffe)]],Eingabe_Ausbringungen[Verbrauch Kraftstoffe])*_xlfn.XLOOKUP(Result_Ausbringung[[#This Row],[Fahrzeuge (Lkw, zulässiges Gesamtgewicht, Euro_Norm, Kraftstoffe)]],Auswahl_Lkw_pkw,EF_Ausbringung[GWP (kg CO2Äq. / Einheit)])","v":0},{"$f":"SUMIF(Eingabe_Ausbringungen[Angaben zu den Fahrzeugen (Lkw: zulässiges Gesamtgewicht, Euro Norm, Kraftstoff)],Result_Ausbringung[[#This Row],[Fahrzeuge (Lkw, zulässiges Gesamtgewicht, Euro_Norm, Kraftstoffe)]],Eingabe_Ausbringungen[Verbrauch Kraftstoffe])*_xlfn.XLOOKUP(Result_Ausbringung[[#This Row],[Fahrzeuge (Lkw, zulässiges Gesamtgewicht, Euro_Norm, Kraftstoffe)]],Auswahl_Lkw_pkw,EF_Ausbringung[AP (mol H+ Äq. / Einheit)])","v":0},{"$f":"IFERROR(SUMIF(Eingabe_Ausbringungen[Angaben zu den Fahrzeugen (Lkw: zulässiges Gesamtgewicht, Euro Norm, Kraftstoff)],Result_Ausbringung[[#This Row],[Fahrzeuge (Lkw, zulässiges Gesamtgewicht, Euro_Norm, Kraftstoffe)]],Eingabe_Ausbringungen[Verbrauch Kraftstoffe])*_xlfn.XLOOKUP(Result_Ausbringung[[#This Row],[Fahrzeuge (Lkw, zulässiges Gesamtgewicht, Euro_Norm, Kraftstoffe)]],Auswahl_Lkw_pkw,EF_Ausbringung[ODP (kg FCKW-11 Äq. / Einheit)]),\"k.A.\")","v":"k.A."},{"$f":"SUMIF(Eingabe_Ausbringungen[Angaben zu den Fahrzeugen (Lkw: zulässiges Gesamtgewicht, Euro Norm, Kraftstoff)],Result_Ausbringung[[#This Row],[Fahrzeuge (Lkw, zulässiges Gesamtgewicht, Euro_Norm, Kraftstoffe)]],Eingabe_Ausbringungen[Verbrauch Kraftstoffe])*_xlfn.XLOOKUP(Result_Ausbringung[[#This Row],[Fahrzeuge (Lkw, zulässiges Gesamtgewicht, Euro_Norm, Kraftstoffe)]],Auswahl_Lkw_pkw,EF_Ausbringung[POCP (kg NMVOC Äq. / Einheit)])","v":0}]
[null,null,"Pkw, Biodiesel",{"$f":"SUMIF(Eingabe_Ausbringungen[Angaben zu den Fahrzeugen (Lkw: zulässiges Gesamtgewicht, Euro Norm, Kraftstoff)],Result_Ausbringung[[#This Row],[Fahrzeuge (Lkw, zulässiges Gesamtgewicht, Euro_Norm, Kraftstoffe)]],Eingabe_Ausbringungen[Verbrauch Kraftstoffe])*_xlfn.XLOOKUP(Result_Ausbringung[[#This Row],[Fahrzeuge (Lkw, zulässiges Gesamtgewicht, Euro_Norm, Kraftstoffe)]],Auswahl_Lkw_pkw,EF_Ausbringung[KEA (MJ  / Einheit)])","v":0},{"$f":"SUMIF(Eingabe_Ausbringungen[Angaben zu den Fahrzeugen (Lkw: zulässiges Gesamtgewicht, Euro Norm, Kraftstoff)],Result_Ausbringung[[#This Row],[Fahrzeuge (Lkw, zulässiges Gesamtgewicht, Euro_Norm, Kraftstoffe)]],Eingabe_Ausbringungen[Verbrauch Kraftstoffe])*_xlfn.XLOOKUP(Result_Ausbringung[[#This Row],[Fahrzeuge (Lkw, zulässiges Gesamtgewicht, Euro_Norm, Kraftstoffe)]],Auswahl_Lkw_pkw,EF_Ausbringung[GWP (kg CO2Äq. / Einheit)])","v":0},{"$f":"SUMIF(Eingabe_Ausbringungen[Angaben zu den Fahrzeugen (Lkw: zulässiges Gesamtgewicht, Euro Norm, Kraftstoff)],Result_Ausbringung[[#This Row],[Fahrzeuge (Lkw, zulässiges Gesamtgewicht, Euro_Norm, Kraftstoffe)]],Eingabe_Ausbringungen[Verbrauch Kraftstoffe])*_xlfn.XLOOKUP(Result_Ausbringung[[#This Row],[Fahrzeuge (Lkw, zulässiges Gesamtgewicht, Euro_Norm, Kraftstoffe)]],Auswahl_Lkw_pkw,EF_Ausbringung[AP (mol H+ Äq. / Einheit)])","v":0},{"$f":"IFERROR(SUMIF(Eingabe_Ausbringungen[Angaben zu den Fahrzeugen (Lkw: zulässiges Gesamtgewicht, Euro Norm, Kraftstoff)],Result_Ausbringung[[#This Row],[Fahrzeuge (Lkw, zulässiges Gesamtgewicht, Euro_Norm, Kraftstoffe)]],Eingabe_Ausbringungen[Verbrauch Kraftstoffe])*_xlfn.XLOOKUP(Result_Ausbringung[[#This Row],[Fahrzeuge (Lkw, zulässiges Gesamtgewicht, Euro_Norm, Kraftstoffe)]],Auswahl_Lkw_pkw,EF_Ausbringung[ODP (kg FCKW-11 Äq. / Einheit)]),\"k.A.\")","v":"k.A."},{"$f":"SUMIF(Eingabe_Ausbringungen[Angaben zu den Fahrzeugen (Lkw: zulässiges Gesamtgewicht, Euro Norm, Kraftstoff)],Result_Ausbringung[[#This Row],[Fahrzeuge (Lkw, zulässiges Gesamtgewicht, Euro_Norm, Kraftstoffe)]],Eingabe_Ausbringungen[Verbrauch Kraftstoffe])*_xlfn.XLOOKUP(Result_Ausbringung[[#This Row],[Fahrzeuge (Lkw, zulässiges Gesamtgewicht, Euro_Norm, Kraftstoffe)]],Auswahl_Lkw_pkw,EF_Ausbringung[POCP (kg NMVOC Äq. / Einheit)])","v":0}]
[null,null,"Pkw, Diesel",{"$f":"SUMIF(Eingabe_Ausbringungen[Angaben zu den Fahrzeugen (Lkw: zulässiges Gesamtgewicht, Euro Norm, Kraftstoff)],Result_Ausbringung[[#This Row],[Fahrzeuge (Lkw, zulässiges Gesamtgewicht, Euro_Norm, Kraftstoffe)]],Eingabe_Ausbringungen[Verbrauch Kraftstoffe])*_xlfn.XLOOKUP(Result_Ausbringung[[#This Row],[Fahrzeuge (Lkw, zulässiges Gesamtgewicht, Euro_Norm, Kraftstoffe)]],Auswahl_Lkw_pkw,EF_Ausbringung[KEA (MJ  / Einheit)])","v":0},{"$f":"SUMIF(Eingabe_Ausbringungen[Angaben zu den Fahrzeugen (Lkw: zulässiges Gesamtgewicht, Euro Norm, Kraftstoff)],Result_Ausbringung[[#This Row],[Fahrzeuge (Lkw, zulässiges Gesamtgewicht, Euro_Norm, Kraftstoffe)]],Eingabe_Ausbringungen[Verbrauch Kraftstoffe])*_xlfn.XLOOKUP(Result_Ausbringung[[#This Row],[Fahrzeuge (Lkw, zulässiges Gesamtgewicht, Euro_Norm, Kraftstoffe)]],Auswahl_Lkw_pkw,EF_Ausbringung[GWP (kg CO2Äq. / Einheit)])","v":0},{"$f":"SUMIF(Eingabe_Ausbringungen[Angaben zu den Fahrzeugen (Lkw: zulässiges Gesamtgewicht, Euro Norm, Kraftstoff)],Result_Ausbringung[[#This Row],[Fahrzeuge (Lkw, zulässiges Gesamtgewicht, Euro_Norm, Kraftstoffe)]],Eingabe_Ausbringungen[Verbrauch Kraftstoffe])*_xlfn.XLOOKUP(Result_Ausbringung[[#This Row],[Fahrzeuge (Lkw, zulässiges Gesamtgewicht, Euro_Norm, Kraftstoffe)]],Auswahl_Lkw_pkw,EF_Ausbringung[AP (mol H+ Äq. / Einheit)])","v":0},{"$f":"SUMIF(Eingabe_Ausbringungen[Angaben zu den Fahrzeugen (Lkw: zulässiges Gesamtgewicht, Euro Norm, Kraftstoff)],Result_Ausbringung[[#This Row],[Fahrzeuge (Lkw, zulässiges Gesamtgewicht, Euro_Norm, Kraftstoffe)]],Eingabe_Ausbringungen[Verbrauch Kraftstoffe])*_xlfn.XLOOKUP(Result_Ausbringung[[#This Row],[Fahrzeuge (Lkw, zulässiges Gesamtgewicht, Euro_Norm, Kraftstoffe)]],Auswahl_Lkw_pkw,EF_Ausbringung[ODP (kg FCKW-11 Äq. / Einheit)])","v":0},{"$f":"SUMIF(Eingabe_Ausbringungen[Angaben zu den Fahrzeugen (Lkw: zulässiges Gesamtgewicht, Euro Norm, Kraftstoff)],Result_Ausbringung[[#This Row],[Fahrzeuge (Lkw, zulässiges Gesamtgewicht, Euro_Norm, Kraftstoffe)]],Eingabe_Ausbringungen[Verbrauch Kraftstoffe])*_xlfn.XLOOKUP(Result_Ausbringung[[#This Row],[Fahrzeuge (Lkw, zulässiges Gesamtgewicht, Euro_Norm, Kraftstoffe)]],Auswahl_Lkw_pkw,EF_Ausbringung[POCP (kg NMVOC Äq. / Einheit)])","v":0}]
[null,null,"Pkw, Benzin",{"$f":"SUMIF(Eingabe_Ausbringungen[Angaben zu den Fahrzeugen (Lkw: zulässiges Gesamtgewicht, Euro Norm, Kraftstoff)],Result_Ausbringung[[#This Row],[Fahrzeuge (Lkw, zulässiges Gesamtgewicht, Euro_Norm, Kraftstoffe)]],Eingabe_Ausbringungen[Verbrauch Kraftstoffe])*_xlfn.XLOOKUP(Result_Ausbringung[[#This Row],[Fahrzeuge (Lkw, zulässiges Gesamtgewicht, Euro_Norm, Kraftstoffe)]],Auswahl_Lkw_pkw,EF_Ausbringung[KEA (MJ  / Einheit)])","v":0},{"$f":"SUMIF(Eingabe_Ausbringungen[Angaben zu den Fahrzeugen (Lkw: zulässiges Gesamtgewicht, Euro Norm, Kraftstoff)],Result_Ausbringung[[#This Row],[Fahrzeuge (Lkw, zulässiges Gesamtgewicht, Euro_Norm, Kraftstoffe)]],Eingabe_Ausbringungen[Verbrauch Kraftstoffe])*_xlfn.XLOOKUP(Result_Ausbringung[[#This Row],[Fahrzeuge (Lkw, zulässiges Gesamtgewicht, Euro_Norm, Kraftstoffe)]],Auswahl_Lkw_pkw,EF_Ausbringung[GWP (kg CO2Äq. / Einheit)])","v":0},{"$f":"SUMIF(Eingabe_Ausbringungen[Angaben zu den Fahrzeugen (Lkw: zulässiges Gesamtgewicht, Euro Norm, Kraftstoff)],Result_Ausbringung[[#This Row],[Fahrzeuge (Lkw, zulässiges Gesamtgewicht, Euro_Norm, Kraftstoffe)]],Eingabe_Ausbringungen[Verbrauch Kraftstoffe])*_xlfn.XLOOKUP(Result_Ausbringung[[#This Row],[Fahrzeuge (Lkw, zulässiges Gesamtgewicht, Euro_Norm, Kraftstoffe)]],Auswahl_Lkw_pkw,EF_Ausbringung[AP (mol H+ Äq. / Einheit)])","v":0},{"$f":"SUMIF(Eingabe_Ausbringungen[Angaben zu den Fahrzeugen (Lkw: zulässiges Gesamtgewicht, Euro Norm, Kraftstoff)],Result_Ausbringung[[#This Row],[Fahrzeuge (Lkw, zulässiges Gesamtgewicht, Euro_Norm, Kraftstoffe)]],Eingabe_Ausbringungen[Verbrauch Kraftstoffe])*_xlfn.XLOOKUP(Result_Ausbringung[[#This Row],[Fahrzeuge (Lkw, zulässiges Gesamtgewicht, Euro_Norm, Kraftstoffe)]],Auswahl_Lkw_pkw,EF_Ausbringung[ODP (kg FCKW-11 Äq. / Einheit)])","v":0},{"$f":"SUMIF(Eingabe_Ausbringungen[Angaben zu den Fahrzeugen (Lkw: zulässiges Gesamtgewicht, Euro Norm, Kraftstoff)],Result_Ausbringung[[#This Row],[Fahrzeuge (Lkw, zulässiges Gesamtgewicht, Euro_Norm, Kraftstoffe)]],Eingabe_Ausbringungen[Verbrauch Kraftstoffe])*_xlfn.XLOOKUP(Result_Ausbringung[[#This Row],[Fahrzeuge (Lkw, zulässiges Gesamtgewicht, Euro_Norm, Kraftstoffe)]],Auswahl_Lkw_pkw,EF_Ausbringung[POCP (kg NMVOC Äq. / Einheit)])","v":0}]
[null,null,"Pkw, Erdgas, CNG",{"$f":"SUMIF(Eingabe_Ausbringungen[Angaben zu den Fahrzeugen (Lkw: zulässiges Gesamtgewicht, Euro Norm, Kraftstoff)],Result_Ausbringung[[#This Row],[Fahrzeuge (Lkw, zulässiges Gesamtgewicht, Euro_Norm, Kraftstoffe)]],Eingabe_Ausbringungen[Verbrauch Kraftstoffe])*_xlfn.XLOOKUP(Result_Ausbringung[[#This Row],[Fahrzeuge (Lkw, zulässiges Gesamtgewicht, Euro_Norm, Kraftstoffe)]],Auswahl_Lkw_pkw,EF_Ausbringung[KEA (MJ  / Einheit)])","v":0},{"$f":"SUMIF(Eingabe_Ausbringungen[Angaben zu den Fahrzeugen (Lkw: zulässiges Gesamtgewicht, Euro Norm, Kraftstoff)],Result_Ausbringung[[#This Row],[Fahrzeuge (Lkw, zulässiges Gesamtgewicht, Euro_Norm, Kraftstoffe)]],Eingabe_Ausbringungen[Verbrauch Kraftstoffe])*_xlfn.XLOOKUP(Result_Ausbringung[[#This Row],[Fahrzeuge (Lkw, zulässiges Gesamtgewicht, Euro_Norm, Kraftstoffe)]],Auswahl_Lkw_pkw,EF_Ausbringung[GWP (kg CO2Äq. / Einheit)])","v":0},{"$f":"SUMIF(Eingabe_Ausbringungen[Angaben zu den Fahrzeugen (Lkw: zulässiges Gesamtgewicht, Euro Norm, Kraftstoff)],Result_Ausbringung[[#This Row],[Fahrzeuge (Lkw, zulässiges Gesamtgewicht, Euro_Norm, Kraftstoffe)]],Eingabe_Ausbringungen[Verbrauch Kraftstoffe])*_xlfn.XLOOKUP(Result_Ausbringung[[#This Row],[Fahrzeuge (Lkw, zulässiges Gesamtgewicht, Euro_Norm, Kraftstoffe)]],Auswahl_Lkw_pkw,EF_Ausbringung[AP (mol H+ Äq. / Einheit)])","v":0},{"$f":"IFERROR(SUMIF(Eingabe_Ausbringungen[Angaben zu den Fahrzeugen (Lkw: zulässiges Gesamtgewicht, Euro Norm, Kraftstoff)],Result_Ausbringung[[#This Row],[Fahrzeuge (Lkw, zulässiges Gesamtgewicht, Euro_Norm, Kraftstoffe)]],Eingabe_Ausbringungen[Verbrauch Kraftstoffe])*_xlfn.XLOOKUP(Result_Ausbringung[[#This Row],[Fahrzeuge (Lkw, zulässiges Gesamtgewicht, Euro_Norm, Kraftstoffe)]],Auswahl_Lkw_pkw,EF_Ausbringung[ODP (kg FCKW-11 Äq. / Einheit)]),\"k.A.\")","v":"k.A."},{"$f":"SUMIF(Eingabe_Ausbringungen[Angaben zu den Fahrzeugen (Lkw: zulässiges Gesamtgewicht, Euro Norm, Kraftstoff)],Result_Ausbringung[[#This Row],[Fahrzeuge (Lkw, zulässiges Gesamtgewicht, Euro_Norm, Kraftstoffe)]],Eingabe_Ausbringungen[Verbrauch Kraftstoffe])*_xlfn.XLOOKUP(Result_Ausbringung[[#This Row],[Fahrzeuge (Lkw, zulässiges Gesamtgewicht, Euro_Norm, Kraftstoffe)]],Auswahl_Lkw_pkw,EF_Ausbringung[POCP (kg NMVOC Äq. / Einheit)])","v":0}]
[null,null,"Pkw, Erdgas, LPG",{"$f":"SUMIF(Eingabe_Ausbringungen[Angaben zu den Fahrzeugen (Lkw: zulässiges Gesamtgewicht, Euro Norm, Kraftstoff)],Result_Ausbringung[[#This Row],[Fahrzeuge (Lkw, zulässiges Gesamtgewicht, Euro_Norm, Kraftstoffe)]],Eingabe_Ausbringungen[Verbrauch Kraftstoffe])*_xlfn.XLOOKUP(Result_Ausbringung[[#This Row],[Fahrzeuge (Lkw, zulässiges Gesamtgewicht, Euro_Norm, Kraftstoffe)]],Auswahl_Lkw_pkw,EF_Ausbringung[KEA (MJ  / Einheit)])","v":0},{"$f":"SUMIF(Eingabe_Ausbringungen[Angaben zu den Fahrzeugen (Lkw: zulässiges Gesamtgewicht, Euro Norm, Kraftstoff)],Result_Ausbringung[[#This Row],[Fahrzeuge (Lkw, zulässiges Gesamtgewicht, Euro_Norm, Kraftstoffe)]],Eingabe_Ausbringungen[Verbrauch Kraftstoffe])*_xlfn.XLOOKUP(Result_Ausbringung[[#This Row],[Fahrzeuge (Lkw, zulässiges Gesamtgewicht, Euro_Norm, Kraftstoffe)]],Auswahl_Lkw_pkw,EF_Ausbringung[GWP (kg CO2Äq. / Einheit)])","v":0},{"$f":"SUMIF(Eingabe_Ausbringungen[Angaben zu den Fahrzeugen (Lkw: zulässiges Gesamtgewicht, Euro Norm, Kraftstoff)],Result_Ausbringung[[#This Row],[Fahrzeuge (Lkw, zulässiges Gesamtgewicht, Euro_Norm, Kraftstoffe)]],Eingabe_Ausbringungen[Verbrauch Kraftstoffe])*_xlfn.XLOOKUP(Result_Ausbringung[[#This Row],[Fahrzeuge (Lkw, zulässiges Gesamtgewicht, Euro_Norm, Kraftstoffe)]],Auswahl_Lkw_pkw,EF_Ausbringung[AP (mol H+ Äq. / Einheit)])","v":0},{"$f":"SUMIF(Eingabe_Ausbringungen[Angaben zu den Fahrzeugen (Lkw: zulässiges Gesamtgewicht, Euro Norm, Kraftstoff)],Result_Ausbringung[[#This Row],[Fahrzeuge (Lkw, zulässiges Gesamtgewicht, Euro_Norm, Kraftstoffe)]],Eingabe_Ausbringungen[Verbrauch Kraftstoffe])*_xlfn.XLOOKUP(Result_Ausbringung[[#This Row],[Fahrzeuge (Lkw, zulässiges Gesamtgewicht, Euro_Norm, Kraftstoffe)]],Auswahl_Lkw_pkw,EF_Ausbringung[ODP (kg FCKW-11 Äq. / Einheit)])","v":0},{"$f":"SUMIF(Eingabe_Ausbringungen[Angaben zu den Fahrzeugen (Lkw: zulässiges Gesamtgewicht, Euro Norm, Kraftstoff)],Result_Ausbringung[[#This Row],[Fahrzeuge (Lkw, zulässiges Gesamtgewicht, Euro_Norm, Kraftstoffe)]],Eingabe_Ausbringungen[Verbrauch Kraftstoffe])*_xlfn.XLOOKUP(Result_Ausbringung[[#This Row],[Fahrzeuge (Lkw, zulässiges Gesamtgewicht, Euro_Norm, Kraftstoffe)]],Auswahl_Lkw_pkw,EF_Ausbringung[POCP (kg NMVOC Äq. / Einheit)])","v":0}]
[null,null,"Summe",{"$f":"SUBTOTAL(109,Result_Ausbringung[Kumulierter Energie Aufwand\n(MJ / funktionelle Einheit)])","v":0},{"$f":"SUBTOTAL(109,Result_Ausbringung[Treibhauspotenzial \n(kg CO2-Äq / funktionelle Einheit)])","v":0},{"$f":"SUBTOTAL(109,Result_Ausbringung[Versauerungspotenzial\n(mol H+-Äq/ funktionelle Einheit)])","v":0},{"$f":"SUBTOTAL(109,Result_Ausbringung[Ozonabbaupotenzial\n(kg CFC11-Äq / funktionelle Einheit)])","v":0},{"$f":"SUBTOTAL(109,Result_Ausbringung[Photooxidantienpotenzial \n(kg NMVOC-Äq / funktionelle Einheit)])","v":0}]
[]
[null,"2.5",{"$f":"Ergebnis_eigene_Wärmeerzeugung","v":"Wärmeverbrauch in der Meisterei / im Bauhof (Bereitstellung Wärme, eigene Wärmeerzeugung)"}]
[null,null,"Energieträger / Einheit der Energieträger","Kumulierter Energie Aufwand\n(MJ / funktionelle Einheit)","Treibhauspotenzial \n(kg CO2-Äq / funktionelle Einheit)","Versauerungspotenzial\n(mol H+-Äq/ funktionelle Einheit)","Ozonabbaupotenzial\n(kg CFC11-Äq / funktionelle Einheit)","Photooxidantienpotenzial \n(kg NMVOC-Äq / funktionelle Einheit)"]
[null,null,"Erdgas ",{"$f":"'Eingabe spezifische Daten'!$F38*Emissionsfaktoren!D$89","v":0},{"$f":"'Eingabe spezifische Daten'!$F38*Emissionsfaktoren!E$89","v":0},{"$f":"'Eingabe spezifische Daten'!$F38*Emissionsfaktoren!F$89","v":0},{"$f":"'Eingabe spezifische Daten'!$F38*Emissionsfaktoren!G$89","v":0},{"$f":"'Eingabe spezifische Daten'!$F38*Emissionsfaktoren!H$89","v":0}]
[null,null,"Heizöl ",{"$f":"'Eingabe spezifische Daten'!$F39*Emissionsfaktoren!D$90","v":0},{"$f":"'Eingabe spezifische Daten'!$F39*Emissionsfaktoren!E$90","v":0},{"$f":"'Eingabe spezifische Daten'!$F39*Emissionsfaktoren!F$90","v":0},{"$f":"'Eingabe spezifische Daten'!$F39*Emissionsfaktoren!G$90","v":0},{"$f":"'Eingabe spezifische Daten'!$F39*Emissionsfaktoren!H$90","v":0}]
[null,null,"Holzhackschnitzel ",{"$f":"'Eingabe spezifische Daten'!$F40*Emissionsfaktoren!D$91","v":0},{"$f":"'Eingabe spezifische Daten'!$F40*Emissionsfaktoren!E$91","v":0},{"$f":"'Eingabe spezifische Daten'!$F40*Emissionsfaktoren!F$91","v":0},{"$f":"'Eingabe spezifische Daten'!$F40*Emissionsfaktoren!G$91","v":0},{"$f":"'Eingabe spezifische Daten'!$F40*Emissionsfaktoren!H$91","v":0}]
[null,null,"Holzpellets",{"$f":"'Eingabe spezifische Daten'!$F41*Emissionsfaktoren!D$92","v":0},{"$f":"'Eingabe spezifische Daten'!$F41*Emissionsfaktoren!E$92","v":0},{"$f":"'Eingabe spezifische Daten'!$F41*Emissionsfaktoren!F$92","v":0},{"$f":"'Eingabe spezifische Daten'!$F41*Emissionsfaktoren!G$92","v":0},{"$f":"'Eingabe spezifische Daten'!$F41*Emissionsfaktoren!H$92","v":0}]
[null,null,"Biogas",{"$f":"'Eingabe spezifische Daten'!$F42*Emissionsfaktoren!D$93","v":0},{"$f":"'Eingabe spezifische Daten'!$F42*Emissionsfaktoren!E$93","v":0},{"$f":"'Eingabe spezifische Daten'!$F42*Emissionsfaktoren!F$93","v":0},{"$f":"'Eingabe spezifische Daten'!$F42*Emissionsfaktoren!G$93","v":0},{"$f":"'Eingabe spezifische Daten'!$F42*Emissionsfaktoren!H$93","v":0}]
[null,null,"Solarthermie (eigene Kollektoren)",{"$f":"'Eingabe spezifische Daten'!$F43*Emissionsfaktoren!D$94","v":0},{"$f":"'Eingabe spezifische Daten'!$F43*Emissionsfaktoren!E$94","v":0},{"$f":"'Eingabe spezifische Daten'!$F43*Emissionsfaktoren!F$94","v":0},{"$f":"'Eingabe spezifische Daten'!$F43*Emissionsfaktoren!G$94","v":0},{"$f":"'Eingabe spezifische Daten'!$F43*Emissionsfaktoren!H$94","v":0}]
[null,null,"Summe",{"$f":"SUBTOTAL(109,Result_Eigen_Wärmebereitstellung[Kumulierter Energie Aufwand\n(MJ / funktionelle Einheit)])","v":0},{"$f":"SUBTOTAL(109,Result_Eigen_Wärmebereitstellung[Treibhauspotenzial \n(kg CO2-Äq / funktionelle Einheit)])","v":0},{"$f":"SUBTOTAL(109,Result_Eigen_Wärmebereitstellung[Versauerungspotenzial\n(mol H+-Äq/ funktionelle Einheit)])","v":0},{"$f":"SUBTOTAL(109,Result_Eigen_Wärmebereitstellung[Ozonabbaupotenzial\n(kg CFC11-Äq / funktionelle Einheit)])","v":0},{"$f":"SUBTOTAL(109,Result_Eigen_Wärmebereitstellung[Photooxidantienpotenzial \n(kg NMVOC-Äq / funktionelle Einheit)])","v":0}]
[]
[null,"2.6","Wasserverbrauch für Soleeigenherstellung und für Fahrzeug- und Streumaschinenreinigung"]
[null,null,"Wasserverbrauch ","Liter / funktionelle Einheit","Anteil in %"]
[null,null,"Leitungswasser",{"$f":"Eingabe_Leitungswasser","v":0},{"$f":"D158/$D$160","v":{"$error":"#DIV/0!"}}]
[null,null,"Niederschlagswasser",{"$f":"Eingabe_Regenwasser","v":0},{"$f":"D159/$D$160","v":{"$error":"#DIV/0!"}}]
[null,null,"Summe",{"$f":"SUM(D158:D159)","v":0},{"$f":"D160/$D$160","v":{"$error":"#DIV/0!"}}]
[]
[]
[]
[null,"3. Grafische Darstellung: Anteile der einzelnen Prozesse am Gesamtergebnis der einzelen Wirkungskategorien [Prozent]"]
{"$rows_empty":60}
[null,"4. Ergebnisse in PDF umwandeln"]

{"sheet":"Emissionsfaktoren","index":5,"n_rows":113,"n_cols":12,"rows_kept":113}
{"$rows_empty":8}
[null,"Emissionsfaktoren zur Herstellung der Streumittel (trocken und Sole)",{"$nulls":9},"Ja"]
[{"$nulls":11},"Nein"]
[null,null,"Trockensalz","KEA (MJ  / Tonne)","GWP (kg CO2Äq.  /  Tonne)","AP (mol H+ Äq. / Tonne)","ODP (kg FCKW-11 Äq. / Tonne)","POCP (kg NMVOC Äq. / Tonne)","Quelle",null,"konzentrierte Fremdsole"]
[null,null,"Natriumchlorid (aus Steinsalz)",{"v":194.89877682154085,"d":"194.90"},{"v":8.006048857599943,"d":"8.01"},{"v":0.013979275316686279,"d":"1.40E-02"},{"v":2.3279030365703404E-10,"d":"2.33E-10"},{"v":0.013178356449124198,"d":"1.32E-02"},"Eigene Modellierung basierend auf  [3], Hintergrunddatenbank: ÖkobauDat, ELCD, Gemis 5.1",null,"anwendungsfertige Fremdsole"]
[null,null,"Natriumchlorid (aus Siedesalz)",{"v":2764.59319170263,"d":"2764.59"},{"v":123.15831389101771,"d":"123.16"},{"v":0.15032009844209795,"d":"1.50E-01"},{"v":4.6181053827506075E-9,"d":"4.62E-09"},{"v":0.1137847647572451,"d":"1.14E-01"},"Eigene Modellierung basierend auf  [3], Hintergrunddatenbank: ÖkobauDat, ELCD, Gemis 5.1",null,"voreingestellter Betreuungsfaktor"]
[null,null,"Natriumchlorid (aus Meersalz)",{"v":60.187612930573444,"d":"60.19"},{"v":3.0421337595000537,"d":"3.04"},{"v":0.012305659557453063,"d":"1.23E-02"},{"v":7.1534267883215772E-8,"d":"7.15E-08"},{"v":0.006754058380808782,"d":"6.75E-03"},"Eigene Modellierung basiert auf  [3], Hintergrunddatenbank: ÖkobauDat, ELCD, Gemis 5.1",null,"Nutzereingabe"]
[null,null,"Calciumchlorid (Prills, 100%)      ",{"v":18977.125730535838,"d":"18977.13"},{"v":1250.260947231245,"d":"1250.26"},{"v":1.087109588627205,"d":"1.09E+00"},{"v":4.6204207056392831E-8,"d":"4.62E-08"},{"v":0.8142871906743243,"d":"8.14E-01"},"Eigene Modellierung basierend auf [6] und [3]; Hintergrunddatenbank: ÖkobauDat, ELCD, Gemis 5.1",null,null,"Natriumchlorid-Sole"]
[null,null,"Calciumchlorid (Flakes 76-82%)     ",{"v":12404.679328140748,"d":"12404.68"},{"v":845.014798934943,"d":"845.01"},{"v":0.78084200575337,"d":"7.81E-01"},{"v":3.6052147260686e-08,"d":"3.61E-08"},{"v":0.5525193053221443,"d":"5.53E-01"},"Eigene Modellierung basierend auf [6] und [3]; Hintergrunddatenbank: ÖkobauDat, ELCD, Gemis 5.1",null,null,"Magnesiumchlorid-Sole"]
[{"$nulls":11},"Calciumchlorid-Sole"]
[null,null,"Sole","KEA (MJ  / Tonne)","GWP (kg CO2Äq.  /  Tonne)","AP (mol H+ Äq. / Tonne)","ODP (kg FCKW-11 Äq. / Tonne)","POCP (kg NMVOC Äq. / Tonne)","Quelle",null,null,"Natiumchlorid (aus Steinsalz)"]
[null,null,"Sole_NaCl_Steinsalz, konzentrierte Fremdsole ",{"$f":"D12*Konzentration_NaCl_konz_Fremdsole+(1-Konzentration_NaCl_konz_Fremdsole)*EF_KEA_Wasser*1000","v":{"v":53.36721022466765,"d":"53.37"}},{"$f":"E12*Konzentration_NaCl_konz_Fremdsole+(1-Konzentration_NaCl_konz_Fremdsole)*EF_GWP_Wasser*1000","v":{"v":2.5477727029759856,"d":"2.55"}},{"$f":"F12*Konzentration_NaCl_konz_Fremdsole+(1-Konzentration_NaCl_konz_Fremdsole)*EF_AP_Wasser*1000","v":{"v":0.005095238382338433,"d":"5.10E-03"}},{"$f":"G12*Konzentration_NaCl_konz_Fremdsole+(1-Konzentration_NaCl_konz_Fremdsole)*EF_ODP_Wasser*1000","v":{"v":7.2285502789508288E-9,"d":"7.23E-09"}},{"$f":"H12*Konzentration_NaCl_konz_Fremdsole+(1-Konzentration_NaCl_konz_Fremdsole)*EF_POCP_Wasser*1000","v":{"v":0.004398244276772292,"d":"4.40E-03"}},"Berechnet auf der Basis von Natriumclorid, trocken, aus Steinsalz. Annahme Konzentration: 26%",null,null,"Natriumchlorid (aus Siedesalz)"]
[null,null,"Sole_NaCl_Siedesalz, konzentrierte Fremdsole ",{"v":53.04639278839108,"d":"53.05"},{"v":2.56036512993179,"d":"2.56"},{"v":0.010352664356321277,"d":"1.04E-02"},{"v":7.0774252434213954E-8,"d":"7.08E-08"},{"v":0.004455080578424331,"d":"4.46E-03"},"Eigene Modellierung basierend auf dem Prozessschritt Solegewinnung aus der Siedesalz-Herstellung ",null,null,"Natriumchlorid (aus Meersalz)"]
[null,null,"Sole_NaCl, konzentrierte Fremdsole ",{"$f":"AVERAGE(D19:D20)","v":{"v":53.20680150652937,"d":"53.21"}},{"$f":"AVERAGE(E19:E20)","v":{"v":2.554068916453888,"d":"2.55"}},{"$f":"AVERAGE(F19:F20)","v":{"v":0.007723951369329855,"d":"7.72E-03"}},{"$f":"AVERAGE(G19:G20)","v":{"v":3.9001401356582393E-8,"d":"3.90E-08"}},{"$f":"AVERAGE(H19:H20)","v":{"v":0.004426662427598311,"d":"4.43E-03"}},"Mittelwert von Sole aus Steinsalz und Sole aus Siedesalz",null,null,"Calciumchlorid (Prills, 100%)      "]
[null,null,"Sole_CaCl2, konzentrierte Fremdsole",{"v":3391.4514914159718,"d":"3391.45"},{"v":236.37741796506793,"d":"236.38"},{"v":0.27694222937679275,"d":"2.77E-01"},{"v":1.4965605919577471E-8,"d":"1.50E-08"},{"v":0.16914658911263927,"d":"1.69E-01"},"Eigene Modellierung basierend auf [6] und [3]; Hintergrunddatenbank: ÖkobauDat, ELCD, Gemis 5.1",null,null,"Calciumchlorid (Flakes 76-82%)     "]
[null,null,"Sole_MgCl2, konzentrierte Fremdsole",{"v":53.04639278839108,"d":"53.05"},{"v":2.5603651299317853,"d":"2.56"},{"v":0.010352664356321277,"d":"1.04E-02"},{"v":7.0774252434213954E-8,"d":"7.08E-08"},{"v":0.004455080578424331,"d":"4.46E-03"},"Näherung, da kein Datensatz zu MgCl2-Sole identifiziert werden konnte: wie Sole_NaCl, konzentrierte Fremdsole "]
[]
[null,null,"Annahmen zur konzentrierten Fremdsole"]
[null,null,"Sole_NaCl,  konzentrierte Fremdsole",{"v":0.26,"d":"26%"}]
[null,null,"Sole_CaCl2, konzentrierte Fremdsole",{"v":0.33,"d":"33%"}]
[null,null,"Sole_MgCl2, konzentrierte Fremdsole",{"v":0.33,"d":"33%"}]
[]
[]
[]
[null,"Emissionsfakoren für den Antransport der Streumittel"]
[]
[null,null,"Transportmittel","KEA (MJ  / tkm)","GWP (kg CO2Äq.  / tkm)","AP (mol H+ Äq. / tkm)","ODP (kg FCKW-11 Äq. / tkm)","POCP (kg NMVOC Äq. / tkm)","Quelle"]
[null,null,"Bahn",{"v":0.46539224313664623,"d":"0.47"},{"v":0.026845,"d":"0.027"},{"v":0.00028,"d":"2.80E-04"},{"v":2.46732605E-9,"d":"2.47E-09"},{"v":2.5022390000000003E-4,"d":"2.50E-04"},"Mittelwert aus [15] und [16]"]
[null,null,"Binnenschiff",{"v":0.37378826824496636,"d":"0.37"},{"v":0.02744,"d":"0.027"},{"v":0.00036,"d":"3.60E-04"},{"v":3.86121E-11,"d":"3.86E-11"},{"v":0.00046,"d":"4.60E-04"},"[14]"]
[null,null,"Massengutfrachter",{"v":0.03228080603842499,"d":"0.03"},{"v":0.00243,"d":"0.002"},{"v":9.91443e-05,"d":"9.91E-05"},{"v":3.07139e-12,"d":"3.07E-12"},{"v":6.36584e-05,"d":"6.37E-05"},"[13]"]
[null,null,"Containerschiff",{"v":0.17384062963139574,"d":"0.17"},{"v":0.01311,"d":"0.01"},{"v":0.00053,"d":"5.30E-04"},{"v":1.65402e-11,"d":"1.65E-11"},{"v":0.00034,"d":"3.40E-04"},"[12]"]
[null,null,"Lkw >14-26t, Euro 3",{"v":2.5412479648987545,"d":"2.54"},{"v":0.16996863368955983,"d":"0.17"},{"v":1.1781793059020484E-3,"d":"1.18E-03"},{"v":3.297768384794348e-11,"d":"3.30E-11"},{"v":1.4603687441529345E-3,"d":"1.46E-03"},"Direkte Emissionen und Kraftstoffverbrauch stammen aus [24]. Produktion des Diesels aus [10]"]
[null,null,"Lkw >14-26t, Euro 4",{"v":2.3696849886215445,"d":"2.37"},{"v":0.1589010717075359,"d":"0.16"},{"v":9.0412484848065224E-4,"d":"9.04E-04"},{"v":3.0751317247820114E-11,"d":"3.08E-11"},{"v":1.0642678319541013E-3,"d":"1.06E-03"},"Direkte Emissionen und Kraftstoffverbrauch stammen aus [24]. Produktion des Diesels aus [10]"]
[null,null,"Lkw >14-26t, Euro 5",{"v":2.201377226223737,"d":"2.20"},{"v":0.14893230375167033,"d":"0.15"},{"v":9.1033705852946642E-4,"d":"9.10E-04"},{"v":2.8567193441652773E-11,"d":"2.86E-11"},{"v":1.0882826776798366E-3,"d":"1.09E-03"},"Direkte Emissionen und Kraftstoffverbrauch stammen aus [24]. Produktion des Diesels aus [10]"]
[null,null,"Lkw >14-26t, Euro 6",{"v":1.9989391271683457,"d":"2.00"},{"v":0.13528163556960718,"d":"0.14"},{"v":2.8375330773789005E-4,"d":"2.84E-04"},{"v":2.5940161478759164E-11,"d":"2.59E-11"},{"v":2.3108382222258411E-4,"d":"2.31E-04"},"Direkte Emissionen und Kraftstoffverbrauch stammen aus [24]. Produktion des Diesels aus [10]"]
[null,null,"Lkw >7.5-14t, Euro 3",{"v":3.6701942053582544,"d":"3.67"},{"v":0.24547473868404265,"d":"0.25"},{"v":1.610662703030494E-3,"d":"1.61E-03"},{"v":4.762797878706055e-11,"d":"4.76E-11"},{"v":1.9805149460882373E-3,"d":"1.98E-03"},"Direkte Emissionen und Kraftstoffverbrauch stammen aus [24]. Produktion des Diesels aus [10]"]
[null,null,"Lkw >7.5-14t, Euro 4",{"v":3.3312219399020258,"d":"3.33"},{"v":0.22336635619978382,"d":"0.22"},{"v":1.2328940586803807E-3,"d":"1.23E-03"},{"v":4.3229147835559107E-11,"d":"4.32E-11"},{"v":1.4384608300180744E-3,"d":"1.44E-03"},"Direkte Emissionen und Kraftstoffverbrauch stammen aus [24]. Produktion des Diesels aus [10]"]
[null,null,"Lkw >7.5-14t, Euro 5",{"v":3.0685490537003104,"d":"3.07"},{"v":0.20753288061980713,"d":"0.21"},{"v":1.1013758676639682E-3,"d":"1.10E-03"},{"v":3.982045119664921e-11,"d":"3.98E-11"},{"v":1.279119978917768E-3,"d":"1.28E-03"},"Direkte Emissionen und Kraftstoffverbrauch stammen aus [24]. Produktion des Diesels aus [10]"]
[null,null,"Lkw >7.5-14t, Euro 6",{"v":2.794494082081264,"d":"2.79"},{"v":0.18904872469212192,"d":"0.19"},{"v":3.5892525498913165E-4,"d":"3.59E-04"},{"v":3.6264049642828347E-11,"d":"3.63E-11"},{"v":2.6937437205210035E-4,"d":"2.69E-04"},"Direkte Emissionen und Kraftstoffverbrauch stammen aus [24]. Produktion des Diesels aus [10]"]
[]
[]
[null,"Emissionsfakoren für die Ausbringung (Bereitstellung der Kraftstoffe und direkte Emissionen des Fahrzeugbetriebes)"]
[null,null,"Die Emissionsfaktoren bilden die Emissionen aus der Herstellung der Kraftstoffe und die direkten Emissionen des Fahrzeugbetriebes bei der Ausbringung einschließlich Leer- und Kontrollfahrten ab"]
[]
[null,null,"Fahrzeug (Fahrzeugtyp, zulässiges Gesamtgewicht, Abgasnorm, Kraftstoff)","Einheit","KEA (MJ  / Einheit)","GWP (kg CO2Äq. / Einheit)","AP (mol H+ Äq. / Einheit)","ODP (kg FCKW-11 Äq. / Einheit)","POCP (kg NMVOC Äq. / Einheit)","Quelle"]
[null,null,"Lkw >14-26t, Euro 3, Diesel","Liter",{"v":44.88929371564632,"d":"44.89"},{"v":3.0023720729046315,"d":"3.00"},{"v":0.020811679002934468,"d":"2.08E-02"},{"v":5.825267572308862e-10,"d":"5.83E-10"},{"v":0.025796349822966764,"d":"2.58E-02"},"umgerechnet auf Liter auf Basis von Emissionsfaktoren in tkm "]
[null,null,"Lkw >14-26t, Euro 4, Diesel","Liter",{"v":44.88929371564632,"d":"44.89"},{"v":3.0100865363374,"d":"3.01"},{"v":0.017126970915518604,"d":"1.71E-02"},{"v":5.825267572308861e-10,"d":"5.83E-10"},{"v":0.020160583170378374,"d":"2.02E-02"},"umgerechnet auf Liter auf Basis von Emissionsfaktoren in tkm "]
[null,null,"Lkw >14-26t, Euro 5, Diesel","Liter",{"v":44.88929371564631,"d":"44.89"},{"v":3.036946983559421,"d":"3.04"},{"v":0.018563100914179023,"d":"1.86E-02"},{"v":5.825267572308861e-10,"d":"5.83E-10"},{"v":0.022191671732618868,"d":"2.22E-02"},"umgerechnet auf Liter auf Basis von Emissionsfaktoren in tkm "]
[null,null,"Lkw >14-26t, Euro 6, Diesel","Liter",{"v":44.88929371564632,"d":"44.89"},{"v":3.0379599813124756,"d":"3.04"},{"v":0.006372122792891634,"d":"6.37E-03"},{"v":5.825267572308862e-10,"d":"5.83E-10"},{"v":5.1893474031789125E-3,"d":"5.19E-03"},"umgerechnet auf Liter auf Basis von Emissionsfaktoren in tkm "]
[null,null,"Lkw / Unimog >7.5-14t, Euro 3, Diesel","Liter",{"v":44.88929371564631,"d":"44.89"},{"v":3.0023445703424065,"d":"3.00"},{"v":0.019699641792147397,"d":"1.97E-02"},{"v":5.825267572308861e-10,"d":"5.83E-10"},{"v":0.02422321875866627,"d":"2.42E-02"},"umgerechnet auf Liter auf Basis von Emissionsfaktoren in tkm "]
[null,null,"Lkw / Unimog >7.5-14t, Euro 4, Diesel","Liter",{"v":44.88929371564632,"d":"44.89"},{"v":3.0099339373169083,"d":"3.01"},{"v":0.01661364643930227,"d":"1.66E-02"},{"v":5.825267572308862e-10,"d":"5.83E-10"},{"v":0.019383725210165025,"d":"1.94E-02"},"umgerechnet auf Liter auf Basis von Emissionsfaktoren in tkm "]
[null,null,"Lkw / Unimog >7.5-14t, Euro 5, Diesel","Liter",{"v":44.88929371564631,"d":"44.89"},{"v":3.035963991699164,"d":"3.04"},{"v":0.016111844376505518,"d":"1.61E-02"},{"v":5.825267572308861e-10,"d":"5.83E-10"},{"v":0.018712033415907325,"d":"1.87E-02"},"umgerechnet auf Liter auf Basis von Emissionsfaktoren in tkm "]
[null,null,"Lkw / Unimog >7.5-14t, Euro 6, Diesel","Liter",{"v":44.88929371564631,"d":"44.89"},{"v":3.0367799966685487,"d":"3.04"},{"v":5.7655878738417906E-3,"d":"5.77E-03"},{"v":5.825267572308862e-10,"d":"5.83E-10"},{"v":0.00432708925170051,"d":"4.33E-03"},"umgerechnet auf Liter auf Basis von Emissionsfaktoren in tkm "]
[null,null,"Unimog ≤7,5t,  Euro 3, Diesel","Liter",{"v":44.88929371564632,"d":"44.89"},{"v":3.0023800937829384,"d":"3.00"},{"v":0.020722762159169773,"d":"2.07E-02"},{"v":5.825267572308862e-10,"d":"5.83E-10"},{"v":0.025702382222566277,"d":"2.57E-02"},"Direkte Emissionen und Kraftstoffverbrauch stammen aus [24]. Produktion des Diesels aus [10]"]
[null,null,"Unimog ≤7,5t,  Euro 4, Diesel","Liter",{"v":44.88929371564631,"d":"44.89"},{"v":3.007903959773115,"d":"3.01"},{"v":0.016865125256503567,"d":"1.69E-02"},{"v":5.825267572308861e-10,"d":"5.83E-10"},{"v":0.019712156229211904,"d":"1.97E-02"},"Direkte Emissionen und Kraftstoffverbrauch stammen aus [24]. Produktion des Diesels aus [10]"]
[null,null,"Unimog ≤7,5t,  Euro 5, Diesel","Liter",{"v":44.88929371564632,"d":"44.89"},{"v":3.0293347257188463,"d":"3.03"},{"v":0.0177807919976731,"d":"1.78E-02"},{"v":5.825267572308862e-10,"d":"5.83E-10"},{"v":0.020931681577760004,"d":"2.09E-02"},"Direkte Emissionen und Kraftstoffverbrauch stammen aus [24]. Produktion des Diesels aus [10]"]
[null,null,"Unimog ≤7,5t,  Euro 6, Diesel","Liter",{"v":44.889293715646325,"d":"44.89"},{"v":3.0303256486469987,"d":"3.03"},{"v":0.0053560129395305,"d":"5.36E-03"},{"v":5.825267572308862e-10,"d":"5.83E-10"},{"v":3.778578359272249E-3,"d":"3.78E-03"},"Direkte Emissionen und Kraftstoffverbrauch stammen aus [24]. Produktion des Diesels aus [10]"]
[null,null,"Lkw, Biodiesel","Liter",{"v":41.908139229999996,"d":"41.91"},{"v":1.40611124,"d":"1.41"},{"v":0.030214379549999996,"d":"3.02E-02"},"k.A.",{"v":4.6413723E-3,"d":"4.64E-03"},"Direkte Emissionen stammen aus [8]. Produktion des Kraftstoffes aus [25]"]
[null,null,"Pkw, Biodiesel","Liter",{"$f":"E65","v":{"v":41.908139229999996,"d":"41.91"}},{"$f":"F65","v":{"v":1.40611124,"d":"1.41"}},{"$f":"G65","v":{"v":0.030214379549999996,"d":"3.02E-02"}},{"$f":"H65","v":"k.A."},{"$f":"I65","v":{"v":4.6413723E-3,"d":"4.64E-03"}},"Kraftstoffbezogen, keinen Unterschied zwischen Lkw und Pkw"]
[null,null,"Pkw, Diesel","Liter",{"v":44.88929371564632,"d":"44.89"},{"v":3.035848685919154,"d":"3.04"},{"v":0.013287335756776,"d":"1.33E-02"},{"v":5.825267572308862e-10,"d":"5.83E-10"},{"v":0.0144562980216914,"d":"1.45E-02"},"Direkte Emissionen stammen aus [24]. Produktion des Kraftstoffes aus [10]"]
[null,null,"Pkw, Benzin","Liter",{"v":42.03730062768808,"d":"42.04"},{"v":2.9010596234446977,"d":"2.90"},{"v":0.00596404307514772,"d":"5.96E-03"},{"v":7.431684863953478e-10,"d":"7.43E-10"},{"v":0.00443130988412898,"d":"4.43E-03"},"Direkte Emissionen stammen aus [24]. Produktion des Kraftstoffes aus [26]"]
[null,null,"Pkw, Erdgas, CNG","kg",{"v":51.39721,"d":"51.40"},{"v":3.57756,"d":"3.58"},{"v":0.00578,"d":"5.78E-03"},"k.A.",{"v":0.00652,"d":"6.52E-03"},"Direkte Emissionen stammen aus [24]. Produktion des Kraftstoffes aus [25]"]
[null,null,"Pkw, Erdgas, LPG","kg",{"v":53.8122,"d":"53.81"},{"v":3.91073,"d":"3.91"},{"v":0.007373,"d":"7.37E-03"},{"v":7.506e-13,"d":"7.51E-13"},{"v":0.007975,"d":"7.98E-03"},"Direkte Emissionen stammen aus [24]. Produktion des Kraftstoffes aus [27]"]
[]
[]
[null,"Emissionsfakoren der Energiebereitstellung"]
[]
[null,null,"Energie","KEA (MJ  / kWh)","GWP (kg CO2Äq.  / kWh)","AP (mol H+ Äq. / kWh)","ODP (kg FCKW-11 Äq. / kWh)","POCP (kg NMVOC Äq. / kWh)","Quelle"]
[null,null,"Strommix",{"v":11.964,"d":"11.96"},{"v":0.4023,"d":"0.40"},{"v":0.0006211,"d":"6.2E-04"},{"v":1.403e-11,"d":"1.4E-11"},{"v":0.0004834,"d":"4.8E-04"},"[23]"]
[]
[null,null,"Energie","KEA (MJ  / MJ)","GWP (kg CO2Äq.  / MJ)","AP (mol H+ Äq. / MJ)","ODP (kg FCKQ-11 Äq. / MJ)","POCP (kg NMVOC Äq. / MJ)","Quelle"]
[null,null,"Wärmemix ",{"v":1.2244444444444444,"d":"1.22"},{"v":0.06969444444444445,"d":"0.07"},{"v":8.3416666666666657E-5,"d":"8.3E-05"},{"v":1.684444444444444e-14,"d":"1.7E-14"},{"v":7.8388888888888882E-5,"d":"7.8E-05"},"[2]"]
[]
[null,null,"Eigene Stromerzeugung "]
[]
[null,null,"Energieträger","KEA (MJ  / kWh)","GWP (kg CO2Äq.  / kWh)","AP (mol H+ Äq. / kWh)","ODP (kg FCKW-11 Äq. / kWh)","POCP (kg NMVOC Äq. / kWh)","Quelle"]
[null,null,"Photovoltaik",{"v":0.7817274552707931,"d":"0.782"},{"v":0.07273549323017407,"d":"0.073"},{"v":4.9447014023210837E-4,"d":"4.94E-04"},{"v":6.5267571324951648E-9,"d":"6.53E-09"},{"v":2.8755195841392644E-4,"d":"2.88E-04"},"Umrechnung basiert auf [7]"]
[]
[null,null,"Eigene Wärmebereitsstellung "]
[]
[null,null,"Energieträger / Einheit der Energieträger","KEA (MJ  / Einheit)","GWP (kg CO2Äq.  / Einheit)","AP (mol H+ Äq. / Einheit)","ODP (kg FCKW-11 Äq. / Einheit)","POCP (kg NMVOC Äq. / Einheit)","Quelle"]
[null,null,"Erdgas / m³",{"v":43.91559488636364,"d":"43.92"},{"v":2.582388636363636,"d":"2.58"},{"v":1.161297727272727E-3,"d":"1.16E-03"},{"v":1.811890909090909e-13,"d":"1.81E-13"},{"v":1.5010272727272727E-3,"d":"1.50E-03"},"Eigene Berechnung aus [8] und [17]"]
[null,null,"Öl / Liter",{"v":50.810166265060246,"d":"50.81"},{"v":3.658638554216868,"d":"3.66"},{"v":0.00281433734939759,"d":"2.81E-03"},{"v":6.124477108433734e-13,"d":"6.12E-13"},{"v":3.0993638554216866E-3,"d":"3.10E-03"},"Eigene Berechnung aus [8] und [18]"]
[null,null,"Holzhackschnitzel / Tonne",{"v":22783.56928571429,"d":"22783.57"},{"v":70.1941852857143,"d":"70.19"},{"v":1.8989457142857147,"d":"1.90E+00"},{"v":1.9309242857142863E-10,"d":"1.93E-10"},{"v":2.6164285714285715,"d":"2.62E+00"},"Eigene Berechnung aus [8] und [19]"]
[null,null,"Holzpellets / Tonne",{"v":40002.35294117647,"d":"40002.35"},{"v":138.8235294117647,"d":"138.82"},{"v":2.4164705882352946,"d":"2.42E+00"},{"v":1.1676470588235295E-9,"d":"1.17E-09"},{"v":3.317058823529412,"d":"3.32E+00"},"Eigene Berechnung aus [8] und [20]"]
[null,null,"Biogas / m³",{"v":149.13785714285714,"d":"149.14"},{"v":1.4894683333333334,"d":"1.49"},{"v":0.023839761904761905,"d":"2.38E-02"},{"v":2.791904761904762e-12,"d":"2.79E-12"},{"v":0.013480952380952382,"d":"1.35E-02"},"Eigene Berechnung aus [8] und [21]"]
[null,null,"Solarthermie (eigene Kollektoren) / MJ Endenergie",{"v":0.045445569444444445,"d":"0.045"},{"v":2.6334444444444443E-3,"d":"0.003"},{"v":1.4651619444444449E-5,"d":"1.47E-05"},{"v":7.115580555555556e-15,"d":"7.12E-15"},{"v":6.1777305555555563E-6,"d":"6.18E-06"},"Eigene Berechnung basierend auf eigenen Annahmen und [22]"]
[]
[]
[]
[null,"Emissionsfaktoren zur Bereitstellung von Wasser, Hydrauliköl / Motoröl und Diesel "]
[]
[null,null,"Bezeichnung","KEA (MJ  / Liter)","GWP (kg CO2Äq.   / Liter)","AP (mol H+ Äq.  / Liter)","ODP (kg CFC11 Äq.  / Liter)","POCP (kg NMVOC Äq.  / Liter)","Quelle"]
[null,null,"Leitungswasser",{"v":3.6399030419824695E-3,"d":"0.0036"},{"v":0.00063,"d":"0.0006"},{"v":1.97382e-06,"d":"1.97E-06"},{"v":9.68652e-12,"d":"9.69E-12"},{"v":1.31334E-6,"d":"1.31E-06"},"[9]"]
[null,null,"Hydrauliköl / Motoröl",{"v":46.36634025207782,"d":"46.37"},{"v":0.378916,"d":"0.38"},{"v":0.0029498,"d":"2.95E-03"},{"v":6.1557854e-10,"d":"6.16E-10"},{"v":1.591E-3,"d":"1.59E-03"},"[11]"]
[null,null,"Diesel ",{"v":44.88929371564632,"d":"44.89"},{"v":0.39552075000000003,"d":"0.40"},{"v":3.6630000000000005E-3,"d":"3.66E-03"},{"v":5.802558300000001e-10,"d":"5.80E-10"},{"v":1.590075E-3,"d":"1.59E-03"},"[10]"]
[]
[]
[]
[null,"Sonstige hinterlegte Daten "]
[null,1,"Voreingestellte Betreuungsfaktoren basieren auf TAUSALA; Quelle: [4]"]
[null,null,"Straßenklasse ","Betreuungsfaktor "]
[null,null,"Bundesautobahnen",{"v":1,"d":"1.00"}]
[null,null,"Bundesstraßen",{"v":0.8,"d":"0.80"}]
[null,null,"Landes-, Staatsstraßen",0.67]
[null,null,"Kreisstraßen",0.67]

{"sheet":"Quellen","index":6,"n_rows":32,"n_cols":3,"rows_kept":32,"merged":[[5,2,5,3],[6,2,6,3],[7,2,7,3],[8,2,8,3],[9,2,9,3],[10,2,10,3],[11,2,11,3],[12,2,12,3],[13,2,13,3],[14,2,14,3],[15,2,15,3],[16,2,16,3],[17,2,17,3],[18,2,18,3],[19,2,19,3],[20,2,20,3],[21,2,21,3],[22,2,22,3],[23,2,23,3],[24,2,24,3],[25,2,25,3],[26,2,26,3],[27,2,27,3],[28,2,28,3],[29,2,29,3],[30,2,30,3],[31,2,31,3]]}
[]
[]
[]
[]
[null,"Quellen- und Literaturverzeichnis"]
[null,"[1]","Smith, C., Z.R.J. Nicholls, K. Armour, W. Collins, P. Forster, M. Meinshausen, M.D. Palmer, M. Watanabe (2021): The Earth’s Energy Budget, Climate Feedbacks, and Climate Sensitivity Supplementary Material. In Climate Change 2021: The Physical Science Basis. Contribution of Working Group I to the Sixth Assessment Report of the Intergovernmental Panel on Climate Change [Masson-Delmotte, V., P. Zhai, A. Pirani, S.L. Connors, C. Péan, S. Berger, N. Caud, Y. Chen, L. Goldfarb, M.I. Gomis, M. Huang, K. Leitzell, E. Lonnoy, J.B.R. Matthews, T.K. Maycock, T. Waterfield, O. Yelekçi, R. Yu,\nand B. Zhou (eds.)]. Available from https://www.ipcc.ch/; https://www.ipcc.ch/report/ar6/wg1/downloads/report/IPCC_AR6_WGI_Chapter07_SM.pdf"]
[null,"[2]","ÖKOBAUDAT: Fernwärme Mix Deutschland, https://oekobaudat.de/OEKOBAU.DAT/datasetdetail/process.xhtml?uuid=63aac37f-e1bc-4e1d-8338-beb5f78fa7e3&version=20.23.050&stock=OBD_2023_I&lang=de"]
[null,"[3]","Stratmann, Britta; Quack, Dietlinde (2009): Vergleichende Ökobilanz drei verschiedener Auftausalze: Steinsalz, Siedesalz und Meersalz. Im Auftrag der Südsalz GmbH, Heilbronn. Unter Mitarbeit von Franz Götzfried, Florian Knappe, Gero Morlock und Eörs Kondorosy. Öko-Institut e. V. Freiburg"]
[null,"[4]","BMVI (2019): Leitfaden für die Dimensionierung von Tausalzlagern Leitfaden TAUSALA. Hrsg: Bundesministerium für Verkehr und digitale Infrastruktur. Veröffentlicht auf BASt-Homepage, Link: https://www.bast.de/DE/Verkehrstechnik/Fachthemen/Daten/tausala-leitfaden.pdf?__blob=publicationFile&v=4 zuletzt abgerufen am 03.10.2023\t"]
[null,"[5]","EMPFEHLUNG (EU) 2021/2279 DER KOMMISSION vom 15. Dezember 2021 zur Anwendung der Methoden für die Berechnung des Umweltfußabdrucks zur Messung und Offenlegung der Umweltleistung von Produkten und Organisationen entlang ihres Lebenswegs, \nhttps://eur-lex.europa.eu/legal-content/EN/TXT/?uri=CELEX%3A32021H2279  "]
[null,"[6]","European Commission, lntegrated Pollution Prevention and Control, Reference Document on Best Available Techniques for the Manufacture of Large Volume lnorganic Chemicals - Solids and Others industry, 2007"]
[null,"[7]","Environmental product declaration, https://www.viridiansolar.com/assets/common/Clearline-fusion-module-EPD-Report.pdf "]
[null,"[8]","Emissionsbilanz erneuerbarer Energieträger Bestimmung der vermiedenen Emissionen im Jahr 2020, Dr. Thomas Lauf, Michael Memmler, Sven Schneider, https://www.umweltbundesamt.de/publikationen/emissionsbilanz-erneuerbarer-energietraeger-2020 "]
[null,"[9]","Fazio, Simone; Pennington, David (2005): Drinking water; water purification treatment; production mix, at plant; from groundwater (Location: RER). European Commission, Joint Research Centre (JRC) [Dataset] PID: http://data.europa.eu/89h/jrc-eplca-db009013-338f-11dd-bd11-0800200c9a66 "]
[null,"[10]","Fazio, Simone; Pennington, David (2008): Diesel mix at refinery; from crude oil and bio components, fuel supply; production mix, at refinery; 10 ppm sulphur, 5.75 wt.% bio components (Location: EU-27). European Commission, Joint Research Centre (JRC) [Dataset] PID: http://data.europa.eu/89h/jrc-eplca-1ea201ab-eec9-4356-93d8-3a4905ea35cd"]
[null,"[11]","Fazio, Simone; Pennington, David (2008): Light fuel oil at refinery; from crude oil, fuel supply; production mix, at refinery; 0.1 wt.% sulphur (Location: EU-27). European Commission, Joint Research Centre (JRC) [Dataset] PID: http://data.europa.eu/89h/jrc-eplca-5214312b-3726-4af4-b804-2b1556b94d54"]
[null,"[12]","Fazio, Simone; Pennington, David (2005): Container ship ocean; technology mix; 27.500 dwt pay load capacity (Location: RER). European Commission, Joint Research Centre (JRC) [Dataset] PID: http://data.europa.eu/89h/jrc-eplca-7d4c6dee-3d6b-4fbf-a496-2354450a1a14"]
[null,"[13]","Fazio, Simone; Pennington, David (2005): Bulk carrier ocean; technology mix; 100.000-200.000 dwt (Location: RER). European Commission, Joint Research Centre (JRC) [Dataset] PID: http://data.europa.eu/89h/jrc-eplca-ee57e8ac-17cd-4538-be62-35d1095a30c2"]
[null,"[14]","Fazio, Simone; Pennington, David (2005): Barge; technology mix; 1.228 t pay load capacity (Location: RER). European Commission, Joint Research Centre (JRC) [Dataset] PID: http://data.europa.eu/89h/jrc-eplca-09aa1e7b-1d7d-4a7c-8dde-ec6d40022fa1"]
[null,"[15]","Fazio, Simone; Pennington, David (2005): Rail transport; technology mix, electricity driven, cargo (Location: RER). European Commission, Joint Research Centre (JRC) [Dataset] PID: http://data.europa.eu/89h/jrc-eplca-9d66aabb-906f-45f6-b3f3-6d002cae096d"]
[null,"[16]","Fazio, Simone; Pennington, David (2005): Rail transport; technology mix, diesel driven, cargo (Location: RER). European Commission, Joint Research Centre (JRC) [Dataset] PID: http://data.europa.eu/89h/jrc-eplca-db009023-338f-11dd-bd11-0800200c9a66"]
[null,"[17]","ÖKOBAUDAT: Nutzung - 1 kWh Endenergie aus Gas Niedertemperatur (entspr. GEG), https://oekobaudat.de/OEKOBAU.DAT/datasetdetail/process.xhtml?uuid=a0318d13-5658-4f05-bdf6-a2c2ce410e04&version=20.23.050&stock=OBD_2023_I&lang=de"]
[null,"[18]","ÖKOBAUDAT: Nutzung - 1 kWh Endenergie aus Öl Niedertemperatur und Brennwert (entspr. GEG), https://oekobaudat.de/OEKOBAU.DAT/datasetdetail/process.xhtml?uuid=0453f1ec-971a-472d-89ee-4d1dd3e98e0c&version=20.23.050&stock=OBD_2023_I&lang=de"]
[null,"[19]","ÖKOBAUDAT: Nutzung - 1 kWh Endenergie aus Hackschnitzeln (entspr. GEG), https://oekobaudat.de/OEKOBAU.DAT/datasetdetail/process.xhtml?uuid=5f167dab-507c-4a05-862f-951f177c846a&version=20.23.050&stock=OBD_2023_I&lang=de"]
[null,"[20]","ÖKOBAUDAT: Nutzung - 1 kWh Endenergie aus Holzpellets (entspr. GEG), https://oekobaudat.de/OEKOBAU.DAT/datasetdetail/process.xhtml?uuid=dfa79627-6389-4cfd-9000-58835bb5dd6d&version=20.23.050&stock=OBD_2023_I&lang=de"]
[null,"[21]","ÖKOBAUDAT: Biogas (1 kg),  https://oekobaudat.de/OEKOBAU.DAT/datasetdetail/process.xhtml?uuid=896ea45c-a831-46a4-883f-d4bb4f1d661e&version=20.23.050&stock=OBD_2023_I&lang=de"]
[null,"[22]","ÖKOBAUDAT: Solaranlage Flachkollektor; https://oekobaudat.de/OEKOBAU.DAT/datasetdetail/process.xhtml?uuid=ad5f4666-dffa-45d4-abe4-fb5ab74d63e1&version=20.23.050&stock=OBD_2023_I&lang=de"]
[null,"[23]","ÖKOBAUDAT: Strom für Gebäudebetrieb 2021, https://oekobaudat.de/OEKOBAU.DAT/datasetdetail/process.xhtml?uuid=c1ccc7a6-09a5-4b36-b6f8-1af3cc43e5b8&version=20.23.050&stock=OBD_2023_I&lang=de"]
[null,"[24]","Handbuch für Emissionsfaktoren (HBEFA) Version 4.2, Infras,  2022, https://www.hbefa.net/d/ "]
[null,"[25]","GEMIS 5.1, https://iinas.org/"]
[null,"[26]","Fazio, Simone; Pennington, David (2008): Gasoline mix (regular) at refinery; from crude oil and bio components, fuel supply; production mix, at refinery; 10 ppm sulphur, 5.75 wt.% bio components (Location: EU-27). European Commission, Joint Research Centre (JRC) [Dataset] PID: http://data.europa.eu/89h/jrc-eplca-f44f98ce-1d4c-4267-9d06-c7686b9488a3"]
[null,"[27]","ÖKOBAUDAT:Liquefied petroleum gas (LPG; 70% propane; 30% butane) https://oekobaudat.de/OEKOBAU.DAT/datasetdetail/process.xhtml?uuid=649d96f3-73b2-41e3-950a-3cd259f7d8ba&version=20.23.050&stock=OBD_2023_I&lang=de"]